Body Name,Body,Service Level,Expense Type,Expense Code,Narrative,Date,Transaction Number,Amount,Capital and Revenue,Supplier Name,Supplier ID
South Ribble Borough Council,http://statistics.data.gov.uk/id/local-authority/30UE,Open Spaces,GM Refurbishment,4657,"20 T 20mm clean, blue limestone delivered to Worden Park Depot with 4T spread on the overflow carpark",17/03/2022,0000476414,500.00,Revenue,A & G Landscapes & Groundworks LTD,0
South Ribble Borough Council,http://statistics.data.gov.uk/id/local-authority/30UE,Open Spaces,GM Refurbishment,4657,MATERIALS,17/03/2022,0000476414,370.00,Revenue,A & G Landscapes & Groundworks LTD,0
South Ribble Borough Council,http://statistics.data.gov.uk/id/local-authority/30UE,Capital,Cap Contract Payment,C230,Retention Costs for improvement works on Worden Park.,28/03/2022,0000476415,"1,757.78",Revenue,A & G Landscapes & Groundworks LTD,0
South Ribble Borough Council,http://statistics.data.gov.uk/id/local-authority/30UE,Central Support Services,External Contractors Charges,4570,1 x rear axle airbag VU60HLE JFC18007,02/03/2022,0000476219,397.50,Revenue,AA UK CV t/a Hydrair Truck & Trailer,0
South Ribble Borough Council,http://statistics.data.gov.uk/id/local-authority/30UE,Central Support Services,Materials General,4040,1 caliper and 2 air bags PJ62 UCM JFC17928,30/03/2022,0000476280,571.85,Revenue,AA UK CV t/a Hydrair Truck & Trailer,0
South Ribble Borough Council,http://statistics.data.gov.uk/id/local-authority/30UE,Central Support Services,Materials General,4040,199ltr drum of ATF Dexron 2 oil,09/03/2022,0000476441,400.00,Revenue,AA UK CV t/a Hydrair Truck & Trailer,0
South Ribble Borough Council,http://statistics.data.gov.uk/id/local-authority/30UE,Open Spaces,GM Refurbishment,4657,8 YD Skip Delivered to Worden Walled Garden,02/03/2022,0000475862,366.66,Revenue,ABLE SKIP HIRE LTD,0
South Ribble Borough Council,http://statistics.data.gov.uk/id/local-authority/30UE,Central Support Services,Reactive Repair & Maintenance,2020,Please provide skip as per NAME REDACTED for the Civic Centre until end of March 2022,02/03/2022,0000476228,285.00,Revenue,ABLE SKIP HIRE LTD,0
South Ribble Borough Council,http://statistics.data.gov.uk/id/local-authority/30UE,Capital,Cap Contract Payment,C230,Provision of Fire Safety Advice - Extra Care Facility at West Paddock in Leyland,09/03/2022,0000476252,"4,250.00",Revenue,AC Fire Safety Ltd,0
South Ribble Borough Council,http://statistics.data.gov.uk/id/local-authority/30UE,Capital,Cap Contract Payment,C230,Leyland Town Deal - Condition Survey,30/03/2022,0000477329,"2,912.50",Revenue,ACS (Blackburn) Limited,0
South Ribble Borough Council,http://statistics.data.gov.uk/id/local-authority/30UE,Economic Development,Investment & Improvement,485K,"Supply of 1000 Senator Super Hit Bio Plastic Ballpens, with our business email on for upcoming events.",23/03/2022,0000476697,365.00,Revenue,AD OPTIONS LTD,0
South Ribble Borough Council,http://statistics.data.gov.uk/id/local-authority/30UE,Central Support Services,Reactive Repair & Maintenance,2020,"Remove existing boiling water heater, run pipework to new position, supply and fit zip hydroboil, As per NAME REDACTED request",02/03/2022,0000476106,"1,120.00",Revenue,Ainscoe Plumbing & Heating Ltd,0
South Ribble Borough Council,http://statistics.data.gov.uk/id/local-authority/30UE,Central Support Services,Reactive Repair & Maintenance,2020,"Run cold water feed across ceiling void, run vertically outside to new outside tap, Run ceiling void in store room, drop down to coffee machine",02/03/2022,0000476107,690.00,Revenue,Ainscoe Plumbing & Heating Ltd,0
South Ribble Borough Council,http://statistics.data.gov.uk/id/local-authority/30UE,Surplus or Deficit on Trading,Reactive Repair & Maintenance,2020,"To supply and fit new zip hydroboil at the moss side community centre as per NAME REDACTED request, Total Cost 1,050.00 + vat",02/03/2022,0000476251,"1,050.00",Revenue,Ainscoe Plumbing & Heating Ltd,0
South Ribble Borough Council,http://statistics.data.gov.uk/id/local-authority/30UE,Central Support Services,Reactive Repair & Maintenance,2020,"Call out to inspect the leak of heating @ moss side depot. 200.00 As per NAME REDACTED Request, To supply a pump for MSD boiler 500.00",28/03/2022,0000476835,300.00,Revenue,Ainscoe Plumbing & Heating Ltd,0
South Ribble Borough Council,http://statistics.data.gov.uk/id/local-authority/30UE,Central Support Services,Reactive Repair & Maintenance,2020,"Ground floor ladies and gents toilets: Civic centre. Following the toilets being out of order, all toilets are old flush handle type. NAME REDACTED",28/03/2022,0000477288,660.00,Revenue,Ainscoe Plumbing & Heating Ltd,0
South Ribble Borough Council,http://statistics.data.gov.uk/id/local-authority/30UE,Surplus or Deficit on Trading,Reactive Repair & Maintenance,2020,"Withy grove pavilion, following reports of a leak. To replace temperature relief valve on hot water cylinder as per NAME REDACTED request",28/03/2022,0000477313,585.00,Revenue,Ainscoe Plumbing & Heating Ltd,0
South Ribble Borough Council,http://statistics.data.gov.uk/id/local-authority/30UE,Local Tax Collection,Bank Charges,4811,post office,17/03/2022,0000476447,188.60,Revenue,ALLPAY LTD,0
South Ribble Borough Council,http://statistics.data.gov.uk/id/local-authority/30UE,Local Tax Collection,Bank Charges,4811,paypoint,17/03/2022,0000476447,58.59,Revenue,ALLPAY LTD,0
South Ribble Borough Council,http://statistics.data.gov.uk/id/local-authority/30UE,Local Tax Collection,Bank Charges,4811,webcon,17/03/2022,0000476447,46.00,Revenue,ALLPAY LTD,0
South Ribble Borough Council,http://statistics.data.gov.uk/id/local-authority/30UE,Local Tax Collection,Bank Charges,4811,post office,30/03/2022,0000476866,424.58,Revenue,ALLPAY LTD,0
South Ribble Borough Council,http://statistics.data.gov.uk/id/local-authority/30UE,Local Tax Collection,Bank Charges,4811,paypoint,30/03/2022,0000476866,72.92,Revenue,ALLPAY LTD,0
South Ribble Borough Council,http://statistics.data.gov.uk/id/local-authority/30UE,Local Tax Collection,Bank Charges,4811,webconn,30/03/2022,0000476866,46.00,Revenue,ALLPAY LTD,0
South Ribble Borough Council,http://statistics.data.gov.uk/id/local-authority/30UE,Regulatory Services,Poisons & Baits,4041,Fleetwood Police Station - Bird Deterrents Labour - 600.00 Consumables - 60.00,09/03/2022,0000476108,660.00,Revenue,Alpha Pest Control Ltd,0
South Ribble Borough Council,http://statistics.data.gov.uk/id/local-authority/30UE,Regulatory Services,Poisons & Baits,4041,Supply and installation of netting to garage at Blackpool Police Station as per your quotation,31/03/2022,0000477539,"1,985.64",Revenue,Alpha Pest Control Ltd,0
South Ribble Borough Council,http://statistics.data.gov.uk/id/local-authority/30UE,Recreation & Sport,Water Charges(Metered),2511,7/1 to 6/2,02/03/2022,0000476046,"1,343.99",Revenue,Anglian Water Business (National) t/as Wave Utilit,0
South Ribble Borough Council,http://statistics.data.gov.uk/id/local-authority/30UE,Recreation & Sport,Water Charges(Metered),2511,7/1 to 6/2,02/03/2022,0000476048,339.31,Revenue,Anglian Water Business (National) t/as Wave Utilit,0
South Ribble Borough Council,http://statistics.data.gov.uk/id/local-authority/30UE,Recreation & Sport,Water Charges(Metered),2511,07/02/22 - 06/03/22,28/03/2022,0000477372,865.07,Revenue,Anglian Water Business (National) t/as Wave Utilit,0
South Ribble Borough Council,http://statistics.data.gov.uk/id/local-authority/30UE,Recreation & Sport,Water Charges(Metered),2511,07/02/22 - 06/03/2022,28/03/2022,0000477373,"1,232.99",Revenue,Anglian Water Business (National) t/as Wave Utilit,0
South Ribble Borough Council,http://statistics.data.gov.uk/id/local-authority/30UE,Recreation & Sport,Water Charges(Metered),2511,07/02/2022 - 06/03/2022,28/03/2022,0000477375,821.01,Revenue,Anglian Water Business (National) t/as Wave Utilit,0
South Ribble Borough Council,http://statistics.data.gov.uk/id/local-authority/30UE,Recreation & Sport,Water Charges(Metered),2511,07/02/22 - 06/03/2022,28/03/2022,0000477510,318.72,Revenue,Anglian Water Business (National) t/as Wave Utilit,0
South Ribble Borough Council,http://statistics.data.gov.uk/id/local-authority/30UE,Elections,Polling Centre Costs,4421,Use of St Teresa's Social Club for the Lancashire County Council and Police and Crime Commissioner Elections on 6 May 2021.,30/03/2022,0000476762,485.00,Revenue,APCMC LTD,0
South Ribble Borough Council,http://statistics.data.gov.uk/id/local-authority/30UE,Elections,Polling Centre Costs,4421,.,30/03/2022,0000476762,485.00,Revenue,APCMC LTD,0
South Ribble Borough Council,http://statistics.data.gov.uk/id/local-authority/30UE,Capital,Capital Grant,C570,DFG WORK FOR ADAPTATION FOR LEVEL ACCESS SHOWER AT ADDRESS REDACTED AS PER SRBC PLANS AND QUOTE SUPPLIED,30/03/2022,0000477538,"4,784.64",Revenue,APG DOMESTIC SERVICES,0
South Ribble Borough Council,http://statistics.data.gov.uk/id/local-authority/30UE,Central Support Services,Applications Systems,4248,iConnect Hosted (Additional User) Annual charge for software maintenance commencing April 2022 As per maintenance/licence agreement,28/03/2022,0000477266,275.00,Revenue,APT LTD,0
South Ribble Borough Council,http://statistics.data.gov.uk/id/local-authority/30UE,Recreation & Sport,Planned Annual Repair & Maintenance,2021,"2021/2022 annual contact for the maintenance of the hoist including LOLER for Leyland, Bamber Bridge & Penwortham Leisure Centres",23/03/2022,0000476734,311.00,Revenue,Arjo UK Ltd,0
South Ribble Borough Council,http://statistics.data.gov.uk/id/local-authority/30UE,Community Development,Contributions to Other Bodies,4730,SRIT Case - Full pack and unpack of residents property and relocation to new house.,02/03/2022,0000476217,"1,170.00",Revenue,Army Ants Removers Ltd,0
South Ribble Borough Council,http://statistics.data.gov.uk/id/local-authority/30UE,Community Development,Miscellaneous Expenses,4851,To supply catering for the COVID thankyou event 5th April 2022,28/03/2022,0000477362,500.00,Revenue,Artisan Deli Limited,0
South Ribble Borough Council,http://statistics.data.gov.uk/id/local-authority/30UE,Central Support Services,Short Course,1402,NAME REDACTED TO ATTEND 'KEY CONSIDERATIONS FOR RETURNING OFFICERS AND THEIR DEPUTIES' COURSE ON 30 MARCH 2022,09/03/2022,0000476265,250.00,Revenue,ASSOC OF ELECTORAL ADMINISTRATORS LTD,0
South Ribble Borough Council,http://statistics.data.gov.uk/id/local-authority/30UE,Economic Development,Public Relations Strategy,4848,Attain Training - 2 hour session for 6 people,09/03/2022,0000473783,275.00,Revenue,ATTAIN GROUP LIMITED,0
South Ribble Borough Council,http://statistics.data.gov.uk/id/local-authority/30UE,Economic Development,Miscellaneous Expenses,4851,Annual hosting for leylandfestival.co.uk it 299.00 Annual SSL certificate 99,23/03/2022,0000476696,398.00,Revenue,ATTAIN GROUP LIMITED,0
South Ribble Borough Council,http://statistics.data.gov.uk/id/local-authority/30UE,Recycling,Contract Printing,4127,"40,000x A6 Wheelie Bin Stickers (on rolls) as per quote 164838",02/03/2022,0000476113,"1,680.00",Revenue,B & D PRINT SERVICES LTD,0
South Ribble Borough Council,http://statistics.data.gov.uk/id/local-authority/30UE,Capital,Cap Contract Payment,C230,Salvia,31/03/2022,0000477536,76.80,Revenue,BANNISTER HALL LANDSCAPE SUPPLIES,0
South Ribble Borough Council,http://statistics.data.gov.uk/id/local-authority/30UE,Capital,Cap Contract Payment,C230,Potentilla Abbotswood,31/03/2022,0000477536,63.00,Revenue,BANNISTER HALL LANDSCAPE SUPPLIES,0
South Ribble Borough Council,http://statistics.data.gov.uk/id/local-authority/30UE,Capital,Cap Contract Payment,C230,Spirea Vanhouttei,31/03/2022,0000477536,51.60,Revenue,BANNISTER HALL LANDSCAPE SUPPLIES,0
South Ribble Borough Council,http://statistics.data.gov.uk/id/local-authority/30UE,Capital,Cap Contract Payment,C230,Astilbe,31/03/2022,0000477536,57.60,Revenue,BANNISTER HALL LANDSCAPE SUPPLIES,0
South Ribble Borough Council,http://statistics.data.gov.uk/id/local-authority/30UE,Capital,Cap Contract Payment,C230,Hebe,31/03/2022,0000477536,81.60,Revenue,BANNISTER HALL LANDSCAPE SUPPLIES,0
South Ribble Borough Council,http://statistics.data.gov.uk/id/local-authority/30UE,Capital,Cap Contract Payment,C230,Hydrangea,31/03/2022,0000477536,88.00,Revenue,BANNISTER HALL LANDSCAPE SUPPLIES,0
South Ribble Borough Council,http://statistics.data.gov.uk/id/local-authority/30UE,Capital,Cap Contract Payment,C230,Phytostegia,31/03/2022,0000477536,21.60,Revenue,BANNISTER HALL LANDSCAPE SUPPLIES,0
South Ribble Borough Council,http://statistics.data.gov.uk/id/local-authority/30UE,Short Term Creditors,Amount Paid,0030,28th february,31/03/2022,0000466045,"8,484.93",Revenue,Barclays Bank Plc,0
South Ribble Borough Council,http://statistics.data.gov.uk/id/local-authority/30UE,Short Term Creditors,Amount Paid,0030,28th march,31/03/2022,0000466292,"11,823.79",Revenue,Barclays Bank Plc,0
South Ribble Borough Council,http://statistics.data.gov.uk/id/local-authority/30UE,Short Term Creditors,Amount Paid,0030,28 April 2021,31/03/2022,0000469302,"16,738.05",Revenue,Barclays Bank Plc,0
South Ribble Borough Council,http://statistics.data.gov.uk/id/local-authority/30UE,Short Term Creditors,Amount Paid,0030,28 May 2021,31/03/2022,0000469303,"7,998.54",Revenue,Barclays Bank Plc,0
South Ribble Borough Council,http://statistics.data.gov.uk/id/local-authority/30UE,Short Term Creditors,Amount Paid,0030,28 jun 21,31/03/2022,0000471798,"7,958.67",Revenue,Barclays Bank Plc,0
South Ribble Borough Council,http://statistics.data.gov.uk/id/local-authority/30UE,Short Term Creditors,Amount Paid,0030,28 june 21,31/03/2022,0000471799,"6,858.11",Revenue,Barclays Bank Plc,0
South Ribble Borough Council,http://statistics.data.gov.uk/id/local-authority/30UE,Short Term Creditors,Amount Paid,0030,28 july 21,31/03/2022,0000471800,"7,924.81",Revenue,Barclays Bank Plc,0
South Ribble Borough Council,http://statistics.data.gov.uk/id/local-authority/30UE,Short Term Creditors,Amount Paid,0030,28th sept,31/03/2022,0000472759,"6,683.61",Revenue,Barclays Bank Plc,0
South Ribble Borough Council,http://statistics.data.gov.uk/id/local-authority/30UE,Short Term Creditors,Amount Paid,0030,28th sept 2021,31/03/2022,0000474000,"7,601.79",Revenue,Barclays Bank Plc,0
South Ribble Borough Council,http://statistics.data.gov.uk/id/local-authority/30UE,Capital,Cap Contract Payment,C230,For the provision of Bent Lane soil testing and reports,02/03/2022,0000476220,"3,025.00",Revenue,BEK Enviro,0
South Ribble Borough Council,http://statistics.data.gov.uk/id/local-authority/30UE,Surplus or Deficit on Trading,Reactive Repair & Maintenance,2020,"To remove wall mounted wiring, fan feed, hand dryer and external W.C power. Install 4 dimplex wall mounted heaters throughout the building.",02/03/2022,0000476114,"1,500.00",Revenue,BELEC ELECTRICAL LTD,0
South Ribble Borough Council,http://statistics.data.gov.uk/id/local-authority/30UE,Surplus or Deficit on Trading,Reactive Repair & Maintenance,2020,Please investigate the power loss to the cafe @ Hurst Grange Park.,02/03/2022,0000476114,150.00,Revenue,BELEC ELECTRICAL LTD,0
South Ribble Borough Council,http://statistics.data.gov.uk/id/local-authority/30UE,Open Spaces,GM Refurbishment,4657,"Cable etc and connection of illuminated bollards at Hurst Grange Park, Penwortham",09/03/2022,0000476277,"2,397.50",Revenue,BELEC ELECTRICAL LTD,0
South Ribble Borough Council,http://statistics.data.gov.uk/id/local-authority/30UE,Surplus or Deficit on Trading,Reactive Repair & Maintenance,2020,"Consumer unit upgrade, testing and completion cert, lighting replacement, Dual RCD consumer unit metal clad, as per NAME REDACTED",02/03/2022,0000476278,988.49,Revenue,BELEC ELECTRICAL LTD,0
South Ribble Borough Council,http://statistics.data.gov.uk/id/local-authority/30UE,Parking Services,External Contractors Charges,4570,Repairs to bus shelter at Middleforth as per your quotation,09/03/2022,0000476279,685.00,Revenue,BELEC ELECTRICAL LTD,0
South Ribble Borough Council,http://statistics.data.gov.uk/id/local-authority/30UE,Central Support Services,Reactive Repair & Maintenance,2020,Please repair the fault on the Civic suite doors (fire break test issues),09/03/2022,0000476418,108.00,Revenue,BELEC ELECTRICAL LTD,0
South Ribble Borough Council,http://statistics.data.gov.uk/id/local-authority/30UE,Economic Development,Reactive Repair & Maintenance,2020,Please provide artic blue cable to Leyland market,09/03/2022,0000476418,194.00,Revenue,BELEC ELECTRICAL LTD,0
South Ribble Borough Council,http://statistics.data.gov.uk/id/local-authority/30UE,Economic Development,Reactive Repair & Maintenance,2020,Please attend Leyland market to repair the damaged socket in the external car park feeder pillar box,09/03/2022,0000476418,84.00,Revenue,BELEC ELECTRICAL LTD,0
South Ribble Borough Council,http://statistics.data.gov.uk/id/local-authority/30UE,Central Support Services,Reactive Repair & Maintenance,2020,Please repair the faulty light switch in the estates office,09/03/2022,0000476418,58.00,Revenue,BELEC ELECTRICAL LTD,0
South Ribble Borough Council,http://statistics.data.gov.uk/id/local-authority/30UE,Central Support Services,Reactive Repair & Maintenance,2020,Please remove the old wiring and Chubb door entry system to the 1st floor councillors office,09/03/2022,0000476418,54.00,Revenue,BELEC ELECTRICAL LTD,0
South Ribble Borough Council,http://statistics.data.gov.uk/id/local-authority/30UE,Surplus or Deficit on Trading,Planned Annual Repair & Maintenance,2021,Annual Contract 2021/2022 for External Lights/Emergency Lighting Maintenance at Civic Centre,28/03/2022,0000477343,432.00,Revenue,BELEC ELECTRICAL LTD,0
South Ribble Borough Council,http://statistics.data.gov.uk/id/local-authority/30UE,Surplus or Deficit on Trading,Planned Annual Repair & Maintenance,2021,Annual Contract 2021/2022 External Lighting/Emergency Lighting Maintenance at Higher Walton Community Centre,28/03/2022,0000477343,162.00,Revenue,BELEC ELECTRICAL LTD,0
South Ribble Borough Council,http://statistics.data.gov.uk/id/local-authority/30UE,Economic Development,Planned Annual Repair & Maintenance,2021,Annual Contract 2021/2022 External Lights/Emergency Lighting Maintenance at Leyland Market,28/03/2022,0000477343,270.00,Revenue,BELEC ELECTRICAL LTD,0
South Ribble Borough Council,http://statistics.data.gov.uk/id/local-authority/30UE,Surplus or Deficit on Trading,Planned Annual Repair & Maintenance,2021,Annual Contract 2021/2022 External Lighting/Emergency Lighting Maintenance at Longton Brickcroft,28/03/2022,0000477343,216.00,Revenue,BELEC ELECTRICAL LTD,0
South Ribble Borough Council,http://statistics.data.gov.uk/id/local-authority/30UE,Central Support Services,Planned Annual Repair & Maintenance,2021,2021/2022 annual contract for external lighting maintenance at Moss Side Depot,28/03/2022,0000477343,646.00,Revenue,BELEC ELECTRICAL LTD,0
South Ribble Borough Council,http://statistics.data.gov.uk/id/local-authority/30UE,Surplus or Deficit on Trading,Reactive Repair & Maintenance,2020,"Please remove all old light fittings at 78 Towngate for false ceiling installation, fitting 8x 600x600 LED lights once the new ceilings are fitted.",28/03/2022,0000477348,500.00,Revenue,BELEC ELECTRICAL LTD,0
South Ribble Borough Council,http://statistics.data.gov.uk/id/local-authority/30UE,Central Support Services,Lancashire Payroll Service,4531,PROVISION OF PAYROLL SERVICES FOR 7 MONTHS - SEPTEMBER 2021 - MARCH 2022.,28/03/2022,0000476561,"6,174.00",Revenue,Blackpool Council,0
South Ribble Borough Council,http://statistics.data.gov.uk/id/local-authority/30UE,Democratic Represent and  Mgnt,Cost of Drinks,4311,"EC06113362 Brakes Order, Coffee beans, granules, sweetener & trolley's",28/03/2022,0000472410,267.56,Revenue,Brakes Broz Ltd,0
South Ribble Borough Council,http://statistics.data.gov.uk/id/local-authority/30UE,Democratic Represent and  Mgnt,Operational Equip & Tools,4010,"EC06113362 Brakes Order, Coffee beans, granules, sweetener & trolley's",28/03/2022,0000472410,59.99,Revenue,Brakes Broz Ltd,0
South Ribble Borough Council,http://statistics.data.gov.uk/id/local-authority/30UE,Capital,Cap Contract Payment,C230,"Description - tennis centre works - Document production for tennis centre carpark contract, as per NAME REDACTED Cost- 1000 +vat",28/03/2022,0000476825,"1,000.00",Revenue,BRAMLEY-PATE & PARTNERS,0
South Ribble Borough Council,http://statistics.data.gov.uk/id/local-authority/30UE,Central Support Services,Reactive Repair & Maintenance,2020,To undertake works to the pump in the banqueting suite at the Civic Centre,09/03/2022,0000476285,288.95,Revenue,BRITISH GAS SERVICES (COMMERCIAL) LTD,0
South Ribble Borough Council,http://statistics.data.gov.uk/id/local-authority/30UE,Surplus or Deficit on Trading,Reactive Repair & Maintenance,2020,"Please undertake works to replace the programmable room stat at North Lodge, Worden park",09/03/2022,0000476370,359.60,Revenue,BRITISH GAS SERVICES (COMMERCIAL) LTD,0
South Ribble Borough Council,http://statistics.data.gov.uk/id/local-authority/30UE,Cash and Cash Equivalents,Amount Received,0140,AFTERNOON TEA FOR 25 PEOPLE @ 13 PER HEAD ON FRIDAY 25 FEBRUARY 2022,28/03/2022,0000476864,325.00,Revenue,BROTHERS OF CHARITY SERVICES,0
South Ribble Borough Council,http://statistics.data.gov.uk/id/local-authority/30UE,Central Support Services,Materials General,4040,15x Broxap's Derby Slimline Litter Bin = 266.00 each black and gold with new logo,28/03/2022,0000477298,"3,990.00",Revenue,BROXAP LTD,0
South Ribble Borough Council,http://statistics.data.gov.uk/id/local-authority/30UE,Central Support Services,Materials General,4040,1 x hub seal GX19DZF JFC17839,02/03/2022,0000475948,90.33,Revenue,Bucher Municipal Ltd,0
South Ribble Borough Council,http://statistics.data.gov.uk/id/local-authority/30UE,Central Support Services,Materials General,4040,1 x tie rod GX19DZF JFC17839,02/03/2022,0000475948,487.26,Revenue,Bucher Municipal Ltd,0
South Ribble Borough Council,http://statistics.data.gov.uk/id/local-authority/30UE,Central Support Services,Materials General,4040,Sight glass GX19 DZF JFC18106,30/03/2022,0000476806,315.44,Revenue,Bucher Municipal Ltd,0
South Ribble Borough Council,http://statistics.data.gov.uk/id/local-authority/30UE,Surplus or Deficit on Trading,Reactive Repair & Maintenance,2020,14 ton of 40mm- dust crusher run (stone). For Penwortham Holme Recreation Ground.,02/03/2022,0000476291,367.93,Revenue,C & W BERRY LTD,0
South Ribble Borough Council,http://statistics.data.gov.uk/id/local-authority/30UE,Central Support Services,Materials General,4040,1 hydraulic filter kit PO20 ZRX JFC17975,09/03/2022,0000476250,356.36,Revenue,C P DAVIDSON & SONS LTD,0
South Ribble Borough Council,http://statistics.data.gov.uk/id/local-authority/30UE,Central Support Services,Materials General,4040,"1x hydraulic filter kit, PO20 ZRV, JFC18118 (NAME REDACTED)",28/03/2022,0000477267,358.54,Revenue,C P DAVIDSON & SONS LTD,0
South Ribble Borough Council,http://statistics.data.gov.uk/id/local-authority/30UE,Central Support Services,Materials General,4040,1 hydraulic filter kit PO20ZRY JFC18152,28/03/2022,0000477544,358.54,Revenue,C P DAVIDSON & SONS LTD,0
South Ribble Borough Council,http://statistics.data.gov.uk/id/local-authority/30UE,Central Support Services,Agency Staff,1121,Planning consultant to deal with Planning applications,02/03/2022,0000476157,"5,487.96",Revenue,CAPITA PROPERTY AND INFRASTRUCTURE LTD,0
South Ribble Borough Council,http://statistics.data.gov.uk/id/local-authority/30UE,Recreation & Sport,Licences Fee General,488B,apr-jun22,30/03/2022,0000477247,"1,125.00",Revenue,Carr Street Community Centre,0
South Ribble Borough Council,http://statistics.data.gov.uk/id/local-authority/30UE,Central Support Services,Agency Staff,1121,"Provision of a temporary Auditor, commencing 29/11/2021",02/03/2022,0000476020,480.00,Revenue,Castlefield Recruitment Limited,0
South Ribble Borough Council,http://statistics.data.gov.uk/id/local-authority/30UE,Central Support Services,Short Course,1402,"3 Day First Aid at Work course, 14th, 15th & 16th February 2022, 2 Delegates @ 135 + VAT each, Names - NAMES REDACTED",02/03/2022,0000475943,270.00,Revenue,Centaur Training Services (North West) Ltd,0
South Ribble Borough Council,http://statistics.data.gov.uk/id/local-authority/30UE,Community Development,External Contractors Charges,4570,February First Aid Course for Fox Lane Sports and Social Club,02/03/2022,0000476240,625.00,Revenue,Centaur Training Services (North West) Ltd,0
South Ribble Borough Council,http://statistics.data.gov.uk/id/local-authority/30UE,Recreation & Sport,Consumable Clng Materials,2711,PTCH1003 HTH Dedusted Granules 25Kg 18 @ 116 As per quote Sales Order No 25569,02/03/2022,0000475855,"2,088.00",Revenue,Chemsol Cymru Ltd,0
South Ribble Borough Council,http://statistics.data.gov.uk/id/local-authority/30UE,Homelessness,Temporary Accommodation,5311,"NAMES REDACTED December 2021 - 31st Jan 2022, December 2021 - 31st Jan 2022, For period 13th December 2021 - 14th Jan 2021",09/03/2022,0000476330,"3,901.63",Revenue,CHORLEY BOROUGH COUNCIL,0
South Ribble Borough Council,http://statistics.data.gov.uk/id/local-authority/30UE,Homelessness,Temporary Accommodation,5311,personal charges,09/03/2022,0000476330,60.51,Revenue,CHORLEY BOROUGH COUNCIL,0
South Ribble Borough Council,http://statistics.data.gov.uk/id/local-authority/30UE,Corporate Management,Chorley Shared Services Costs Staffing,5500,Shared Services Recharges for Quarter 3 21/22,30/03/2022,0000477293,"359,072.50",Revenue,CHORLEY BOROUGH COUNCIL,0
South Ribble Borough Council,http://statistics.data.gov.uk/id/local-authority/30UE,Surplus or Deficit on Trading,Planned Annual Repair & Maintenance,2021,"2021 / 2022 fees for the maintenance of the intruder alarm at the Museum, Church Road, Leyland - contract number 1076775",23/03/2022,0000476759,840.02,Revenue,CHUBB LTD,0
South Ribble Borough Council,http://statistics.data.gov.uk/id/local-authority/30UE,Surplus or Deficit on Trading,Intruder Alarm,2035,2021 / 2022 fees for the maintenance of the intruder alarms at Worden Arts Centre -site ID 1076780,23/03/2022,0000476808,972.26,Revenue,CHUBB LTD,0
South Ribble Borough Council,http://statistics.data.gov.uk/id/local-authority/30UE,Central Support Services,Intruder Alarm,2035,"2021 / 2022 annual fees for the monitoring & maintenance of the intruder alarm system at the Civic Centre, Leyland",23/03/2022,0000476809,"2,157.90",Revenue,CHUBB LTD,0
South Ribble Borough Council,http://statistics.data.gov.uk/id/local-authority/30UE,Economic Development,Intruder Alarm,2035,2021 / 2022 annual fees for the service & monitoring of the Intruder alarm at Leyland market site ID1584234,23/03/2022,0000476810,419.00,Revenue,CHUBB LTD,0
South Ribble Borough Council,http://statistics.data.gov.uk/id/local-authority/30UE,Central Support Services,Intruder Alarm,2035,"2021 / 2022 annual fees for the monitoring & maintenance of the intruder alarm at Moss Side Depot, 81 Bison Place, Leyland Site ID1584236",23/03/2022,0000476811,540.00,Revenue,CHUBB LTD,0
South Ribble Borough Council,http://statistics.data.gov.uk/id/local-authority/30UE,Central Support Services,Intruder Alarm,2035,2021 / 2022 annual fee for the monitoring & maintenance of the CCTV system at the Civic Centre ref 1543140,23/03/2022,0000476812,"2,997.37",Revenue,CHUBB LTD,0
South Ribble Borough Council,http://statistics.data.gov.uk/id/local-authority/30UE,Central Support Services,Intruder Alarm,2035,For additional costs due to call outs exceeded original amount - to cover until March 2022,30/03/2022,0000477518,334.55,Revenue,CHUBB LTD,0
South Ribble Borough Council,http://statistics.data.gov.uk/id/local-authority/30UE,Central Support Services,Materials General,4040,"1 Service Kit, 2 Check Straps, 1 Seat Belt Buckle PJ62UCM JFC17928",02/03/2022,0000476242,480.50,Revenue,CICELEY COMMERCIALS LTD,0
South Ribble Borough Council,http://statistics.data.gov.uk/id/local-authority/30UE,Central Support Services,Materials General,4040,1 FILTER KIT PO20 ZRX JFC17975,09/03/2022,0000476420,414.40,Revenue,CICELEY COMMERCIALS LTD,0
South Ribble Borough Council,http://statistics.data.gov.uk/id/local-authority/30UE,Central Support Services,Materials General,4040,"1x full filter kit, 1x brake pedal rubber, PO20 ZRV, JFC18118 (NAME REDACTED)",28/03/2022,0000477271,260.03,Revenue,CICELEY COMMERCIALS LTD,0
South Ribble Borough Council,http://statistics.data.gov.uk/id/local-authority/30UE,Corporate Management,Professional Fees,4510,Practical Support Payment - Help Through Crisis (Match Funding),31/03/2022,0000477586,"37,500.00",Revenue,Citizens Advice Lancashire,0
South Ribble Borough Council,http://statistics.data.gov.uk/id/local-authority/30UE,Central Support Services,Applications Systems,4248,"2022 - 2023 Licence, Support and Maintenance",09/03/2022,0000476161,"16,726.38",Revenue,CIVICA UK LTD,0
South Ribble Borough Council,http://statistics.data.gov.uk/id/local-authority/30UE,Homelessness,Contributions to Other Bodies,4730,NAME REDACTED 21/02/2022 - 28/02/2022,17/03/2022,0000476495,315.00,Revenue,CLAREMONT HOTEL,0
South Ribble Borough Council,http://statistics.data.gov.uk/id/local-authority/30UE,Homelessness,Temporary Accommodation,5311,NAME REDACTED 21/02/2022-28/02/2022,17/03/2022,0000476495,315.00,Revenue,CLAREMONT HOTEL,0
South Ribble Borough Council,http://statistics.data.gov.uk/id/local-authority/30UE,Homelessness,Contributions to Other Bodies,4730,NAME REDACTED 28/02/2022 - 07/03/2022,17/03/2022,0000476496,315.00,Revenue,CLAREMONT HOTEL,0
South Ribble Borough Council,http://statistics.data.gov.uk/id/local-authority/30UE,Homelessness,Temporary Accommodation,5311,NAME REDACTED 28/02/2022-07/03/2022,17/03/2022,0000476496,315.00,Revenue,CLAREMONT HOTEL,0
South Ribble Borough Council,http://statistics.data.gov.uk/id/local-authority/30UE,Homelessness,Temporary Accommodation,5311,NAME REDACTED 07/03/2022-14/03/2022,23/03/2022,0000476730,315.00,Revenue,CLAREMONT HOTEL,0
South Ribble Borough Council,http://statistics.data.gov.uk/id/local-authority/30UE,Homelessness,Contributions to Other Bodies,4730,NAME REDACTED 07/03/2022-14/03/2022,23/03/2022,0000476730,315.00,Revenue,CLAREMONT HOTEL,0
South Ribble Borough Council,http://statistics.data.gov.uk/id/local-authority/30UE,Homelessness,Contributions to Other Bodies,4730,NAME REDACTED 14/03/2022 - 16/03/2022,30/03/2022,0000477515,135.00,Revenue,CLAREMONT HOTEL,0
South Ribble Borough Council,http://statistics.data.gov.uk/id/local-authority/30UE,Homelessness,Contributions to Other Bodies,4730,NAME REDACTED 14/03/2022 to year end 31/03/2022.,30/03/2022,0000477515,765.00,Revenue,CLAREMONT HOTEL,0
South Ribble Borough Council,http://statistics.data.gov.uk/id/local-authority/30UE,Homelessness,Temporary Accommodation,5311,NAME REDACTED 14/03/2022 to year end 31/03/2022.,30/03/2022,0000477515,765.00,Revenue,CLAREMONT HOTEL,0
South Ribble Borough Council,http://statistics.data.gov.uk/id/local-authority/30UE,Homelessness,Contributions to Other Bodies,4730,NAME REDACTED 07/03/22-14/03/2022,30/03/2022,0000477516,315.00,Revenue,CLAREMONT HOTEL,0
South Ribble Borough Council,http://statistics.data.gov.uk/id/local-authority/30UE,Homelessness,Contributions to Other Bodies,4730,NAME REDACTED 10/03/2022-14/03/2022,30/03/2022,0000477516,180.00,Revenue,CLAREMONT HOTEL,0
South Ribble Borough Council,http://statistics.data.gov.uk/id/local-authority/30UE,Capital,Cap Contract Payment,C230,Please undertake remediation works at Bent Lane Leyland as agreed with SRBC Regeneration department,02/03/2022,0000476042,"3,987.50",Revenue,CLIVE HURT (PLANT HIRE) LTD,0
South Ribble Borough Council,http://statistics.data.gov.uk/id/local-authority/30UE,Capital,Cap Contract Payment,C230,Please undertake remediation works at Bent Lane Leyland as agreed with SRBC Regeneration department,28/03/2022,0000476838,"3,190.00",Revenue,CLIVE HURT (PLANT HIRE) LTD,0
South Ribble Borough Council,http://statistics.data.gov.uk/id/local-authority/30UE,Capital,Cap Contract Payment,C230,Please undertake remediation works at Bent Lane Leyland as agreed with SRBC Regeneration department,30/03/2022,0000477514,"7,177.50",Revenue,CLIVE HURT (PLANT HIRE) LTD,0
South Ribble Borough Council,http://statistics.data.gov.uk/id/local-authority/30UE,Capital,Cap Contract Payment,C230,"For the provision of works to the pavilion, car park extension and associated works at Bamber Bridge sports hub",28/03/2022,0000476823,"84,378.37",Revenue,Code Building Solutions Limited,0
South Ribble Borough Council,http://statistics.data.gov.uk/id/local-authority/30UE,Short Term Creditors,Amount Paid,0030,APRIL 2021 - CHILDCARE VOUCHERS,31/03/2022,0000466540,"1,517.00",Revenue,COMPUTERSHARE VOUCHER SERVICES,0
South Ribble Borough Council,http://statistics.data.gov.uk/id/local-authority/30UE,Short Term Creditors,Amount Paid,0030,MAY 2021 - CHILDCARE VOUCHERS,31/03/2022,0000468746,"1,517.00",Revenue,COMPUTERSHARE VOUCHER SERVICES,0
South Ribble Borough Council,http://statistics.data.gov.uk/id/local-authority/30UE,Short Term Creditors,Amount Paid,0030,JUNE 2021 - CHILDCARE VOUCHERS,31/03/2022,0000468747,"1,517.00",Revenue,COMPUTERSHARE VOUCHER SERVICES,0
South Ribble Borough Council,http://statistics.data.gov.uk/id/local-authority/30UE,Short Term Creditors,Amount Paid,0030,JULY 2021 - CHILDCARE VOUCHERS,31/03/2022,0000469978,"1,517.00",Revenue,COMPUTERSHARE VOUCHER SERVICES,0
South Ribble Borough Council,http://statistics.data.gov.uk/id/local-authority/30UE,Short Term Creditors,Amount Paid,0030,AUGUST 2021 - CHILDCARE VOUCHERS,31/03/2022,0000471332,"1,517.00",Revenue,COMPUTERSHARE VOUCHER SERVICES,0
South Ribble Borough Council,http://statistics.data.gov.uk/id/local-authority/30UE,Short Term Creditors,Amount Paid,0030,SEPTEMBER 2021 - CHILDCARE VOUCHERS,31/03/2022,0000472688,"1,094.00",Revenue,COMPUTERSHARE VOUCHER SERVICES,0
South Ribble Borough Council,http://statistics.data.gov.uk/id/local-authority/30UE,Short Term Creditors,Amount Paid,0030,OCTOBER 2021 - CHILDCARE VOUCHERS,31/03/2022,0000472689,"1,317.00",Revenue,COMPUTERSHARE VOUCHER SERVICES,0
South Ribble Borough Council,http://statistics.data.gov.uk/id/local-authority/30UE,Short Term Creditors,Amount Paid,0030,NOVEMBER 2021 - CHILDCARE VOUCHERS,31/03/2022,0000473197,"1,317.00",Revenue,COMPUTERSHARE VOUCHER SERVICES,0
South Ribble Borough Council,http://statistics.data.gov.uk/id/local-authority/30UE,Short Term Creditors,Amount Paid,0030,DECEMBER 2021 - CHILDCARE VOUCHERS,31/03/2022,0000475901,"1,144.00",Revenue,COMPUTERSHARE VOUCHER SERVICES,0
South Ribble Borough Council,http://statistics.data.gov.uk/id/local-authority/30UE,Short Term Creditors,Amount Paid,0030,JANUARY 2022 - CHILDCARE VOUCHERS,31/03/2022,0000475902,"1,144.00",Revenue,COMPUTERSHARE VOUCHER SERVICES,0
South Ribble Borough Council,http://statistics.data.gov.uk/id/local-authority/30UE,Short Term Creditors,Amount Paid,0030,FEBRUARY 2022 - CHILDCARE VOUCHERS,31/03/2022,0000475903,"1,144.00",Revenue,COMPUTERSHARE VOUCHER SERVICES,0
South Ribble Borough Council,http://statistics.data.gov.uk/id/local-authority/30UE,Short Term Creditors,Amount Paid,0030,MARCH 2022 - CHILDCARE VOUCHERS,31/03/2022,0000476539,"1,367.00",Revenue,COMPUTERSHARE VOUCHER SERVICES,0
South Ribble Borough Council,http://statistics.data.gov.uk/id/local-authority/30UE,Recreation & Sport,Planned Annual Repair & Maintenance,2021,2021 / 2022 annual contract for  2 visits per year for air conditioning maintenance at Penwortham Leisure centre as per your ref AMS4316,09/03/2022,0000476391,300.00,Revenue,Coolair Services Limited,0
South Ribble Borough Council,http://statistics.data.gov.uk/id/local-authority/30UE,Recreation & Sport,Planned Annual Repair & Maintenance,2021,2021 / 2022 annual contract for  2 visits per year for air conditioning maintenance at Bamber Bridge leisure centre as per your ref AMS4315,09/03/2022,0000476421,300.00,Revenue,Coolair Services Limited,0
South Ribble Borough Council,http://statistics.data.gov.uk/id/local-authority/30UE,Central Support Services,Microfilming General,4151,Renewal of service contract - for microfiche,28/03/2022,0000477297,410.00,Revenue,Covergold Limited,0
South Ribble Borough Council,http://statistics.data.gov.uk/id/local-authority/30UE,Local Tax Collection,Postage General,4291,Postage November to March 2022,02/03/2022,0000476043,675.59,Revenue,CRITIQOM,0
South Ribble Borough Council,http://statistics.data.gov.uk/id/local-authority/30UE,Local Tax Collection,Stationery General,4130,Stationery November to March 2022,02/03/2022,0000476170,"1,040.00",Revenue,CRITIQOM,0
South Ribble Borough Council,http://statistics.data.gov.uk/id/local-authority/30UE,Local Tax Collection,Postage General,4291,Postage November to March 2022,02/03/2022,0000476171,273.49,Revenue,CRITIQOM,0
South Ribble Borough Council,http://statistics.data.gov.uk/id/local-authority/30UE,Development Control,Professional Fees,4510,Neighbour consults - mailout for Windmill farm application. Re-consult on amended plans.,09/03/2022,0000476378,286.67,Revenue,CRITIQOM,0
South Ribble Borough Council,http://statistics.data.gov.uk/id/local-authority/30UE,Local Tax Collection,Postage General,4291,Postage November to March 2022,09/03/2022,0000476379,574.88,Revenue,CRITIQOM,0
South Ribble Borough Council,http://statistics.data.gov.uk/id/local-authority/30UE,Local Tax Collection,Postage General,4291,Postage November to March 2022,17/03/2022,0000476644,"1,025.94",Revenue,CRITIQOM,0
South Ribble Borough Council,http://statistics.data.gov.uk/id/local-authority/30UE,Local Tax Collection,Postage General,4291,Postage November to March 2022,23/03/2022,0000476728,305.16,Revenue,CRITIQOM,0
South Ribble Borough Council,http://statistics.data.gov.uk/id/local-authority/30UE,Local Tax Collection,Stationery General,4130,EOY CTAX BOOKLET,23/03/2022,0000476814,"4,983.16",Revenue,CRITIQOM,0
South Ribble Borough Council,http://statistics.data.gov.uk/id/local-authority/30UE,Local Tax Collection,Postage General,4291,Postage November to March 2022,28/03/2022,0000477545,595.44,Revenue,CRITIQOM,0
South Ribble Borough Council,http://statistics.data.gov.uk/id/local-authority/30UE,Capital,Capital Grant,C570,DFG WORK FOR ADAPTATION FOR LEVEL ACCESS BATHROOM AT ADDRESS REDACTED AS PER SRBC PLANS AND QUOTE,23/03/2022,0000476803,"5,500.00",Revenue,Croston Plumbing & Heating Ltd,0
South Ribble Borough Council,http://statistics.data.gov.uk/id/local-authority/30UE,Recreation & Sport,Publicity & Promotion,4842,Canon Powershort SX540 Camera 290.83 exc VAT VAT = 58.16 Invoice Total = 348.99,28/03/2022,0000477311,290.83,Revenue,Currys PC World Business,0
South Ribble Borough Council,http://statistics.data.gov.uk/id/local-authority/30UE,Capital,Cap Contract Payment,C230,Provision of Traffic and Transport Engineering Services to support the Leyland Town Deal Development,17/03/2022,0000476172,"6,640.00",Revenue,Curtins Consulting Ltd,0
South Ribble Borough Council,http://statistics.data.gov.uk/id/local-authority/30UE,Capital,Cap Contract Payment,C230,Provision of Traffic and Transport Engineering Services to support the Leyland Town Deal Development,28/03/2022,0000476819,"6,640.00",Revenue,Curtins Consulting Ltd,0
South Ribble Borough Council,http://statistics.data.gov.uk/id/local-authority/30UE,Central Support Services,Legal,4821,PROFESSIONAL SERVICES IN RESPECT OF AN EMPLOYMENT MATTER 7 FEBRUARY - 24 FEBRUARY 2022,17/03/2022,0000476672,"1,640.40",Revenue,DAC BEACHCROFT LLP,0
South Ribble Borough Council,http://statistics.data.gov.uk/id/local-authority/30UE,Central Support Services,Planned Annual Repair & Maintenance,2021,"Annual Contract for maintenance 2021/2022 of 1x McSmart 240cr Industrial Water Chiller, 1x McQuay Air Handling Unit",09/03/2022,0000476422,673.89,Revenue,DAIKIN APPLIED SERVICE,0
South Ribble Borough Council,http://statistics.data.gov.uk/id/local-authority/30UE,Homelessness,Temporary Accommodation,5311,NAME REDACTED 11/03/2022 - 08/04/2022.,17/03/2022,0000476575,340.00,Revenue,David Iddon & Corrina Kellett,0
South Ribble Borough Council,http://statistics.data.gov.uk/id/local-authority/30UE,Economic Development,Public Relations Strategy,4848,"DISCOVER SOUTH RIBBLE ILLUSTRATIONS, LOGO AND ASSETS - HALF OF COST",28/03/2022,0000476802,"5,625.00",Revenue,David Robinson,0
South Ribble Borough Council,http://statistics.data.gov.uk/id/local-authority/30UE,Economic Development,Professional Fees,4510,"DISCOVER SOUTH RIBBLE ILLUSTRATIONS, LOGO AND ASSETS - HALF OF COST (SECOND)",28/03/2022,0000476844,"5,625.00",Revenue,David Robinson,0
South Ribble Borough Council,http://statistics.data.gov.uk/id/local-authority/30UE,Economic Development,Professional Fees,4510,Discover South Ribble illustration and artwork - time bank over 12 months,28/03/2022,0000476845,"5,000.00",Revenue,David Robinson,0
South Ribble Borough Council,http://statistics.data.gov.uk/id/local-authority/30UE,Central Support Services,Computer Equipment,4241,"Wyse 5470, Dell Multimedia Keyboard-KB216 - UK (QWERTY) - Black (RTL BOX), Dell Optical Mouse-MS116 - Black",28/03/2022,0000475959,"12,195.00",Revenue,DELL CORPORATION LTD,0
South Ribble Borough Council,http://statistics.data.gov.uk/id/local-authority/30UE,Central Support Services,Computer Equipment,4241,"VxRail V670F, All Flash (VxRail V670F, All Flash) Dell Networking, Transceiver, 25GbE SFP28 SR, No FEC, MMF, Duplex LC, Customer Kit",02/03/2022,0000476262,"1,512.00",Revenue,DELL CORPORATION LTD,0
South Ribble Borough Council,http://statistics.data.gov.uk/id/local-authority/30UE,Central Support Services,Computer Equipment,4241,"Wyse 5470, Dell Multimedia Keyboard-KB216 - UK (QWERTY) - Black (RTL BOX), Dell Optical Mouse-MS116 - Black",28/03/2022,0000476490,"18,750.00",Revenue,DELL CORPORATION LTD,0
South Ribble Borough Council,http://statistics.data.gov.uk/id/local-authority/30UE,Central Support Services,Computer Equipment,4241,"Wyse 5470, Dell Multimedia Keyboard-KB216 - UK (QWERTY) - Black (RTL BOX), Dell Optical Mouse-MS116 - Black",28/03/2022,0000476491,"18,750.00",Revenue,DELL CORPORATION LTD,0
South Ribble Borough Council,http://statistics.data.gov.uk/id/local-authority/30UE,Central Support Services,Computer Equipment,4241,"Wyse 5470, Dell Multimedia Keyboard-KB216 - UK (QWERTY) - Black (RTL BOX), Dell Optical Mouse-MS116 - Black",28/03/2022,0000476492,"18,750.00",Revenue,DELL CORPORATION LTD,0
South Ribble Borough Council,http://statistics.data.gov.uk/id/local-authority/30UE,Central Support Services,Computer Equipment,4241,"Wyse 5470, Dell Multimedia Keyboard-KB216 - UK (QWERTY) - Black (RTL BOX), Dell Optical Mouse-MS116 - Black",28/03/2022,0000476493,"18,750.00",Revenue,DELL CORPORATION LTD,0
South Ribble Borough Council,http://statistics.data.gov.uk/id/local-authority/30UE,Central Support Services,Computer Equipment,4241,"Wyse 5470, Dell Multimedia Keyboard-KB216 - UK (QWERTY) - Black (RTL BOX), Dell Optical Mouse-MS116 - Black",28/03/2022,0000476494,"18,750.00",Revenue,DELL CORPORATION LTD,0
South Ribble Borough Council,http://statistics.data.gov.uk/id/local-authority/30UE,Central Support Services,Materials General,4040,1 x knox sensor 1 x carriage up coil VU58JXK JFC17442,30/03/2022,0000472853,616.97,Revenue,DENNIS EAGLE LTD,0
South Ribble Borough Council,http://statistics.data.gov.uk/id/local-authority/30UE,Central Support Services,Materials General,4040,1x tank 3x marker lamps 1x wheel arch 1x side indicator lamp 2x back 4x front spring bushes 4x spring eye pins 1x level valve rubber eye,02/03/2022,0000476249,721.51,Revenue,DENNIS EAGLE LTD,0
South Ribble Borough Council,http://statistics.data.gov.uk/id/local-authority/30UE,Central Support Services,Materials General,4040,"Bumper, door panel, end cover LH, end cover RH, & rivets VU58 JXK JFC18008",02/03/2022,0000476275,382.18,Revenue,DENNIS EAGLE LTD,0
South Ribble Borough Council,http://statistics.data.gov.uk/id/local-authority/30UE,Central Support Services,Materials General,4040,U bolts x 4 Bolts x 8 VU60HLE JFC17979,09/03/2022,0000476319,475.81,Revenue,DENNIS EAGLE LTD,0
South Ribble Borough Council,http://statistics.data.gov.uk/id/local-authority/30UE,Central Support Services,Materials General,4040,1 window regulator and 1 earth strap VX18 KLC JFC18069,23/03/2022,0000476619,311.77,Revenue,DENNIS EAGLE LTD,0
South Ribble Borough Council,http://statistics.data.gov.uk/id/local-authority/30UE,Central Support Services,Materials General,4040,1 x drag link assembly VX18KLC JFC18108,30/03/2022,0000476800,412.51,Revenue,DENNIS EAGLE LTD,0
South Ribble Borough Council,http://statistics.data.gov.uk/id/local-authority/30UE,Central Support Services,Materials General,4040,"Beacon Lens 1025682, VX18 KLC, JFC18176 (NAME REDACTED)",30/03/2022,0000477361,85.25,Revenue,DENNIS EAGLE LTD,0
South Ribble Borough Council,http://statistics.data.gov.uk/id/local-authority/30UE,Central Support Services,Materials General,4040,"Pas level sensor 103354, VO65 KPZ, JFC18174",30/03/2022,0000477361,248.47,Revenue,DENNIS EAGLE LTD,0
South Ribble Borough Council,http://statistics.data.gov.uk/id/local-authority/30UE,General Government Grants,Contribution to Reserves,4865,BRRG Clawback Discretionary Funding for BRR 17-18,23/03/2022,0000476767,"143,659.00",Revenue,Department for Communities and Local Government,0
South Ribble Borough Council,http://statistics.data.gov.uk/id/local-authority/30UE,General Government Grants,Contribution to Reserves,4865,BRRG Clawback Multiplier Cap,23/03/2022,0000476767,"219,541.00",Revenue,Department for Communities and Local Government,0
South Ribble Borough Council,http://statistics.data.gov.uk/id/local-authority/30UE,General Government Grants,Contribution to Reserves,4865,BRRG Clawback Retail Relief,23/03/2022,0000476767,"7,266,767.00",Revenue,Department for Communities and Local Government,0
South Ribble Borough Council,http://statistics.data.gov.uk/id/local-authority/30UE,General Government Grants,Contribution to Reserves,4865,BRRG Clawback Rural Rate Relief,23/03/2022,0000476767,"-4,827.00",Revenue,Department for Communities and Local Government,0
South Ribble Borough Council,http://statistics.data.gov.uk/id/local-authority/30UE,General Government Grants,Contribution to Reserves,4865,BRRG Clawback Small Business Rate Relief,23/03/2022,0000476767,"-75,121.00",Revenue,Department for Communities and Local Government,0
South Ribble Borough Council,http://statistics.data.gov.uk/id/local-authority/30UE,General Government Grants,Contribution to Reserves,4865,BRRG Clawback Supporting Small Business Relief,23/03/2022,0000476767,"2,057.00",Revenue,Department for Communities and Local Government,0
South Ribble Borough Council,http://statistics.data.gov.uk/id/local-authority/30UE,Surplus or Deficit on Trading,Reactive Repair & Maintenance,2020,"To undertake works to the door and window  Red Frog photography, Worden Park as detailed in your quotation ref 0881/LR",17/03/2022,0000476555,"1,432.00",Revenue,DES Electrical Services Ltd,0
South Ribble Borough Council,http://statistics.data.gov.uk/id/local-authority/30UE,Central Support Services,Reactive Repair & Maintenance,2020,"Our Ref:1696/MB/RT Install x2 additional sounder onto fire alarm system, Moss Side Depot, Leyland, PR26 7QR",17/03/2022,0000476556,450.00,Revenue,DES Electrical Services Ltd,0
South Ribble Borough Council,http://statistics.data.gov.uk/id/local-authority/30UE,Open Spaces,Operational Equip & Tools,4010,1 x tachyon ash 45m 1 eye,09/03/2022,0000476316,167.00,Revenue,DICK LEIGH,0
South Ribble Borough Council,http://statistics.data.gov.uk/id/local-authority/30UE,Open Spaces,Operational Equip & Tools,4010,1 x t/berger drenaline 45M + slaiced eye 11.8mm,09/03/2022,0000476316,119.00,Revenue,DICK LEIGH,0
South Ribble Borough Council,http://statistics.data.gov.uk/id/local-authority/30UE,Open Spaces,Operational Equip & Tools,4010,1 x t/berger tachyon 37m +1 11.5mm climbing rope,09/03/2022,0000476316,138.00,Revenue,DICK LEIGH,0
South Ribble Borough Council,http://statistics.data.gov.uk/id/local-authority/30UE,Open Spaces,Operational Equip & Tools,4010,1 x teufelberger rope bucket,09/03/2022,0000476316,205.00,Revenue,DICK LEIGH,0
South Ribble Borough Council,http://statistics.data.gov.uk/id/local-authority/30UE,Open Spaces,Operational Equip & Tools,4010,6 x DMM 30Kn Boa Locksafe (3 Way) Karabiner,09/03/2022,0000476316,117.25,Revenue,DICK LEIGH,0
South Ribble Borough Council,http://statistics.data.gov.uk/id/local-authority/30UE,Open Spaces,Operational Equip & Tools,4010,ST11410113071 MS271 Power unit,09/03/2022,0000476367,457.50,Revenue,DICK LEIGH,0
South Ribble Borough Council,http://statistics.data.gov.uk/id/local-authority/30UE,Open Spaces,Operational Equip & Tools,4010,STMS271/16 c/w 16'' bar & chain assy,09/03/2022,0000476367,7.50,Revenue,DICK LEIGH,0
South Ribble Borough Council,http://statistics.data.gov.uk/id/local-authority/30UE,Open Spaces,Operational Equip & Tools,4010,ST42417002200 VACUUM ATTACHMENT BG/SH 56/86,09/03/2022,0000476367,60.56,Revenue,DICK LEIGH,0
South Ribble Borough Council,http://statistics.data.gov.uk/id/local-authority/30UE,Open Spaces,Operational Equip & Tools,4010,ST42297680300 SHREDDING BLADE,09/03/2022,0000476367,4.16,Revenue,DICK LEIGH,0
South Ribble Borough Council,http://statistics.data.gov.uk/id/local-authority/30UE,Street Cleansing,Operational Equip & Tools,4010,2 x BR600 Backpack Blower ST42820111629 as per sales quotation 233165,28/03/2022,0000477285,864.00,Revenue,DICK LEIGH,0
South Ribble Borough Council,http://statistics.data.gov.uk/id/local-authority/30UE,Capital,Cap Contract Payment,C230,"Rental of Temp caf� pod for Worden refurb as per NAME REDACTED request - Cost - 8,400.00",09/03/2022,0000476345,"2,060.00",Revenue,DP STRUCTURES LTD,0
South Ribble Borough Council,http://statistics.data.gov.uk/id/local-authority/30UE,Capital,Cap Contract Payment,C230,"Rental of Temp caf� pod for Worden refurb as per NAME REDACTED request - Cost - 8,400.00",30/03/2022,0000477358,"2,060.00",Revenue,DP STRUCTURES LTD,0
South Ribble Borough Council,http://statistics.data.gov.uk/id/local-authority/30UE,Central Support Services,Reactive Repair & Maintenance,2020,"Technician to attend to site, supply and fit GSM Unit. Setup, test and return to service where possible. As per NAME REDACTED",28/03/2022,0000477323,"1,496.00",Revenue,E A Foulds Limited,0
South Ribble Borough Council,http://statistics.data.gov.uk/id/local-authority/30UE,Open Spaces,Commemorative Features,4019,"1 x Evergreen Seat 1800mm Long, Cast Iron Frames finished in green with black slats (as per quotation)",23/03/2022,0000476547,625.00,Revenue,EARTH ANCHORS LTD,0
South Ribble Borough Council,http://statistics.data.gov.uk/id/local-authority/30UE,Open Spaces,Commemorative Features,4019,Delivery Charge,23/03/2022,0000476547,48.00,Revenue,EARTH ANCHORS LTD,0
South Ribble Borough Council,http://statistics.data.gov.uk/id/local-authority/30UE,Central Support Services,Computer Maintenance,4211,"Repair to Jaltest Diagnostic Machine, 1 x Jaltest USB port repair/replacement. 1 x shipping costs",23/03/2022,0000476645,255.00,Revenue,Eclipse Automotive Technology Ltd,0
South Ribble Borough Council,http://statistics.data.gov.uk/id/local-authority/30UE,Local Tax Collection,Stationery General,4130,ENVELOPES FOR COUNCIL TAX/NNDR,17/03/2022,0000476560,423.40,Revenue,Encore Envelopes Limited,0
South Ribble Borough Council,http://statistics.data.gov.uk/id/local-authority/30UE,Capital,Cap Contract Payment,C230,"Extra Care Scheme at West Paddock, Leyland, Service � Provision of BREAAM Services RIBA Stage 1-2, as per NAME REDACTED",17/03/2022,0000476557,"2,050.00",Revenue,Energy Council Ltd is a Trading Name of EC Energy,0
South Ribble Borough Council,http://statistics.data.gov.uk/id/local-authority/30UE,Central Support Services,Materials General,4040,2 x bearings GX19DZF JFC17839,02/03/2022,0000476175,357.14,Revenue,ERIKS INDUSTRIAL SERVICES,0
South Ribble Borough Council,http://statistics.data.gov.uk/id/local-authority/30UE,Central Support Services,Operational Equip & Tools,4010,1 x Welder ORIGOMIG L405/L304 PACKAGE WITH 5 MTR INTERCONNECT (0464500001),02/03/2022,0000476177,"1,990.00",Revenue,EXPRESS CUTTING & WELDING SERVICES LTD,0
South Ribble Borough Council,http://statistics.data.gov.uk/id/local-authority/30UE,Central Support Services,External Contractors Charges,4570,Spec Repair- To supply and fill front tyre with ballart liquid to increase weight on front of machine PN70 XPR JFC 17799,02/03/2022,0000476178,271.78,Revenue,F R SHARROCK LTD,0
South Ribble Borough Council,http://statistics.data.gov.uk/id/local-authority/30UE,Central Support Services,Materials General,4040,2 x wheels 2 x bolts 1 x engine oil filter 1 x hydraulic oil filter JFC17996 PO18HYN,17/03/2022,0000476423,256.25,Revenue,F R SHARROCK LTD,0
South Ribble Borough Council,http://statistics.data.gov.uk/id/local-authority/30UE,Central Support Services,Materials General,4040,1 x air filter 1 x pre filter 1 x oil filter 1 x hydraulic filter 1 x fuel filter 2 x spark plugs 1 x cutch pulley PMR34A1 JFC17877,23/03/2022,0000476437,436.71,Revenue,F R SHARROCK LTD,0
South Ribble Borough Council,http://statistics.data.gov.uk/id/local-authority/30UE,Capital Grants & Contributions,Amount Paid,0030,Community Infrastructure Levy (CIL) Payment for Parish/Town Council re: planning application 07/2014/0853/FUL,09/03/2022,0000476432,"1,758.31",Revenue,FARINGTON PARISH COUNCIL,0
South Ribble Borough Council,http://statistics.data.gov.uk/id/local-authority/30UE,Capital Grants & Contributions,Amount Paid,0030,Community Infrastructure Levy (CIL) Payment for Parish/Town Council re: planning application 07/2020/00544/REM,09/03/2022,0000476432,"73,516.67",Revenue,FARINGTON PARISH COUNCIL,0
South Ribble Borough Council,http://statistics.data.gov.uk/id/local-authority/30UE,Homelessness,Contributions to Other Bodies,4730,"MS Rent arrears, The Coach House, Leyland PR25 4JA",30/03/2022,0000477497,"2,876.74",Revenue,Farrell Heyworth,0
South Ribble Borough Council,http://statistics.data.gov.uk/id/local-authority/30UE,Waste Collection,External Contractors Charges,4570,Residual Waste Collections- January 2022,02/03/2022,0000475794,"47,367.71",Revenue,FCC Environment Services (UK) Ltd,0
South Ribble Borough Council,http://statistics.data.gov.uk/id/local-authority/30UE,Recycling,External Contractors Charges,4570,Dry Recyclable Non-Terrace -January 2022,02/03/2022,0000475794,"48,490.57",Revenue,FCC Environment Services (UK) Ltd,0
South Ribble Borough Council,http://statistics.data.gov.uk/id/local-authority/30UE,Recycling,External Contractors Charges,4570,Dry Recyclable terraced-January 2022,02/03/2022,0000475794,"2,308.24",Revenue,FCC Environment Services (UK) Ltd,0
South Ribble Borough Council,http://statistics.data.gov.uk/id/local-authority/30UE,Recycling,External Contractors Charges,4570,Organic Waste- non terraced- January 2022,02/03/2022,0000475794,"33,573.08",Revenue,FCC Environment Services (UK) Ltd,0
South Ribble Borough Council,http://statistics.data.gov.uk/id/local-authority/30UE,Trade Waste,External Contractors Charges,4570,Schedule 2 Properties- January 2022,02/03/2022,0000475794,"1,931.17",Revenue,FCC Environment Services (UK) Ltd,0
South Ribble Borough Council,http://statistics.data.gov.uk/id/local-authority/30UE,Trade Waste,External Contractors Charges,4570,Commerical Waste Collections-January 2022,02/03/2022,0000475794,"7,517.16",Revenue,FCC Environment Services (UK) Ltd,0
South Ribble Borough Council,http://statistics.data.gov.uk/id/local-authority/30UE,Waste Collection,External Contractors Charges,4570,Bulky Waste Collections- January 2022,02/03/2022,0000475794,"1,043.40",Revenue,FCC Environment Services (UK) Ltd,0
South Ribble Borough Council,http://statistics.data.gov.uk/id/local-authority/30UE,Waste Collection,External Contractors Charges,4570,WEEE Collections- January 2022,02/03/2022,0000475794,392.02,Revenue,FCC Environment Services (UK) Ltd,0
South Ribble Borough Council,http://statistics.data.gov.uk/id/local-authority/30UE,Waste Collection,External Contractors Charges,4570,Clinical waste collections - January 2022,02/03/2022,0000475794,667.86,Revenue,FCC Environment Services (UK) Ltd,0
South Ribble Borough Council,http://statistics.data.gov.uk/id/local-authority/30UE,Waste Collection,External Contractors Charges,4570,Replacement Bins- January 2022,02/03/2022,0000475794,"5,000.00",Revenue,FCC Environment Services (UK) Ltd,0
South Ribble Borough Council,http://statistics.data.gov.uk/id/local-authority/30UE,Waste Collection,External Contractors Charges,4570,Additional Properties- January 2022,02/03/2022,0000475794,"5,408.15",Revenue,FCC Environment Services (UK) Ltd,0
South Ribble Borough Council,http://statistics.data.gov.uk/id/local-authority/30UE,Short Term Creditors,Amount Paid,0030,ret refuse,02/03/2022,0000475794,"-3,216.37",Revenue,FCC Environment Services (UK) Ltd,0
South Ribble Borough Council,http://statistics.data.gov.uk/id/local-authority/30UE,Short Term Creditors,Amount Paid,0030,ret recy,02/03/2022,0000475794,"-4,218.59",Revenue,FCC Environment Services (UK) Ltd,0
South Ribble Borough Council,http://statistics.data.gov.uk/id/local-authority/30UE,Waste Collection,External Contractors Charges,4570,Additional Waste Collections- January 2022,02/03/2022,0000476000,496.10,Revenue,FCC Environment Services (UK) Ltd,0
South Ribble Borough Council,http://statistics.data.gov.uk/id/local-authority/30UE,Waste Collection,External Contractors Charges,4570,retention,02/03/2022,0000476000,-24.81,Revenue,FCC Environment Services (UK) Ltd,0
South Ribble Borough Council,http://statistics.data.gov.uk/id/local-authority/30UE,Short Term Creditors,Amount Paid,0030,Recycling- Retention Claim Back July 2021-December 2021,02/03/2022,0000476233,"25,039.38",Revenue,FCC Environment Services (UK) Ltd,0
South Ribble Borough Council,http://statistics.data.gov.uk/id/local-authority/30UE,Short Term Creditors,Amount Paid,0030,Refuse- Retention Claim Back July 2021-December 2021,02/03/2022,0000476233,"19,090.72",Revenue,FCC Environment Services (UK) Ltd,0
South Ribble Borough Council,http://statistics.data.gov.uk/id/local-authority/30UE,Short Term Creditors,Amount Paid,0030,Clinical Waste- Retention Claim Back July 2021-December 2021,02/03/2022,0000476233,171.83,Revenue,FCC Environment Services (UK) Ltd,0
South Ribble Borough Council,http://statistics.data.gov.uk/id/local-authority/30UE,Short Term Creditors,Amount Paid,0030,Bulky Waste- Retention Claim Back July 2021-December 2021,02/03/2022,0000476233,491.15,Revenue,FCC Environment Services (UK) Ltd,0
South Ribble Borough Council,http://statistics.data.gov.uk/id/local-authority/30UE,Waste Collection,External Contractors Charges,4570,Loaders Living Wage Pay Rise February 2022,17/03/2022,0000476639,"2,714.43",Revenue,FCC Environment Services (UK) Ltd,0
South Ribble Borough Council,http://statistics.data.gov.uk/id/local-authority/30UE,Waste Collection,External Contractors Charges,4570,Additional Clinical Collections - February 2022,17/03/2022,0000476640,532.40,Revenue,FCC Environment Services (UK) Ltd,0
South Ribble Borough Council,http://statistics.data.gov.uk/id/local-authority/30UE,Short Term Creditors,Amount Paid,0030,clinical ret,17/03/2022,0000476640,-26.62,Revenue,FCC Environment Services (UK) Ltd,0
South Ribble Borough Council,http://statistics.data.gov.uk/id/local-authority/30UE,Waste Collection,External Contractors Charges,4570,Residual Waste Collections February 2022,23/03/2022,0000476641,"42,783.74",Revenue,FCC Environment Services (UK) Ltd,0
South Ribble Borough Council,http://statistics.data.gov.uk/id/local-authority/30UE,Recycling,External Contractors Charges,4570,Dry Recyclable (Non Terraced),23/03/2022,0000476641,"43,797.94",Revenue,FCC Environment Services (UK) Ltd,0
South Ribble Borough Council,http://statistics.data.gov.uk/id/local-authority/30UE,Recycling,External Contractors Charges,4570,Dry Recyclable (Terraced) - February 2022,23/03/2022,0000476641,"2,084.86",Revenue,FCC Environment Services (UK) Ltd,0
South Ribble Borough Council,http://statistics.data.gov.uk/id/local-authority/30UE,Recycling,External Contractors Charges,4570,Organic Waste (Non Terraced) February 2022,23/03/2022,0000476641,"30,324.07",Revenue,FCC Environment Services (UK) Ltd,0
South Ribble Borough Council,http://statistics.data.gov.uk/id/local-authority/30UE,Trade Waste,External Contractors Charges,4570,Schedule 2 Properties February 2022,23/03/2022,0000476641,"1,744.28",Revenue,FCC Environment Services (UK) Ltd,0
South Ribble Borough Council,http://statistics.data.gov.uk/id/local-authority/30UE,Trade Waste,External Contractors Charges,4570,Commercial Waste February 2022,23/03/2022,0000476641,"6,789.69",Revenue,FCC Environment Services (UK) Ltd,0
South Ribble Borough Council,http://statistics.data.gov.uk/id/local-authority/30UE,Waste Collection,External Contractors Charges,4570,Bulky Waste Collections February 2022,23/03/2022,0000476641,942.43,Revenue,FCC Environment Services (UK) Ltd,0
South Ribble Borough Council,http://statistics.data.gov.uk/id/local-authority/30UE,Waste Collection,External Contractors Charges,4570,WEEE Collections February 2022,23/03/2022,0000476641,354.09,Revenue,FCC Environment Services (UK) Ltd,0
South Ribble Borough Council,http://statistics.data.gov.uk/id/local-authority/30UE,Waste Collection,External Contractors Charges,4570,Clinical Waste Collections February 2022,23/03/2022,0000476641,603.23,Revenue,FCC Environment Services (UK) Ltd,0
South Ribble Borough Council,http://statistics.data.gov.uk/id/local-authority/30UE,Waste Collection,External Contractors Charges,4570,Replacement Bins February 2022,23/03/2022,0000476641,"5,000.00",Revenue,FCC Environment Services (UK) Ltd,0
South Ribble Borough Council,http://statistics.data.gov.uk/id/local-authority/30UE,Waste Collection,External Contractors Charges,4570,Additional Properties February 2022,23/03/2022,0000476641,"4,884.78",Revenue,FCC Environment Services (UK) Ltd,0
South Ribble Borough Council,http://statistics.data.gov.uk/id/local-authority/30UE,Short Term Creditors,Amount Paid,0030,retention refuse,23/03/2022,0000476641,"-2,905.11",Revenue,FCC Environment Services (UK) Ltd,0
South Ribble Borough Council,http://statistics.data.gov.uk/id/local-authority/30UE,Short Term Creditors,Amount Paid,0030,retention recycling,23/03/2022,0000476641,"-3,810.34",Revenue,FCC Environment Services (UK) Ltd,0
South Ribble Borough Council,http://statistics.data.gov.uk/id/local-authority/30UE,Waste Collection,External Contractors Charges,4570,Additional Bulky Collections- February 2022,30/03/2022,0000476815,746.55,Revenue,FCC Environment Services (UK) Ltd,0
South Ribble Borough Council,http://statistics.data.gov.uk/id/local-authority/30UE,Waste Collection,External Contractors Charges,4570,Additional WEEE collections- February 2022,30/03/2022,0000476815,494.14,Revenue,FCC Environment Services (UK) Ltd,0
South Ribble Borough Council,http://statistics.data.gov.uk/id/local-authority/30UE,Recycling,External Contractors Charges,4570,Charge for manpower for garden waste reminder stickers.,28/03/2022,0000477302,600.00,Revenue,FCC Environment Services (UK) Ltd,0
South Ribble Borough Council,http://statistics.data.gov.uk/id/local-authority/30UE,Central Support Services,Corp Subs to Professional Bodies,4720,"Subscription for Ferret Renovator PC software, PC Renewal (12 Months Cover) for DFG means testing and renewal of the DFG forms",02/03/2022,0000476001,289.00,Revenue,Ferret Information Systems Ltd,0
South Ribble Borough Council,http://statistics.data.gov.uk/id/local-authority/30UE,Central Support Services,Materials General,4040,FOOTBALL PITCH LINE MARKER PAINT 10LTRS PITCHMARKER Q2,02/03/2022,0000476179,498.24,Revenue,Fleet Line Markers Limited,0
South Ribble Borough Council,http://statistics.data.gov.uk/id/local-authority/30UE,Recreation & Sport,Consultancy Fees,4541,SOUTH RIBBLE BOROUGH COUNCIL LEISURE CENTRE INVESTMENT OPTIONS Job ref and invoice number as per NAME REDACTED,23/03/2022,0000476742,"1,200.00",Revenue,FMG Consulting Ltd,0
South Ribble Borough Council,http://statistics.data.gov.uk/id/local-authority/30UE,Service Management & Support,Petrol,3131,Fuel W/C 31.01.2022,02/03/2022,0000476002,280.00,Revenue,Fuel Card Services,0
South Ribble Borough Council,http://statistics.data.gov.uk/id/local-authority/30UE,Recreation & Sport,Reactive Repair & Maintenance,2020,"Please inspect and repair leaking roof(s) - main gym corridor by the fire exit & female dry (above the large cubicle), Leyland Leisure Centre",02/03/2022,0000475878,430.00,Revenue,Gables Uk Ltd,0
South Ribble Borough Council,http://statistics.data.gov.uk/id/local-authority/30UE,Recreation & Sport,Reactive Repair & Maintenance,2020,"Please inspect and repair the leaking roof, Bamber Bridge Leisure Centre: Supply & erect mobile access tower, Investigate leaks from roof level",02/03/2022,0000475965,980.00,Revenue,Gables Uk Ltd,0
South Ribble Borough Council,http://statistics.data.gov.uk/id/local-authority/30UE,Recreation & Sport,Publicity & Promotion,4842,"8x Men's Nike Academy Training Top, 4x Mid Layer, 8x Women's Nike Academy Training Top, 3x Drill Top, SRBC Logo, Active Health printed",23/03/2022,0000476761,831.95,Revenue,Galaxy,0
South Ribble Borough Council,http://statistics.data.gov.uk/id/local-authority/30UE,Development Control,Miscellaneous Expenses,4851,"4 rolls Cad Plot 841mm x 110m 90gsm weight 26.95 per roll, 6 rolls Xerox 594mm x 110m 90gsm weight 21.95 per roll, Direct Delivery 13.72",02/03/2022,0000476259,253.22,Revenue,GCS UK ASSOCIATES LTD,0
South Ribble Borough Council,http://statistics.data.gov.uk/id/local-authority/30UE,Development Control,Operational Equip & Tools,4010,HP766 2 x Matte Black 1 Magenta,17/03/2022,0000476638,379.26,Revenue,GCS UK ASSOCIATES LTD,0
South Ribble Borough Council,http://statistics.data.gov.uk/id/local-authority/30UE,Central Support Services,Materials General,4040,Drive pump M3 MX19JMO JFC17304,30/03/2022,0000476182,"4,287.39",Revenue,GIBSONS GARDEN MACHINERY LTD,0
South Ribble Borough Council,http://statistics.data.gov.uk/id/local-authority/30UE,Central Support Services,External Contractors Charges,4570,Drive pump M3 MX19JMO JFC17304,30/03/2022,0000476182,107.18,Revenue,GIBSONS GARDEN MACHINERY LTD,0
South Ribble Borough Council,http://statistics.data.gov.uk/id/local-authority/30UE,Central Support Services,Materials General,4040,1 x filter kit 3 x scraper wires 6 x bearings 3 x bottom blades 39 x blade screws 39 x blade nuts MX19JMO JFC18032,30/03/2022,0000476424,246.78,Revenue,GIBSONS GARDEN MACHINERY LTD,0
South Ribble Borough Council,http://statistics.data.gov.uk/id/local-authority/30UE,Central Support Services,Materials General,4040,credit,30/03/2022,0000476424,6.17,Revenue,GIBSONS GARDEN MACHINERY LTD,0
South Ribble Borough Council,http://statistics.data.gov.uk/id/local-authority/30UE,Housing Advice,Contributions to Other Bodies,4730,Gas servicing for winter warmth scheme 2021/2022,17/03/2022,0000476475,570.00,Revenue,GOS Heating Ltd,0
South Ribble Borough Council,http://statistics.data.gov.uk/id/local-authority/30UE,Capital,Capital Grant,C570,DFG WORK FOR ADAPTATION TO LEVEL ACCESS SHOWER AT ADDRESS REDACTED PER SRBC SPECIFICATION AND QUOTE,30/03/2022,0000477492,"4,451.08",Revenue,GOS Heating Ltd,0
South Ribble Borough Council,http://statistics.data.gov.uk/id/local-authority/30UE,Capital,Cap Contract Payment,C230,"Please provide services to Worden Hall PM and QS support RIBA stage 4-7 - As per contract terms, Fee proposal and draw down schedule",09/03/2022,0000476374,"3,850.00",Revenue,Gosling Consulting Limited,0
South Ribble Borough Council,http://statistics.data.gov.uk/id/local-authority/30UE,Capital,Cap Contract Payment,C230,"Provision of Quantity Surveyor Services and Procurement Support Services to RIBA Stage 3/Leyland Town Deal Project, as per NAME REDACTED",09/03/2022,0000476375,"1,476.55",Revenue,Gosling Consulting Limited,0
South Ribble Borough Council,http://statistics.data.gov.uk/id/local-authority/30UE,Capital,Cap Contract Payment,C230,Leyland Town Deal - Document Management Services,09/03/2022,0000476376,525.00,Revenue,Gosling Consulting Limited,0
South Ribble Borough Council,http://statistics.data.gov.uk/id/local-authority/30UE,Capital,Cap Contract Payment,C230,"McKenzie Arms Site, PR5 6EE, Procurement, Project Management and Quantity Surveying Services: Review of Business Case and Cost Plan",28/03/2022,0000476392,"2,887.50",Revenue,Gosling Consulting Limited,0
South Ribble Borough Council,http://statistics.data.gov.uk/id/local-authority/30UE,Central Support Services,Technical Support,4246,One off configuration cost of implementing Browse Aloud onto the South Ribble Council website,30/03/2022,0000476425,"1,150.00",Revenue,Goss Interactive Limited,0
South Ribble Borough Council,http://statistics.data.gov.uk/id/local-authority/30UE,Economic Development,Professional Fees,4510,Discover South Ribble Website,30/03/2022,0000477548,"2,499.00",Revenue,Goss Interactive Limited,0
South Ribble Borough Council,http://statistics.data.gov.uk/id/local-authority/30UE,Economic Development,Professional Fees,4510,Website for Worden Hall,30/03/2022,0000477549,"2,499.00",Revenue,Goss Interactive Limited,0
South Ribble Borough Council,http://statistics.data.gov.uk/id/local-authority/30UE,Central Support Services,Software Licensing,4243,"Grace - Risk Management Annual Licence, Grace - Business Continuity Annual Licence",02/03/2022,0000476273,"4,395.00",Revenue,Grace Governance Solutions Ltd,0
South Ribble Borough Council,http://statistics.data.gov.uk/id/local-authority/30UE,Recreation & Sport,Professional Fees,4510,Terms of engagement between South Ribble Borough Council and Grant Thornton UK LLP for an Innovate UK grant.,09/03/2022,0000476442,900.00,Revenue,Grant Thornton UK LLP,0
South Ribble Borough Council,http://statistics.data.gov.uk/id/local-authority/30UE,Unapportionable Central OHeads,GMC -PIA Payments,1701,Rechargeable Pension Costs Second Half 21/22,30/03/2022,0000477551,"6,887.21",Revenue,GREATER MANCHESTER PENSION FUND,0
South Ribble Borough Council,http://statistics.data.gov.uk/id/local-authority/30UE,Surplus or Deficit on Trading,Reactive Repair & Maintenance,2020,Removal of asbestos flash guards and environmental clean to the electrical consumer units under controlled conditions at PR5 8AL,23/03/2022,0000476627,500.00,Revenue,Greenfield Removals,0
South Ribble Borough Council,http://statistics.data.gov.uk/id/local-authority/30UE,Capital,Cap Contract Payment,C230,Project - Extra Care West Paddock Works - Flood Risk Assessment (Extra Care Scheme at West Paddock) as per NAME REDACTED request,02/03/2022,0000474978,"3,430.00",Revenue,GTA Civils & Transport Ltd,0
South Ribble Borough Council,http://statistics.data.gov.uk/id/local-authority/30UE,Capital,Cap Contract Payment,C230,Additional Stone Levelling Works,09/03/2022,0000476243,"5,882.78",Revenue,HAGS SMP LTD,0
South Ribble Borough Council,http://statistics.data.gov.uk/id/local-authority/30UE,Capital,Cap Contract Payment,C230,Path Tarmacking,09/03/2022,0000476243,"10,962.14",Revenue,HAGS SMP LTD,0
South Ribble Borough Council,http://statistics.data.gov.uk/id/local-authority/30UE,Capital,Cap Contract Payment,C230,Duct Installation,09/03/2022,0000476243,"2,702.00",Revenue,HAGS SMP LTD,0
South Ribble Borough Council,http://statistics.data.gov.uk/id/local-authority/30UE,Capital,Cap Contract Payment,C230,Design and build of new Junior and Teen Playground at Bent Lane Leyland,17/03/2022,0000476244,"165,611.40",Revenue,HAGS SMP LTD,0
South Ribble Borough Council,http://statistics.data.gov.uk/id/local-authority/30UE,Cash and Cash Equivalents,Amount Paid,0030,DEPOSIT FOR THE MAYORS BANQUET TO BE HELD ON 20 MAY 2022,30/03/2022,0000477491,350.00,Revenue,Hallmark Hotel Preston Leyland,0
South Ribble Borough Council,http://statistics.data.gov.uk/id/local-authority/30UE,Capital,Cap Contract Payment,C230,deposit for land leyland town centre,31/03/2022,0000477584,"29,150.00",Revenue,Heatons Engineering Ltd C/O Napthens Solicitors,0
South Ribble Borough Council,http://statistics.data.gov.uk/id/local-authority/30UE,Cash and Cash Equivalents,Amount Paid,0030,"Catering for the Mayor's Spring Banquet, Friday 1st April",30/03/2022,0000477489,"3,987.50",Revenue,High Class Caterers,0
South Ribble Borough Council,http://statistics.data.gov.uk/id/local-authority/30UE,Recreation & Sport,Licences Fee General,488B,mgmt fee qtr 1 1/4 to jun22,30/03/2022,0000477246,"1,000.00",Revenue,HIGHER WALTON COMMUNITY CENTRE,0
South Ribble Borough Council,http://statistics.data.gov.uk/id/local-authority/30UE,Short Term Creditors,Amount Received,0140,,23/03/2022,0000476216,334.00,Revenue,HM REVENUE & CUSTOMS,0
South Ribble Borough Council,http://statistics.data.gov.uk/id/local-authority/30UE,Short Term Creditors,Amount Received,0140,,23/03/2022,0000476380,"3,987.00",Revenue,HM REVENUE & CUSTOMS,0
South Ribble Borough Council,http://statistics.data.gov.uk/id/local-authority/30UE,Short Term Creditors,Amount Received,0140,,23/03/2022,0000476503,270.00,Revenue,HM REVENUE & CUSTOMS,0
South Ribble Borough Council,http://statistics.data.gov.uk/id/local-authority/30UE,Short Term Creditors,Amount Received,0140,,23/03/2022,0000476698,"4,085.00",Revenue,HM REVENUE & CUSTOMS,0
South Ribble Borough Council,http://statistics.data.gov.uk/id/local-authority/30UE,Short Term Debtors,Amount Paid,0030,vat 2021,31/03/2022,0000474754,"64,047.68",Revenue,HM Revenue and Customs,0
South Ribble Borough Council,http://statistics.data.gov.uk/id/local-authority/30UE,Corporate Management,Grants Voluntary Organisation,4711,Practical Support Payment - Re Socialisation Cafe,31/03/2022,0000477592,"5,500.00",Revenue,HOOLE VILLAGE MEMORIAL HALL COMMITTEE,0
South Ribble Borough Council,http://statistics.data.gov.uk/id/local-authority/30UE,Central Support Services,Telecomms- land lines,4269,Installation 1/2 day and Configuration 1/2 day - EM-300 INTELLIGENT EDGE: ANALOG GATEWAY MODE WITH 4 LAN AND 2 FXS PORTS,17/03/2022,0000475550,"1,212.00",Revenue,Hybrit Services Limited,0
South Ribble Borough Council,http://statistics.data.gov.uk/id/local-authority/30UE,Central Support Services,Technical Support,4246,On-Site Support Retainer 10 days @ 300. 50% only,23/03/2022,0000476793,"1,500.00",Revenue,Hybrit Services Limited,0
South Ribble Borough Council,http://statistics.data.gov.uk/id/local-authority/30UE,Open Spaces,GM Refurbishment,4657,"2x T050 4225 94 - 1125mm high, 1345mm overall wide right hand IAE Prosafe hydraulic self closing gate with hang and slam post (Yellow).",28/03/2022,0000476792,"1,749.52",Revenue,IAE,0
South Ribble Borough Council,http://statistics.data.gov.uk/id/local-authority/30UE,Open Spaces,GM Refurbishment,4657,"1x (T050 4220 94) 1125mm high, 1345 overall wide left hand IAE Prosafe hydraulic self-closing gate with hand and slam post (Yellow).",28/03/2022,0000476792,984.76,Revenue,IAE,0
South Ribble Borough Council,http://statistics.data.gov.uk/id/local-authority/30UE,Community Development,Publicity & Promotion,4842,HAF Thank you event,28/03/2022,0000476860,300.00,Revenue,IAN ROBINSON,0
South Ribble Borough Council,http://statistics.data.gov.uk/id/local-authority/30UE,Economic Development,Professional Fees,4510,Photography for discover SR,28/03/2022,0000477488,"2,250.00",Revenue,IAN ROBINSON,0
South Ribble Borough Council,http://statistics.data.gov.uk/id/local-authority/30UE,Central Support Services,Technical Support,4246,"Software licences, support and maintenance for the Council's Uniform suite for the period 1st October 2021 to 31st March 2022",28/03/2022,0000476791,"36,475.24",Revenue,IDOX PLC,0
South Ribble Borough Council,http://statistics.data.gov.uk/id/local-authority/30UE,Capital,Capital Grant,C570,DFG WORK FOR ADAPTATION FOR GEBERIT TOILET SUPPLY AND INSTALL AT ADDRESS REDACTED AS PER QUOTE SUPPLIED,30/03/2022,0000477486,"3,888.00",Revenue,Independent Adaptations Ltd,0
South Ribble Borough Council,http://statistics.data.gov.uk/id/local-authority/30UE,Central Support Services,Other Fees,4520,IRRV MEMBERSHIP FORUM 2022,17/03/2022,0000476678,"1,200.00",Revenue,INST OF REVENUES RATING & VALUATION,0
South Ribble Borough Council,http://statistics.data.gov.uk/id/local-authority/30UE,Capital,Cap Contract Payment,C230,Historical fly through of Hurst Grange Coach House,28/03/2022,0000477485,900.00,Revenue,Ivan Wilson Architect,0
South Ribble Borough Council,http://statistics.data.gov.uk/id/local-authority/30UE,Capital,Cap Contract Payment,C230,"Order - trees only as per NAME REDACTED request, Amount - 18204.94",23/03/2022,0000476724,"7,948.49",Revenue,J A JONES & SONS,0
South Ribble Borough Council,http://statistics.data.gov.uk/id/local-authority/30UE,Capital,Cap Contract Payment,C230,Supply and installation of a Deso brand 1550 litre bunded oil tank complete with an electronic gauge. Construct new base using pressed concrete,30/03/2022,0000477484,"2,673.00",Revenue,J SEED & CO LTD,0
South Ribble Borough Council,http://statistics.data.gov.uk/id/local-authority/30UE,Central Support Services,Basic Pay,1100,Recruitment Services: NAME REDACTED,17/03/2022,0000476471,"1,710.00",Revenue,James Andrews Recruitment Solutions Ltd,0
South Ribble Borough Council,http://statistics.data.gov.uk/id/local-authority/30UE,Central Support Services,Basic Pay,1100,Recruitment Services: NAME REDACTED,23/03/2022,0000476747,"1,710.00",Revenue,James Andrews Recruitment Solutions Ltd,0
South Ribble Borough Council,http://statistics.data.gov.uk/id/local-authority/30UE,Central Support Services,Basic Pay,1100,Recruitment Services: NAME REDACTED,30/03/2022,0000477355,"1,710.00",Revenue,James Andrews Recruitment Solutions Ltd,0
South Ribble Borough Council,http://statistics.data.gov.uk/id/local-authority/30UE,Surplus or Deficit on Trading,Reactive Repair & Maintenance,2020,"Annual Contract for 2021 - 2022 for the maintenance of the Trend BMS HVAC 4 x day visits (TBA) June, Sept, Dec, March - Civic Centre Offices",28/03/2022,0000477319,424.00,Revenue,JBC CONTROL SYSTEM,0
South Ribble Borough Council,http://statistics.data.gov.uk/id/local-authority/30UE,Open Spaces,Materials General,4040,34 No 0.900 x 0.100 x 0.100 Bird Mouth Timber @ 5.87,30/03/2022,0000477481,199.58,Revenue,JOHN HY MAYOR & SONS LTD,0
South Ribble Borough Council,http://statistics.data.gov.uk/id/local-authority/30UE,Open Spaces,Materials General,4040,15 No 3.600 x 0.100 x 0.100 Bird Mouth Timber @ 17.46,30/03/2022,0000477481,261.90,Revenue,JOHN HY MAYOR & SONS LTD,0
South Ribble Borough Council,http://statistics.data.gov.uk/id/local-authority/30UE,Capital,Cap Contract Payment,C230,40 No 3.600 x 0.100 x 0.022 Bird Mouth timber @ 3.84,30/03/2022,0000477481,153.60,Revenue,JOHN HY MAYOR & SONS LTD,0
South Ribble Borough Council,http://statistics.data.gov.uk/id/local-authority/30UE,Open Spaces,Materials General,4040,10 No 3.600 x 0.100 x 0.050 Bird Mouth Timber @ 8.73,30/03/2022,0000477481,87.30,Revenue,JOHN HY MAYOR & SONS LTD,0
South Ribble Borough Council,http://statistics.data.gov.uk/id/local-authority/30UE,Capital,Cap Contract Payment,C230,250 No 0.450 x 0.050 x 0.050 Bird Mouth Timber @ 0.55,30/03/2022,0000477481,137.50,Revenue,JOHN HY MAYOR & SONS LTD,0
South Ribble Borough Council,http://statistics.data.gov.uk/id/local-authority/30UE,Capital,Cap Contract Payment,C230,Costs for work on the refurbishment of Worden Hall Central Buildings,02/03/2022,0000475646,"86,913.30",Revenue,John Turner Construction Group Ltd,0
South Ribble Borough Council,http://statistics.data.gov.uk/id/local-authority/30UE,Capital,Cap Contract Payment,C230,1309/BLPA Bent Lane Play Area - As per NAME REDACTED request: Ongoing hire of road panels at Bent Lane Play Area,09/03/2022,0000476363,678.50,Revenue,John Wade Groundworks Ltd t/a Wade Group,0
South Ribble Borough Council,http://statistics.data.gov.uk/id/local-authority/30UE,Capital,Cap Contract Payment,C230,For the provision of works to Western Park Drive & river Lostock tarmac as agreed with SRBC regeneration dept,30/03/2022,0000477330,"44,587.50",Revenue,John Wade Groundworks Ltd t/a Wade Group,0
South Ribble Borough Council,http://statistics.data.gov.uk/id/local-authority/30UE,Surplus or Deficit on Trading,Publicity & Promotion,4842,Advertising package reference number NMC6140434 (Planning Notice for Withy Grove Park) on 21 January 2022,09/03/2022,0000475567,648.00,Revenue,JPI Media - JOHNSTON PUBLISHING (NORTH WEST),0
South Ribble Borough Council,http://statistics.data.gov.uk/id/local-authority/30UE,Surplus or Deficit on Trading,Publicity & Promotion,4842,Advertising package reference number NMC6140403 (Planning Notice Four Oaks Road) on 21 January 2022,09/03/2022,0000475568,648.00,Revenue,JPI Media - JOHNSTON PUBLISHING (NORTH WEST),0
South Ribble Borough Council,http://statistics.data.gov.uk/id/local-authority/30UE,Development Control,Advertising,4841,Purchase order - for public notices for planning applications appearing in the LEP,28/03/2022,0000476631,729.00,Revenue,JPI Media - JOHNSTON PUBLISHING (NORTH WEST),0
South Ribble Borough Council,http://statistics.data.gov.uk/id/local-authority/30UE,Development Control,Advertising,4841,Purchase order - for public notices for planning applications appearing in the LEP,28/03/2022,0000476723,810.00,Revenue,JPI Media - JOHNSTON PUBLISHING (NORTH WEST),0
South Ribble Borough Council,http://statistics.data.gov.uk/id/local-authority/30UE,Local Tax Collection,Advertising,4841,COUNCIL TAX ADVERTISEMENT APRIL 2022,28/03/2022,0000477294,"1,350.00",Revenue,JPI Media - JOHNSTON PUBLISHING (NORTH WEST),0
South Ribble Borough Council,http://statistics.data.gov.uk/id/local-authority/30UE,Capital,Cap Contract Payment,C230,Provision of Acoustician Consultancy Services - Extra Care West Paddock Scheme,28/03/2022,0000475880,"3,500.00",Revenue,JPM Acoustics Ltd,0
South Ribble Borough Council,http://statistics.data.gov.uk/id/local-authority/30UE,Open Spaces,Hiring Expenses,3212,Hire of a 1.5T excavator for 2 days 10/02/2022-11/02/2022,02/03/2022,0000476184,286.00,Revenue,K H HIRE SERVICES,0
South Ribble Borough Council,http://statistics.data.gov.uk/id/local-authority/30UE,Capital,Cap Contract Payment,C230,Leyland Town Deal - Security Needs Assessment,17/03/2022,0000476508,"2,500.00",Revenue,KABSEC Consultancy Ltd,0
South Ribble Borough Council,http://statistics.data.gov.uk/id/local-authority/30UE,Open Spaces,GM Refurbishment,4657,Archaeological Building Recording Hurst Grange Coach House Penwortham PR1 9XH,17/03/2022,0000476676,"1,800.00",Revenue,Kathryn Sather & Associates,0
South Ribble Borough Council,http://statistics.data.gov.uk/id/local-authority/30UE,Capital,Cap Vehicles,C440,Livery as quoted and proofed on email dated 07/01/2022.,30/03/2022,0000475475,430.00,Revenue,KDJ Dezigns LTD T/A Sign Dezign,0
South Ribble Borough Council,http://statistics.data.gov.uk/id/local-authority/30UE,Economic Development,Professional Fees,4510,To supply and fit 6 x removable vinyl stickers to 3 x RCV as per your quotation dated 9.2.22. (H) 1000 x (L) 2000. Design to be sent separately,30/03/2022,0000476429,900.00,Revenue,KDJ Dezigns LTD T/A Sign Dezign,0
South Ribble Borough Council,http://statistics.data.gov.uk/id/local-authority/30UE,Capital,Cap Contract Payment,C230,A2 x 10 Correx Signs Plus Holes,30/03/2022,0000477478,240.00,Revenue,KDJ Dezigns LTD T/A Sign Dezign,0
South Ribble Borough Council,http://statistics.data.gov.uk/id/local-authority/30UE,Capital,Cap Contract Payment,C230,A3 x 10 Correx Signs Plus holes,30/03/2022,0000477478,120.00,Revenue,KDJ Dezigns LTD T/A Sign Dezign,0
South Ribble Borough Council,http://statistics.data.gov.uk/id/local-authority/30UE,Open Spaces,GM Refurbishment,4657,"Green Flag Award Applications 2022/23 for Worden Park, Hurst Grange Park and Longton Brickcroft Nature Reserve.",30/03/2022,0000477477,"1,067.00",Revenue,KEEP BRITAIN TIDY,0
South Ribble Borough Council,http://statistics.data.gov.uk/id/local-authority/30UE,Regulatory Services,Clothing and Uniforms,4410,1 x Heavy Duty Bee Keeper Suit BEESUIT L - Size LARGE,17/03/2022,0000476488,105.60,Revenue,KILLGERM CHEMICALS LTD,0
South Ribble Borough Council,http://statistics.data.gov.uk/id/local-authority/30UE,Regulatory Services,Operational Equip & Tools,4010,1 x Pesticide Carry Bag PESTBAG2 @ 28.00,17/03/2022,0000476488,23.10,Revenue,KILLGERM CHEMICALS LTD,0
South Ribble Borough Council,http://statistics.data.gov.uk/id/local-authority/30UE,Regulatory Services,Operational Equip & Tools,4010,2 x Gloria SL SS Sprayer GLOJNSTST @ 240.00 each,17/03/2022,0000476488,396.00,Revenue,KILLGERM CHEMICALS LTD,0
South Ribble Borough Council,http://statistics.data.gov.uk/id/local-authority/30UE,Regulatory Services,Clothing and Uniforms,4410,1 x Sundstrom Half Mask Respirator SUNDHALFMASK @ 27.00,17/03/2022,0000476488,22.28,Revenue,KILLGERM CHEMICALS LTD,0
South Ribble Borough Council,http://statistics.data.gov.uk/id/local-authority/30UE,Regulatory Services,Operational Equip & Tools,4010,1 x Hand Lens LEDHANDLENS @ 6.95,17/03/2022,0000476488,5.73,Revenue,KILLGERM CHEMICALS LTD,0
South Ribble Borough Council,http://statistics.data.gov.uk/id/local-authority/30UE,Regulatory Services,Clothing and Uniforms,4410,1 x Supavizor Face Shield  - Ratchet Head Band RATCHETBA @ 15.20,17/03/2022,0000476488,12.54,Revenue,KILLGERM CHEMICALS LTD,0
South Ribble Borough Council,http://statistics.data.gov.uk/id/local-authority/30UE,Regulatory Services,Clothing and Uniforms,4410,1 x Supavizor Face Shield - CLEAR VISO @ 9.80,17/03/2022,0000476488,8.09,Revenue,KILLGERM CHEMICALS LTD,0
South Ribble Borough Council,http://statistics.data.gov.uk/id/local-authority/30UE,Regulatory Services,Operational Equip & Tools,4010,1 x Plastic Applicator Gun PLASTAPLGUN @ 15.70,17/03/2022,0000476488,12.95,Revenue,KILLGERM CHEMICALS LTD,0
South Ribble Borough Council,http://statistics.data.gov.uk/id/local-authority/30UE,Regulatory Services,Poisons & Baits,4041,2 boxes Snappa Mouse Box AFSBLKBLK @ 15.90 for 15,17/03/2022,0000476488,26.24,Revenue,KILLGERM CHEMICALS LTD,0
South Ribble Borough Council,http://statistics.data.gov.uk/id/local-authority/30UE,Regulatory Services,Poisons & Baits,4041,30 x Snap E Mouse Traps SNAPEMSE @ 1.15,17/03/2022,0000476488,33.00,Revenue,KILLGERM CHEMICALS LTD,0
South Ribble Borough Council,http://statistics.data.gov.uk/id/local-authority/30UE,Regulatory Services,Poisons & Baits,4041,2 x Tubs DETEX Non Toxic Blocks DETEX004K @ 20.90,17/03/2022,0000476488,32.00,Revenue,KILLGERM CHEMICALS LTD,0
South Ribble Borough Council,http://statistics.data.gov.uk/id/local-authority/30UE,Economic Development,Professional Fees,4510,FULL PAGE IN KINGFISHER GUIDE 2022,23/03/2022,0000476766,795.00,Revenue,Kingfisher Media Ltd,0
South Ribble Borough Council,http://statistics.data.gov.uk/id/local-authority/30UE,Open Spaces,GM Refurbishment,4657,Improvement of hardstanding at entrance to Hurst Grange Park Play Area,30/03/2022,0000476758,"4,858.82",Revenue,KOMPAN LTD,0
South Ribble Borough Council,http://statistics.data.gov.uk/id/local-authority/30UE,Capital,Cap Contract Payment,C230,"Design and build of new toddler and junior play area, Hurst Grange Park, Penwortham",23/03/2022,0000476788,"3,434.90",Revenue,KOMPAN LTD,0
South Ribble Borough Council,http://statistics.data.gov.uk/id/local-authority/30UE,Central Support Services,Professional Fees,4510,LABC Membership 2022/23,28/03/2022,0000477322,"2,147.11",Revenue,LABC,0
South Ribble Borough Council,http://statistics.data.gov.uk/id/local-authority/30UE,Unapportionable Central OHeads,Deficit Recovery Contributions,1161,emp pension contributions,17/03/2022,0000476506,"236,276.00",Revenue,LANCASHIRE COUNTY COUNCIL PENSION FUND,0
South Ribble Borough Council,http://statistics.data.gov.uk/id/local-authority/30UE,Unapportionable Central OHeads,Deficit Recovery Contributions,1161,employer pension cont 21/22,30/03/2022,0000477248,"258,853.00",Revenue,LANCASHIRE COUNTY COUNCIL PENSION FUND,0
South Ribble Borough Council,http://statistics.data.gov.uk/id/local-authority/30UE,Corporate Management,Grants and Subscriptions,4741,Purchase 25 blocks of Wellbeing Coaching Support: 1-2-1 support (6 sessions of block support) to offer free to South Ribble businesses.,28/03/2022,0000477474,"7,000.00",Revenue,Lancashire Mind Limited,0
South Ribble Borough Council,http://statistics.data.gov.uk/id/local-authority/30UE,Central Support Services,Materials General,4040,1000 litres of Bulk pump in for hydraulic oil 46 @ 1.49ppl,17/03/2022,0000476487,"1,490.00",Revenue,LANCASHIRE OILS LTD,0
South Ribble Borough Council,http://statistics.data.gov.uk/id/local-authority/30UE,Waste Collection,Clinical Waste Disposal,5112,November 2021 - Incineration of clinical waste,23/03/2022,0000476533,631.48,Revenue,LANCASHIRE TEACHING FT,0
South Ribble Borough Council,http://statistics.data.gov.uk/id/local-authority/30UE,Waste Collection,Clinical Waste Disposal,5112,December 2021 - Incineration of clinical waste,23/03/2022,0000476535,534.26,Revenue,LANCASHIRE TEACHING FT,0
South Ribble Borough Council,http://statistics.data.gov.uk/id/local-authority/30UE,Waste Collection,Clinical Waste Disposal,5112,September 2021 - Incineration of clinical waste,30/03/2022,0000477314,721.25,Revenue,LANCASHIRE TEACHING FT,0
South Ribble Borough Council,http://statistics.data.gov.uk/id/local-authority/30UE,Waste Collection,Clinical Waste Disposal,5112,August 2021 - Incineration of clinical waste,30/03/2022,0000477473,598.48,Revenue,LANCASHIRE TEACHING FT,0
South Ribble Borough Council,http://statistics.data.gov.uk/id/local-authority/30UE,Central Support Services,Miscellaneous Expenses,4851,Please conduct emergency repairs to the street lighting column at Lostock Lane/Station Road junction Bamber Bridge,09/03/2022,0000476311,987.68,Revenue,LANCS COUNTY COUNCIL,0
South Ribble Borough Council,http://statistics.data.gov.uk/id/local-authority/30UE,Local Land Charges,L C C General,4530,LAND CHARGES - JANUARY 2022,09/03/2022,0000476383,913.50,Revenue,LANCS COUNTY COUNCIL,0
South Ribble Borough Council,http://statistics.data.gov.uk/id/local-authority/30UE,Capital,Capital Grant,C570,DFG WORK TO SUPPLY AND INSTALL HOISTING EQUIPMENT AT ADDRESS REDACTED AS PER QUOTE SUPPLIED OF 443.00,23/03/2022,0000476722,443.00,Revenue,LANCS COUNTY COUNCIL,0
South Ribble Borough Council,http://statistics.data.gov.uk/id/local-authority/30UE,Trade Waste,Landfilll Charges,5412,"Quarter 3 Disposal Fee, Landfill Tax & 5% Admin Fee",30/03/2022,0000476798,"61,461.81",Revenue,LANCS COUNTY COUNCIL,0
South Ribble Borough Council,http://statistics.data.gov.uk/id/local-authority/30UE,Central Support Services,Materials General,4040,1 x edr pipe plus gasket 2 x anti roll bar bushes YD19AUT JFC18031,02/03/2022,0000476339,316.06,Revenue,LANCS DAF,0
South Ribble Borough Council,http://statistics.data.gov.uk/id/local-authority/30UE,Central Support Services,Materials General,4040,1 x off side leaf spring YA19NKC JFC18061,09/03/2022,0000476426,593.82,Revenue,LANCS DAF,0
South Ribble Borough Council,http://statistics.data.gov.uk/id/local-authority/30UE,Central Support Services,Materials General,4040,1 x track rod 1 x set of brake pads YA19NJZ JFC18022,17/03/2022,0000476427,656.32,Revenue,LANCS DAF,0
South Ribble Borough Council,http://statistics.data.gov.uk/id/local-authority/30UE,Central Support Services,Materials General,4040,"1x seat belt, 1x air bag, 1x wheel arch, 1x filter kit, 20ltrs oil, YD19 ATK, JFC18037 (NAME REDACTED)",17/03/2022,0000476482,"1,160.72",Revenue,LANCS DAF,0
South Ribble Borough Council,http://statistics.data.gov.uk/id/local-authority/30UE,Central Support Services,Materials General,4040,1 x spring 2 x UBolts  RV14DTZ JFC18041,23/03/2022,0000476545,500.00,Revenue,LANCS DAF,0
South Ribble Borough Council,http://statistics.data.gov.uk/id/local-authority/30UE,Central Support Services,Materials General,4040,1 header tank & sensor YE19 JPW JFC18045,23/03/2022,0000476553,272.67,Revenue,LANCS DAF,0
South Ribble Borough Council,http://statistics.data.gov.uk/id/local-authority/30UE,Central Support Services,Materials General,4040,"1 SET BRAKE PADS, 1 PEDAL RUBBER & 1 SERVICE KIT INCLUDING OIL YD19 AYK JFC18046",23/03/2022,0000476572,429.36,Revenue,LANCS DAF,0
South Ribble Borough Council,http://statistics.data.gov.uk/id/local-authority/30UE,Central Support Services,Materials General,4040,"1x leaf spring, 2x u bolts, 4x nuts, 2x anti roll bar brushes, YD19 AUM, JFC18145 (NAME REDACTED)",28/03/2022,0000477268,693.82,Revenue,LANCS DAF,0
South Ribble Borough Council,http://statistics.data.gov.uk/id/local-authority/30UE,Central Support Services,Materials General,4040,Drivers seatbelt Front brake discs and pads Air compressor kit 2 X Rear air bags YD19 ATZ JFC 18126,30/03/2022,0000477301,"1,162.08",Revenue,LANCS DAF,0
South Ribble Borough Council,http://statistics.data.gov.uk/id/local-authority/30UE,Open Spaces,Professional Fees,4510,"Friends of Preston Junction volunteer group, management, maintenance of Preston Junction/Central Parks, as per NAME REDACTED",02/03/2022,0000476186,"1,250.00",Revenue,LANCS WILDLIFE TRUST,0
South Ribble Borough Council,http://statistics.data.gov.uk/id/local-authority/30UE,Open Spaces,Professional Fees,4510,"Friends of Preston Junction volunteer group, management, maintenance of Preston Junction/Central Parks, as per NAME REDACTED",02/03/2022,0000476187,"1,250.00",Revenue,LANCS WILDLIFE TRUST,0
South Ribble Borough Council,http://statistics.data.gov.uk/id/local-authority/30UE,Open Spaces,External Contractors Charges,4570,"Drainage works at site 2 and 3, Middleforth Green Penwortham.",02/03/2022,0000476188,"13,310.00",Revenue,LANDSCAPE ENGINEERING LIMITED,0
South Ribble Borough Council,http://statistics.data.gov.uk/id/local-authority/30UE,Capital,Cap Contract Payment,C230,"Design and Construction from Proposed Football Artificial Grass Pitch, New Fencing, Floodlighting, Hard standings, Bamber Bridge Leisure Centre",31/03/2022,0000473411,"84,299.66",Revenue,LANO SPORTS NV,0
South Ribble Borough Council,http://statistics.data.gov.uk/id/local-authority/30UE,Capital,Cap Contract Payment,C230,"Design and Construction from Proposed Football Artificial Grass Pitch, New Fencing, Floodlighting, Hard standings, Bamber Bridge Leisure Centre",31/03/2022,0000473980,"16,021.48",Revenue,LANO SPORTS NV,0
South Ribble Borough Council,http://statistics.data.gov.uk/id/local-authority/30UE,Open Spaces,Materials General,4040,"55x GRO-SURE FARMYARD MANURE 50LTR, 6x PELLETED FERTILISER 8KG BUCKET & CARRIAGE, As per Quotation No SO - 205556",30/03/2022,0000476623,353.23,Revenue,LBS WORLDWIDE LTD,0
South Ribble Borough Council,http://statistics.data.gov.uk/id/local-authority/30UE,Open Spaces,GM Refurbishment,4657,5mph & authorised vehicle signs,30/03/2022,0000477471,323.10,Revenue,LCC SIGN SHOP,0
South Ribble Borough Council,http://statistics.data.gov.uk/id/local-authority/30UE,Recreation & Sport,Software Licensing,4243,Setting up of 4 x Sign on new MID chip and pin @ 199.00 = 796 & 1 x sign on new MID for e-commerce @ 199.00 = 199.00,09/03/2022,0000472316,995.00,Revenue,Legend Software,0
South Ribble Borough Council,http://statistics.data.gov.uk/id/local-authority/30UE,Recreation & Sport,Professional Fees,4510,Les Mills subscription Charges,09/03/2022,0000476321,670.50,Revenue,Les Mills Fitness UK LTD,0
South Ribble Borough Council,http://statistics.data.gov.uk/id/local-authority/30UE,Recreation & Sport,Professional Fees,4510,Les Mills subscription Charges,09/03/2022,0000476323,731.50,Revenue,Les Mills Fitness UK LTD,0
South Ribble Borough Council,http://statistics.data.gov.uk/id/local-authority/30UE,Recreation & Sport,Professional Fees,4510,Les Mills subscription Charges,09/03/2022,0000476324,745.00,Revenue,Les Mills Fitness UK LTD,0
South Ribble Borough Council,http://statistics.data.gov.uk/id/local-authority/30UE,Recreation & Sport,Professional Fees,4510,Les Mills subscription Charges,09/03/2022,0000476325,180.00,Revenue,Les Mills Fitness UK LTD,0
South Ribble Borough Council,http://statistics.data.gov.uk/id/local-authority/30UE,Recreation & Sport,Professional Fees,4510,Les Mills subscription Charges,09/03/2022,0000476325,500.00,Revenue,Les Mills Fitness UK LTD,0
South Ribble Borough Council,http://statistics.data.gov.uk/id/local-authority/30UE,Community Development,Contributions to Other Bodies,4730,"Step up Grant - Double Bed, Mattress and Headboard to be provided and delivered to ADDRESS REDACTED",23/03/2022,0000476658,258.33,Revenue,Leyland Beds and Furniture Ltd,0
South Ribble Borough Council,http://statistics.data.gov.uk/id/local-authority/30UE,Community Development,External Catering Charges,4575,Haff thank you meeting Thursday 24th,17/03/2022,0000476521,351.75,Revenue,Leyland Fox Lane and Sports and Social Club,0
South Ribble Borough Council,http://statistics.data.gov.uk/id/local-authority/30UE,Corporate Management,Grants Voluntary Organisation,4711,Practical Support Payment - Re Socialisation Cafe,31/03/2022,0000477589,"5,500.00",Revenue,Leyland Fox Lane and Sports and Social Club,0
South Ribble Borough Council,http://statistics.data.gov.uk/id/local-authority/30UE,Community Development,Core Fund,4861,To undertake projects and activities and community support related to In Bloom,28/03/2022,0000477469,"1,288.00",Revenue,Leyland In Bloom,0
South Ribble Borough Council,http://statistics.data.gov.uk/id/local-authority/30UE,Recreation & Sport,Reactive Repair & Maintenance,2020,"Please repair and replace the rotten sheet steel panels on the skate park, to the rear of Leyland leisure centre",02/03/2022,0000476190,"1,380.00",Revenue,Leyland Lane Wrought Iron Gates & Railings,0
South Ribble Borough Council,http://statistics.data.gov.uk/id/local-authority/30UE,Central Support Services,Subscriptions General,4721,NDNR1 Support for 2022/23,30/03/2022,0000476720,"1,995.00",Revenue,LG FUTURES,0
South Ribble Borough Council,http://statistics.data.gov.uk/id/local-authority/30UE,Culture & Heritage,Operational Equip & Tools,4010,"STAS Cliprail Max WHITE 2m Picture Hanging System Rail x5, Cobra Perlon Suspender x3, Zipper Adjustable Hook Pack of 20",17/03/2022,0000476551,482.50,Revenue,Lion Picture Framing Supplies,0
South Ribble Borough Council,http://statistics.data.gov.uk/id/local-authority/30UE,Capital Grants & Contributions,Amount Paid,0030,Community Infrastructure Levy (CIL) Payment for Parish/Town Council re: planning application 07/2019/1810/FUL,30/03/2022,0000477468,"11,871.67",Revenue,LONGTON PARISH COUNCIL,0
South Ribble Borough Council,http://statistics.data.gov.uk/id/local-authority/30UE,Recreation & Sport,Professional Fees,4510,"Cash collection charges for Leisure sites From May 2021-Feb 2022, May 2021-Aug 2021, Sept 2021-Feb 2022 (Feb 2022 figure estimated)",23/03/2022,0000476589,251.66,Revenue,Loomis UK Limited,0
South Ribble Borough Council,http://statistics.data.gov.uk/id/local-authority/30UE,Economic Development,Professional Fees,4510,Northern Life Magazine Half page advert March/April edition As per booking confirmation number 36167,17/03/2022,0000476674,300.00,Revenue,Loop Publishing Ltd,0
South Ribble Borough Council,http://statistics.data.gov.uk/id/local-authority/30UE,Capital,Capital Grant,C570,DFG WORK FOR ADAPTATION FOR A RAMP AT ADDRESS REDACTED AS PER SRBC PLANS AND QUOTE SUPPLIED OF 3686.98,30/03/2022,0000477467,"3,686.98",Revenue,LTL CONSTRUCTION & MAINTENANCE LTD,0
South Ribble Borough Council,http://statistics.data.gov.uk/id/local-authority/30UE,Community Development,Miscellaneous Expenses,4851,Community Hub illustration,02/03/2022,0000476272,380.00,Revenue,LUCY WRAY / THRIFT DESIGN,0
South Ribble Borough Council,http://statistics.data.gov.uk/id/local-authority/30UE,Central Support Services,Operational Equip & Tools,4010,PADLOCKS  - SQUIRE 660 TO PASS KEY 10,09/03/2022,0000476331,273.17,Revenue,M A C BUILDING PRODUCTS LTD,0
South Ribble Borough Council,http://statistics.data.gov.uk/id/local-authority/30UE,Capital,Cap Contract Payment,C230,"Supply and offload 40 x 10 ft 2 team once officials sports changing unit, finished in Moss Green - corrugated as per NAME REDACTED",28/03/2022,0000476842,"26,235.00",Revenue,MAC Container Company Ltd,0
South Ribble Borough Council,http://statistics.data.gov.uk/id/local-authority/30UE,Capital,Capital Grant,C570,"DFG WORKS FOR LEVEL ACCESS BATHROOM AT ADDRESS REDACTED. NEW PROGRESS PROPERTY, 50% OF QUOTE TO BE PAID",23/03/2022,0000476718,"2,897.53",Revenue,MAHONEY CONTRACTORS LTD,0
South Ribble Borough Council,http://statistics.data.gov.uk/id/local-authority/30UE,Parking Services,Materials General,4040,2x CARNFIELD PLACE,30/03/2022,0000476592,100.80,Revenue,Main Street Signs Ltd,0
South Ribble Borough Council,http://statistics.data.gov.uk/id/local-authority/30UE,Parking Services,Materials General,4040,1x BULLER AVENUE T,30/03/2022,0000476592,51.20,Revenue,Main Street Signs Ltd,0
South Ribble Borough Council,http://statistics.data.gov.uk/id/local-authority/30UE,Parking Services,Materials General,4040,2x ROSEMARY COURT T,30/03/2022,0000476592,104.60,Revenue,Main Street Signs Ltd,0
South Ribble Borough Council,http://statistics.data.gov.uk/id/local-authority/30UE,Parking Services,Materials General,4040,1x WORDEN LANE 71-79,30/03/2022,0000476592,51.50,Revenue,Main Street Signs Ltd,0
South Ribble Borough Council,http://statistics.data.gov.uk/id/local-authority/30UE,Parking Services,Materials General,4040,2x SORREL COURT T,30/03/2022,0000476592,100.20,Revenue,Main Street Signs Ltd,0
South Ribble Borough Council,http://statistics.data.gov.uk/id/local-authority/30UE,Parking Services,Materials General,4040,2x SAGE COURT T,30/03/2022,0000476592,95.80,Revenue,Main Street Signs Ltd,0
South Ribble Borough Council,http://statistics.data.gov.uk/id/local-authority/30UE,Parking Services,Materials General,4040,2x WINDGATES T,30/03/2022,0000476592,95.80,Revenue,Main Street Signs Ltd,0
South Ribble Borough Council,http://statistics.data.gov.uk/id/local-authority/30UE,Parking Services,Materials General,4040,2x BERRY FIELD T,30/03/2022,0000476592,98.00,Revenue,Main Street Signs Ltd,0
South Ribble Borough Council,http://statistics.data.gov.uk/id/local-authority/30UE,Parking Services,Materials General,4040,2x BOLTON MEADOW T,30/03/2022,0000476592,102.40,Revenue,Main Street Signs Ltd,0
South Ribble Borough Council,http://statistics.data.gov.uk/id/local-authority/30UE,Parking Services,Materials General,4040,2x CINNAMON COURT T,30/03/2022,0000476592,104.60,Revenue,Main Street Signs Ltd,0
South Ribble Borough Council,http://statistics.data.gov.uk/id/local-authority/30UE,Parking Services,Materials General,4040,1x WEBSTER GARDENS T,30/03/2022,0000476592,53.40,Revenue,Main Street Signs Ltd,0
South Ribble Borough Council,http://statistics.data.gov.uk/id/local-authority/30UE,Parking Services,Materials General,4040,DELIVERY CHARGE,30/03/2022,0000476592,70.00,Revenue,Main Street Signs Ltd,0
South Ribble Borough Council,http://statistics.data.gov.uk/id/local-authority/30UE,Surplus or Deficit on Trading,Reactive Repair & Maintenance,2020,Please undertake a Fire Risk Assessment at Hurst Grange Coach House as detailed in you e-mail dated 1st November 2021,17/03/2022,0000476191,550.00,Revenue,Manchester Fire Compliance Ltd,0
South Ribble Borough Council,http://statistics.data.gov.uk/id/local-authority/30UE,Culture & Heritage,Operational Equip & Tools,4010,"Paper Towel Dispenser - Manutan x1, Combination Key Safe Box - Wall Mountable Storage - Master Lock x1, Spectra A3 & A4 Laminators",09/03/2022,0000476476,322.40,Revenue,Manutan UK Ltd,0
South Ribble Borough Council,http://statistics.data.gov.uk/id/local-authority/30UE,Recreation & Sport,Materials General,4040,"Bondi Goggle, White Blue-Tint Smoke Navy White-Tint Blue, Otter Goggle, Grey Green-Tint Smoke Bondi Junior Goggles, Orange Red-Clear",02/03/2022,0000476008,416.29,Revenue,MARES S.p.A,0
South Ribble Borough Council,http://statistics.data.gov.uk/id/local-authority/30UE,Recreation & Sport,Materials General,4040,,02/03/2022,0000476008,81.18,Revenue,MARES S.p.A,0
South Ribble Borough Council,http://statistics.data.gov.uk/id/local-authority/30UE,Recreation & Sport,Materials General,4040,Assorted swimming goods for re-sale.,02/03/2022,0000476009,644.35,Revenue,MARES S.p.A,0
South Ribble Borough Council,http://statistics.data.gov.uk/id/local-authority/30UE,Recreation & Sport,Materials General,4040,,02/03/2022,0000476009,127.38,Revenue,MARES S.p.A,0
South Ribble Borough Council,http://statistics.data.gov.uk/id/local-authority/30UE,Recreation & Sport,Operational Equip & Tools,4010,Bondi goggles 12 @ 45.00,02/03/2022,0000476192,45.00,Revenue,MARES S.p.A,0
South Ribble Borough Council,http://statistics.data.gov.uk/id/local-authority/30UE,Recreation & Sport,Operational Equip & Tools,4010,Otter googles 461023 @ 48.00,02/03/2022,0000476192,96.00,Revenue,MARES S.p.A,0
South Ribble Borough Council,http://statistics.data.gov.uk/id/local-authority/30UE,Recreation & Sport,Operational Equip & Tools,4010,Bondi Junior Goggles 90.00,02/03/2022,0000476192,90.00,Revenue,MARES S.p.A,0
South Ribble Borough Council,http://statistics.data.gov.uk/id/local-authority/30UE,Recreation & Sport,Operational Equip & Tools,4010,Ripper goggles 72,02/03/2022,0000476192,144.00,Revenue,MARES S.p.A,0
South Ribble Borough Council,http://statistics.data.gov.uk/id/local-authority/30UE,Recreation & Sport,Operational Equip & Tools,4010,Little Bondi Goggles 12,02/03/2022,0000476192,45.00,Revenue,MARES S.p.A,0
South Ribble Borough Council,http://statistics.data.gov.uk/id/local-authority/30UE,Recreation & Sport,Operational Equip & Tools,4010,silicone cap 18 / blue pink white,02/03/2022,0000476192,36.00,Revenue,MARES S.p.A,0
South Ribble Borough Council,http://statistics.data.gov.uk/id/local-authority/30UE,Recreation & Sport,Operational Equip & Tools,4010,Junior Cap silicone assorted including pink black 12,02/03/2022,0000476192,21.72,Revenue,MARES S.p.A,0
South Ribble Borough Council,http://statistics.data.gov.uk/id/local-authority/30UE,Recreation & Sport,Operational Equip & Tools,4010,Huggies little swimmers assorted size 72,02/03/2022,0000476192,48.96,Revenue,MARES S.p.A,0
South Ribble Borough Council,http://statistics.data.gov.uk/id/local-authority/30UE,Recreation & Sport,Operational Equip & Tools,4010,cannon strike back women 3,02/03/2022,0000476192,31.50,Revenue,MARES S.p.A,0
South Ribble Borough Council,http://statistics.data.gov.uk/id/local-authority/30UE,Recreation & Sport,Operational Equip & Tools,4010,Cottesole power back one piece 3,02/03/2022,0000476192,24.75,Revenue,MARES S.p.A,0
South Ribble Borough Council,http://statistics.data.gov.uk/id/local-authority/30UE,Recreation & Sport,Operational Equip & Tools,4010,mens penrith 17inch shorts 3,02/03/2022,0000476192,16.86,Revenue,MARES S.p.A,0
South Ribble Borough Council,http://statistics.data.gov.uk/id/local-authority/30UE,Recreation & Sport,Operational Equip & Tools,4010,Kerrawa strikeback Girls 4,02/03/2022,0000476192,32.40,Revenue,MARES S.p.A,0
South Ribble Borough Council,http://statistics.data.gov.uk/id/local-authority/30UE,Recreation & Sport,Operational Equip & Tools,4010,Girls surfer classicback swimsuit 3,02/03/2022,0000476192,16.20,Revenue,MARES S.p.A,0
South Ribble Borough Council,http://statistics.data.gov.uk/id/local-authority/30UE,Recreation & Sport,Operational Equip & Tools,4010,Boys T rex Hip racer blue 3,02/03/2022,0000476192,13.50,Revenue,MARES S.p.A,0
South Ribble Borough Council,http://statistics.data.gov.uk/id/local-authority/30UE,Recreation & Sport,Publicity & Promotion,4842,UV Glow Sports - Complete Lighting Systems - 8 lamp  3480.00 Ex. VAT  2900.00,09/03/2022,0000476287,"2,949.99",Revenue,Mark S G Enterprises Limited,0
South Ribble Borough Council,http://statistics.data.gov.uk/id/local-authority/30UE,Surplus or Deficit on Trading,Intruder Alarm,2035,Termination of contract costs for redcare line at Longton Brickcroft from 1/4/22 to 31/3/23 Invoice 748.80 less credit of 686.40,28/03/2022,0000476765,624.00,Revenue,Marlowe Fire & Security,0
South Ribble Borough Council,http://statistics.data.gov.uk/id/local-authority/30UE,Surplus or Deficit on Trading,Reactive Repair & Maintenance,2020,"Please undertake works to re-seal the skylights, and clear roof and gutters at ADDRESS REDACTED as detailed in your estimate",02/03/2022,0000476193,"1,100.00",Revenue,Mick Bamber,0
South Ribble Borough Council,http://statistics.data.gov.uk/id/local-authority/30UE,Surplus or Deficit on Trading,Reactive Repair & Maintenance,2020,"Apply new fascias and gutter, Remove 5 courses of bricks, Apply damp course and wall flashing, Rebed corping stones, Replace any broken",09/03/2022,0000476431,"2,200.00",Revenue,Mick Bamber,0
South Ribble Borough Council,http://statistics.data.gov.uk/id/local-authority/30UE,Surplus or Deficit on Trading,Reactive Repair & Maintenance,2020,Please undertake works to  renew valleys & repoint valleys at Longton - Brick Croft as detailed in your quotation ref 1188,17/03/2022,0000476522,"1,600.00",Revenue,Mick Bamber,0
South Ribble Borough Council,http://statistics.data.gov.uk/id/local-authority/30UE,Surplus or Deficit on Trading,Planned Annual Repair & Maintenance,2021,"Gutter cleaning 2021 / 2022 for 2 visits per year to 124, 125 &126 Brookfield Place, Walton Summit",17/03/2022,0000476634,230.00,Revenue,Mick Bamber,0
South Ribble Borough Council,http://statistics.data.gov.uk/id/local-authority/30UE,Surplus or Deficit on Trading,Planned Annual Repair & Maintenance,2021,"Gutter cleaning 2021 / 2022 for 2 visits per year to 225, 227 & 229 Brierley Road , Walton Summit",17/03/2022,0000476634,130.00,Revenue,Mick Bamber,0
South Ribble Borough Council,http://statistics.data.gov.uk/id/local-authority/30UE,Surplus or Deficit on Trading,Planned Annual Repair & Maintenance,2021,"Gutter cleaning 2021 / 2022 for 2 visits per year to 248, 253 & 255 Dawson Place, Walton Summit",17/03/2022,0000476634,100.00,Revenue,Mick Bamber,0
South Ribble Borough Council,http://statistics.data.gov.uk/id/local-authority/30UE,Surplus or Deficit on Trading,Planned Annual Repair & Maintenance,2021,"Gutter cleaning 2021 / 2022 for 2 visits per year to 449 Oakshott Place, Walton Summit",17/03/2022,0000476634,100.00,Revenue,Mick Bamber,0
South Ribble Borough Council,http://statistics.data.gov.uk/id/local-authority/30UE,Surplus or Deficit on Trading,Planned Annual Repair & Maintenance,2021,"Gutter cleaning 2021 / 2022 for 2 visits per year to units 1 - 11 Heaton Street, Leyland",17/03/2022,0000476634,280.00,Revenue,Mick Bamber,0
South Ribble Borough Council,http://statistics.data.gov.uk/id/local-authority/30UE,Surplus or Deficit on Trading,Planned Annual Repair & Maintenance,2021,"Gutter cleaning 2021 / 2022 for 2 visits per year to units 1 - 6 & 9 Middleforth industrial estate, Penwortham.",17/03/2022,0000476634,280.00,Revenue,Mick Bamber,0
South Ribble Borough Council,http://statistics.data.gov.uk/id/local-authority/30UE,Surplus or Deficit on Trading,Planned Annual Repair & Maintenance,2021,"Gutter cleaning 2021 / 2022 for 2 visits per year to garages 1 - 4 Balcarres Road, Leyland",17/03/2022,0000476634,280.00,Revenue,Mick Bamber,0
South Ribble Borough Council,http://statistics.data.gov.uk/id/local-authority/30UE,Surplus or Deficit on Trading,Planned Annual Repair & Maintenance,2021,"Gutter cleaning 2021 / 2022 for 2 visits per year to 122, 123, 124, 126, 128, 130 & 131 Clydesdale Place, Leyland",17/03/2022,0000476634,180.00,Revenue,Mick Bamber,0
South Ribble Borough Council,http://statistics.data.gov.uk/id/local-authority/30UE,Surplus or Deficit on Trading,Planned Annual Repair & Maintenance,2021,"Gutter cleaning 2021 / 2022 for 2 visits per year to units 1 - 9 Forward Industrial Estate, Leyland",17/03/2022,0000476634,330.00,Revenue,Mick Bamber,0
South Ribble Borough Council,http://statistics.data.gov.uk/id/local-authority/30UE,Surplus or Deficit on Trading,Planned Annual Repair & Maintenance,2021,"Gutter cleaning 2021 / 2022 for 2 visits per year to 53 - 69 Pope Lane, Penwortham",17/03/2022,0000476634,160.00,Revenue,Mick Bamber,0
South Ribble Borough Council,http://statistics.data.gov.uk/id/local-authority/30UE,Surplus or Deficit on Trading,Planned Annual Repair & Maintenance,2021,"Gutter cleaning 2021 / 2022 for 2 visits per year to garages 1 - 11 Ryefield Avenue, Penwortham",17/03/2022,0000476634,100.00,Revenue,Mick Bamber,0
South Ribble Borough Council,http://statistics.data.gov.uk/id/local-authority/30UE,Surplus or Deficit on Trading,Planned Annual Repair & Maintenance,2021,"Gutter cleaning 2021 / 2022 for 2 visits per year to 2, 4, 8, 10, 16, 18 & 24 Hawksbury Drive, Penwortham",17/03/2022,0000476634,100.00,Revenue,Mick Bamber,0
South Ribble Borough Council,http://statistics.data.gov.uk/id/local-authority/30UE,Surplus or Deficit on Trading,Planned Annual Repair & Maintenance,2021,"Gutter cleaning 2021 / 2022 for 2 visits per year to 2A John Street, Bamber Bridge",17/03/2022,0000476634,100.00,Revenue,Mick Bamber,0
South Ribble Borough Council,http://statistics.data.gov.uk/id/local-authority/30UE,Surplus or Deficit on Trading,Planned Annual Repair & Maintenance,2021,"Gutter cleaning 2021 / 2022 for 2 visits per year to 78 Towngate, Leyland",17/03/2022,0000476634,80.00,Revenue,Mick Bamber,0
South Ribble Borough Council,http://statistics.data.gov.uk/id/local-authority/30UE,Surplus or Deficit on Trading,Planned Annual Repair & Maintenance,2021,"Gutter cleaning 2021 / 2022 for 2 visits per year to units 1 - 6 & 38 Momentum Business Park, Bamber Bridge",17/03/2022,0000476634,80.00,Revenue,Mick Bamber,0
South Ribble Borough Council,http://statistics.data.gov.uk/id/local-authority/30UE,Central Support Services,Planned Annual Repair & Maintenance,2021,"Gutter cleaning 2021 / 2022 for 2 visits per year to 81a Bison Place, Leyland PR26 7QR",17/03/2022,0000476634,100.00,Revenue,Mick Bamber,0
South Ribble Borough Council,http://statistics.data.gov.uk/id/local-authority/30UE,Surplus or Deficit on Trading,Planned Annual Repair & Maintenance,2021,"Gutter cleaning 2021 / 2022 for 2 visits per year to 14A to 18F Boxer Place, Leyland",17/03/2022,0000476634,280.00,Revenue,Mick Bamber,0
South Ribble Borough Council,http://statistics.data.gov.uk/id/local-authority/30UE,Central Support Services,Planned Annual Repair & Maintenance,2021,"Gutter Cleaning 2021 / 2022 for 2 visits per year to Moss Side Depot, Bison Place, Leyland",17/03/2022,0000476635,230.00,Revenue,Mick Bamber,0
South Ribble Borough Council,http://statistics.data.gov.uk/id/local-authority/30UE,Economic Development,Planned Annual Repair & Maintenance,2021,Gutter Cleaning 2021 / 2022 for 2 visits per year to Leyland market,17/03/2022,0000476635,130.00,Revenue,Mick Bamber,0
South Ribble Borough Council,http://statistics.data.gov.uk/id/local-authority/30UE,Surplus or Deficit on Trading,Planned Annual Repair & Maintenance,2021,Gutter Cleaning 2021 / 2022 for 2 visits per year to Higher Walton Community Centre,17/03/2022,0000476635,100.00,Revenue,Mick Bamber,0
South Ribble Borough Council,http://statistics.data.gov.uk/id/local-authority/30UE,Recreation & Sport,Planned Annual Repair & Maintenance,2021,Gutter Cleaning 2021 / 2022 for 2 visits per year to Moss Side Community Centre,17/03/2022,0000476635,100.00,Revenue,Mick Bamber,0
South Ribble Borough Council,http://statistics.data.gov.uk/id/local-authority/30UE,Surplus or Deficit on Trading,Planned Annual Repair & Maintenance,2021,"Gutter Cleaning 2021 / 2022 for 2 visits per year to the Museum, Leyland",17/03/2022,0000476635,200.00,Revenue,Mick Bamber,0
South Ribble Borough Council,http://statistics.data.gov.uk/id/local-authority/30UE,Surplus or Deficit on Trading,Planned Annual Repair & Maintenance,2021,Gutter Cleaning 2021 / 2022 for 2 visits per year to Longton Brickcroft,17/03/2022,0000476635,200.00,Revenue,Mick Bamber,0
South Ribble Borough Council,http://statistics.data.gov.uk/id/local-authority/30UE,Recreation & Sport,Planned Annual Repair & Maintenance,2021,Gutter Cleaning 2021 / 2022 for 2 visits per year to Leyland Leisure Centre,17/03/2022,0000476635,280.00,Revenue,Mick Bamber,0
South Ribble Borough Council,http://statistics.data.gov.uk/id/local-authority/30UE,Recreation & Sport,Planned Annual Repair & Maintenance,2021,Gutter Cleaning 2021 / 2022 for 2 visits per year to Bamber Bridge Leisure Centre,17/03/2022,0000476635,280.00,Revenue,Mick Bamber,0
South Ribble Borough Council,http://statistics.data.gov.uk/id/local-authority/30UE,Recreation & Sport,Planned Annual Repair & Maintenance,2021,Gutter Cleaning 2021 / 2022 for 2 visits per year to Penwortham Leisure Centre,17/03/2022,0000476635,280.00,Revenue,Mick Bamber,0
South Ribble Borough Council,http://statistics.data.gov.uk/id/local-authority/30UE,Recreation & Sport,Planned Annual Repair & Maintenance,2021,"Gutter Cleaning 2021 / 2022 for 2 visits per year to South Ribble Tennis Centre, Bamber Bridge",17/03/2022,0000476635,280.00,Revenue,Mick Bamber,0
South Ribble Borough Council,http://statistics.data.gov.uk/id/local-authority/30UE,Central Support Services,Planned Annual Repair & Maintenance,2021,"Gutter Cleaning 2021 / 2022 for 2 visits per year to the Civic Centre, Leyland",17/03/2022,0000476635,200.00,Revenue,Mick Bamber,0
South Ribble Borough Council,http://statistics.data.gov.uk/id/local-authority/30UE,Surplus or Deficit on Trading,Planned Annual Repair & Maintenance,2021,Gutter Cleaning 2021 / 2022 for 2 visits per year to Carr Street Community Centre,17/03/2022,0000476635,200.00,Revenue,Mick Bamber,0
South Ribble Borough Council,http://statistics.data.gov.uk/id/local-authority/30UE,Surplus or Deficit on Trading,Planned Annual Repair & Maintenance,2021,"Gutter Cleaning 2021 / 2022 for 2 visits per year to Holland House Farm Pavilion, Walton Le Dale",17/03/2022,0000476635,160.00,Revenue,Mick Bamber,0
South Ribble Borough Council,http://statistics.data.gov.uk/id/local-authority/30UE,Regulatory Services,Planned Annual Repair & Maintenance,2021,"Gutter Cleaning 2021 / 2022 for 2 visits per year to crossroads toilets, Worden Park",17/03/2022,0000476635,80.00,Revenue,Mick Bamber,0
South Ribble Borough Council,http://statistics.data.gov.uk/id/local-authority/30UE,Surplus or Deficit on Trading,Planned Annual Repair & Maintenance,2021,"Gutter Cleaning 2021 / 2022 for 2 visits per year to playground toilets, Worden Park",17/03/2022,0000476635,80.00,Revenue,Mick Bamber,0
South Ribble Borough Council,http://statistics.data.gov.uk/id/local-authority/30UE,Regulatory Services,Planned Annual Repair & Maintenance,2021,"Gutter Cleaning 2021 / 2022 for 2 visits per year to Withy Grove toilets, Bamber Bridge",17/03/2022,0000476635,160.00,Revenue,Mick Bamber,0
South Ribble Borough Council,http://statistics.data.gov.uk/id/local-authority/30UE,Regulatory Services,Planned Annual Repair & Maintenance,2021,"Gutter Cleaning 2021 / 2022 for 2 visits per year to Tardy gate Toilets, Lostock Hall",17/03/2022,0000476635,160.00,Revenue,Mick Bamber,0
South Ribble Borough Council,http://statistics.data.gov.uk/id/local-authority/30UE,Surplus or Deficit on Trading,Planned Annual Repair & Maintenance,2021,"Gutter Cleaning 2021 / 2022 for 2 visits per year to Withy Grove Pavilion, Bamber Bridge",17/03/2022,0000476635,160.00,Revenue,Mick Bamber,0
South Ribble Borough Council,http://statistics.data.gov.uk/id/local-authority/30UE,Surplus or Deficit on Trading,Planned Annual Repair & Maintenance,2021,"Gutter Cleaning 2021 / 2022 for 2 visits per year to Kingfold Pavilion, Penwortham",17/03/2022,0000476635,160.00,Revenue,Mick Bamber,0
South Ribble Borough Council,http://statistics.data.gov.uk/id/local-authority/30UE,Surplus or Deficit on Trading,Planned Annual Repair & Maintenance,2021,"Gutter Cleaning 2021 / 2022 for 2 visits per year to Hutton Pavilion, Moor Lane Hutton",17/03/2022,0000476635,160.00,Revenue,Mick Bamber,0
South Ribble Borough Council,http://statistics.data.gov.uk/id/local-authority/30UE,Surplus or Deficit on Trading,Planned Annual Repair & Maintenance,2021,"Gutter Cleaning 2021 / 2022 for 2 visits per year to Moss Side Pavilion, Moss Side Way, Leyland",17/03/2022,0000476635,160.00,Revenue,Mick Bamber,0
South Ribble Borough Council,http://statistics.data.gov.uk/id/local-authority/30UE,Surplus or Deficit on Trading,Planned Annual Repair & Maintenance,2021,"Gutter Cleaning 2021 / 2022 for 2 visits per year to Worden Craft units 1  8, ground floor & 1st floor Brewhouse",17/03/2022,0000476635,180.00,Revenue,Mick Bamber,0
South Ribble Borough Council,http://statistics.data.gov.uk/id/local-authority/30UE,Surplus or Deficit on Trading,Planned Annual Repair & Maintenance,2021,"Gutter Cleaning 2021 / 2022 for 2 visits per year to Worden Park complex incl; barn, foyer, folly, derby wing & tank/boiler room",17/03/2022,0000476635,330.00,Revenue,Mick Bamber,0
South Ribble Borough Council,http://statistics.data.gov.uk/id/local-authority/30UE,Surplus or Deficit on Trading,Planned Annual Repair & Maintenance,2021,"Gutter cleaning 2021 / 2022 for 2 visits per year to the Bungalow, Worden Park",17/03/2022,0000476635,100.00,Revenue,Mick Bamber,0
South Ribble Borough Council,http://statistics.data.gov.uk/id/local-authority/30UE,Surplus or Deficit on Trading,Planned Annual Repair & Maintenance,2021,"Gutter cleaning 2021 / 2022 for 2 visits per year to 3 & 4 Farmyard Cottages, Worden Park, Leyland",17/03/2022,0000476635,160.00,Revenue,Mick Bamber,0
South Ribble Borough Council,http://statistics.data.gov.uk/id/local-authority/30UE,Surplus or Deficit on Trading,Planned Annual Repair & Maintenance,2021,"Gutter cleaning 2021 / 2022 for 2 visits per year to Worden Park Walled garden complex � potting shed,pothouse, vine house & aluminium house",17/03/2022,0000476635,320.00,Revenue,Mick Bamber,0
South Ribble Borough Council,http://statistics.data.gov.uk/id/local-authority/30UE,Surplus or Deficit on Trading,Planned Annual Repair & Maintenance,2021,"Gutter cleaning 2021 / 2022 for 2 visits per year to Worden Park Formal gardens � conservatory, lean to and gardeners mess room",17/03/2022,0000476635,200.00,Revenue,Mick Bamber,0
South Ribble Borough Council,http://statistics.data.gov.uk/id/local-authority/30UE,Surplus or Deficit on Trading,Planned Annual Repair & Maintenance,2021,"Gutter cleaning 2021 / 2022 for 2 visits per year to Gardeners Cottage, Worden Park",17/03/2022,0000476635,100.00,Revenue,Mick Bamber,0
South Ribble Borough Council,http://statistics.data.gov.uk/id/local-authority/30UE,Surplus or Deficit on Trading,Planned Annual Repair & Maintenance,2021,"Gutter cleaning 2021 / 2022 for 2 visits per year to the Bothy, Worden Park",17/03/2022,0000476635,100.00,Revenue,Mick Bamber,0
South Ribble Borough Council,http://statistics.data.gov.uk/id/local-authority/30UE,Surplus or Deficit on Trading,Planned Annual Repair & Maintenance,2021,"Gutter cleaning 2021 / 2022 for 2 visits per year to North lodge, Worden Park",17/03/2022,0000476635,100.00,Revenue,Mick Bamber,0
South Ribble Borough Council,http://statistics.data.gov.uk/id/local-authority/30UE,Surplus or Deficit on Trading,Planned Annual Repair & Maintenance,2021,Gutter cleaning 2021 / 2022 for 2 visits to Hurst Grange park Coach House,17/03/2022,0000476635,160.00,Revenue,Mick Bamber,0
South Ribble Borough Council,http://statistics.data.gov.uk/id/local-authority/30UE,Surplus or Deficit on Trading,Reactive Repair & Maintenance,2020,"Please undertake works to  apply z bar, insulation & lead flashings to the roof at Longton Pavilion as detailed in your quotation ref 1189",17/03/2022,0000476636,"2,800.00",Revenue,Mick Bamber,0
South Ribble Borough Council,http://statistics.data.gov.uk/id/local-authority/30UE,Capital,Capital Grant,C570,"SUPPLY AND INSTALL ADDITIONAL ROOM PADDING AT ADDRESS REDACTED. 50% of total cost covered by new progress, paid via dfg",02/03/2022,0000476300,"3,623.00",Revenue,Mike Ayres Design Ltd,0
South Ribble Borough Council,http://statistics.data.gov.uk/id/local-authority/30UE,Central Support Services,External Contractors Charges,4570,Transport vehicle YE19 JPW from Unit 81 Bison Place to Lynch Truck Barfield Way Accrington - JFC17844,02/03/2022,0000476194,322.50,Revenue,MILLERS OF LONGTON LTD,0
South Ribble Borough Council,http://statistics.data.gov.uk/id/local-authority/30UE,Central Support Services,Legal,4821,PROFESSIONAL SERVICES IN RESPECT OF CUERDEN DEVELOPMENT (378838),30/03/2022,0000477286,450.00,Revenue,MR IAN PONTER,0
South Ribble Borough Council,http://statistics.data.gov.uk/id/local-authority/30UE,Capital,Capital Grant,C570,DFG ADAPTATION FOR EXTERNAL WORKS TO CREATE PATH AND ACCESS FROM DRIVEWAY AT ADDRESS REDACTED PER PLANS,17/03/2022,0000476434,"6,055.00",Revenue,MSG Building and Construction Ltd,0
South Ribble Borough Council,http://statistics.data.gov.uk/id/local-authority/30UE,Capital Grants & Contributions,Amount Paid,0030,Community Infrastructure Levy (CIL) Payment for Parish/Town Council re: planning application,30/03/2022,0000477465,"1,197.41",Revenue,MUCH HOOLE PARISH COUNCIL,0
South Ribble Borough Council,http://statistics.data.gov.uk/id/local-authority/30UE,Capital Grants & Contributions,Amount Paid,0030,Community Infrastructure Levy (CIL) Payment for Parish/Town Council re: planning application,30/03/2022,0000477465,"6,958.70",Revenue,MUCH HOOLE PARISH COUNCIL,0
South Ribble Borough Council,http://statistics.data.gov.uk/id/local-authority/30UE,Central Support Services,External Contractors Charges,4570,Spec repair to rectify major fault on the back end YA19 NGN JFC17949 (Labour),02/03/2022,0000476195,"1,435.50",Revenue,Municipal Vehicle Services,0
South Ribble Borough Council,http://statistics.data.gov.uk/id/local-authority/30UE,Central Support Services,External Contractors Charges,4570,Spec Repair YD19ATK JFC17909,09/03/2022,0000476444,"2,177.50",Revenue,Municipal Vehicle Services,0
South Ribble Borough Council,http://statistics.data.gov.uk/id/local-authority/30UE,Central Support Services,External Contractors Charges,4570,Labour for back end overall YD19ATY JFC18113,30/03/2022,0000477464,"3,790.00",Revenue,Municipal Vehicle Services,0
South Ribble Borough Council,http://statistics.data.gov.uk/id/local-authority/30UE,Central Support Services,IT Consumables,413A,"Apple Smart Keyboard Folio for iPad; Air (4th Gen) and iPad; Pro 11-inch, 30x USB-C Power Adapter, 30x USB-C to Lightning Cable",17/03/2022,0000476100,"1,025.00",Revenue,MYPREMIER LTD,0
South Ribble Borough Council,http://statistics.data.gov.uk/id/local-authority/30UE,Central Support Services,External Contractors Charges,4570,"Set Up Fee, 100% payable on order Annual Service Charge (based on the Annual Quota of Hard Copy Images)",28/03/2022,0000477349,"1,125.00",Revenue,NEC Software Solutions UK Ltd,0
South Ribble Borough Council,http://statistics.data.gov.uk/id/local-authority/30UE,Central Support Services,External Contractors Charges,4570,"Set Up Fee, 100% payable on order Annual Service Charge (based on the Annual Quota of Hard Copy Images)",28/03/2022,0000477462,"3,000.00",Revenue,NEC Software Solutions UK Ltd,0
South Ribble Borough Council,http://statistics.data.gov.uk/id/local-authority/30UE,Capital,Cap Contract Payment,C230,RIBA Stage 3 - Extra Care Development - West Paddock (includes Principle Designer Fees),28/03/2022,0000476821,"28,580.00",Revenue,NORR Consultants Limited,0
South Ribble Borough Council,http://statistics.data.gov.uk/id/local-authority/30UE,Central Support Services,Materials General,4040,4 ROW CHANNEL BRUSH - C/W 4 NUTS/BOLTS,17/03/2022,0000476435,370.31,Revenue,NORTHERN MUNICIPAL SPARES LTD,0
South Ribble Borough Council,http://statistics.data.gov.uk/id/local-authority/30UE,Central Support Services,Materials General,4040,SCARAB MINI SWEEPER BRUSHES - POLY/WIRE MIX MATHIEU-0120089,23/03/2022,0000476525,"1,277.54",Revenue,NORTHERN MUNICIPAL SPARES LTD,0
South Ribble Borough Council,http://statistics.data.gov.uk/id/local-authority/30UE,Central Support Services,Materials General,4040,CHANNEL BRUSH - 2.8 mm POLY & 3.3mm WIRE 5 row 700/1000mm - MIDI SWEEPER 78399/2,23/03/2022,0000476525,785.57,Revenue,NORTHERN MUNICIPAL SPARES LTD,0
South Ribble Borough Council,http://statistics.data.gov.uk/id/local-authority/30UE,Central Support Services,Reactive Repair & Maintenance,2020,Please supply and fit a new cage to the grounds workshop at Moss Side Depot as detailed in your quotation ref QU000312,17/03/2022,0000476505,"3,800.00",Revenue,Northern Storage & Interiors Ltd,0
South Ribble Borough Council,http://statistics.data.gov.uk/id/local-authority/30UE,Community Development,Contributions to Other Bodies,4730,Supply of 1x Condensor Dryer and 1x Washing machine as part of Step up Grant,23/03/2022,0000476642,600.00,Revenue,NORTHWEST DOMESTIC SERVICES,0
South Ribble Borough Council,http://statistics.data.gov.uk/id/local-authority/30UE,Recreation & Sport,Electricity,2303,1/2 to 28/2,17/03/2022,0000476548,"4,736.06",Revenue,NPOWER Business,0
South Ribble Borough Council,http://statistics.data.gov.uk/id/local-authority/30UE,Recreation & Sport,Electricity,2303,1/2 to 28/2,17/03/2022,0000476549,"3,174.28",Revenue,NPOWER Business,0
South Ribble Borough Council,http://statistics.data.gov.uk/id/local-authority/30UE,Recreation & Sport,Electricity,2303,1/2 to 28/2/22,30/03/2022,0000477253,"3,253.35",Revenue,NPOWER Business,0
South Ribble Borough Council,http://statistics.data.gov.uk/id/local-authority/30UE,Recreation & Sport,Electricity,2303,1/1 to 31/1/22,30/03/2022,0000477254,"2,818.34",Revenue,NPOWER Business,0
South Ribble Borough Council,http://statistics.data.gov.uk/id/local-authority/30UE,Recreation & Sport,Electricity,2303,1/2 to 28/2/22,30/03/2022,0000477255,"2,679.77",Revenue,NPOWER Business,0
South Ribble Borough Council,http://statistics.data.gov.uk/id/local-authority/30UE,Parking Services,Parking Attendants,4514,Variable Fee Car Park Enforcement- January 2022- Variable Recharge Items,02/03/2022,0000476196,"1,510.67",Revenue,NSL LTD,0
South Ribble Borough Council,http://statistics.data.gov.uk/id/local-authority/30UE,Parking Services,Cash Collection Charges Car Parks,4855,Variable Fee Car Park Enforcement January 2022- Fixed Recharge Items,02/03/2022,0000476196,737.08,Revenue,NSL LTD,0
South Ribble Borough Council,http://statistics.data.gov.uk/id/local-authority/30UE,Parking Services,Parking Attendants,4514,Variable Fee Car Park Enforcement- February 2022- Variable Recharge Items,30/03/2022,0000476763,"1,531.78",Revenue,NSL LTD,0
South Ribble Borough Council,http://statistics.data.gov.uk/id/local-authority/30UE,Parking Services,Cash Collection Charges Car Parks,4855,Variable Fee Car Park Enforcement- February 2022- Fixed Recharge Items,30/03/2022,0000476763,737.08,Revenue,NSL LTD,0
South Ribble Borough Council,http://statistics.data.gov.uk/id/local-authority/30UE,Economic Development,Professional Fees,4510,South Ribble Staff and Residents' Survey,17/03/2022,0000476516,"4,460.00",Revenue,NWA Social and Market Research Ltd,0
South Ribble Borough Council,http://statistics.data.gov.uk/id/local-authority/30UE,Homelessness,Void Loss,5313,"Tenancy No;     1037513703

Rent loss   form 18/2/22 to 15/3/22 
 3 weeks & 4 days  for:
34 FURTHER FIELD BAMBER BRIDGE PRESTON PR5 6XP

(89.09 *3) 269.70+(12.76*4 )51.04=320.74",30/03/2022,0000477429,320.74,Revenue,Onward Homes Ltd,0
South Ribble Borough Council,http://statistics.data.gov.uk/id/local-authority/30UE,Central Support Services,Miscellaneous Expenses,4851,"Description- Outdoor work Clothing/ boots as per NAME REDACTED request, Amount- 500",02/03/2022,0000476197,406.42,Revenue,OUTDOOR ACTION LTD,0
South Ribble Borough Council,http://statistics.data.gov.uk/id/local-authority/30UE,Parking Services,Materials General,4040,"60,000 labels South Ribble Stelio Paper 60mm x 69.85mm (stelio 80 NA)",09/03/2022,0000476461,314.28,Revenue,PAPERWORK UK LTD,0
South Ribble Borough Council,http://statistics.data.gov.uk/id/local-authority/30UE,Parking Services,Materials General,4040,1000 Parking Permits,28/03/2022,0000477546,980.00,Revenue,Parking and Secure Documents,0
South Ribble Borough Council,http://statistics.data.gov.uk/id/local-authority/30UE,Central Support Services,Consumable Clng Materials,2711,BC015-75 JANGRO THICKENED BLEACH 750ML 24 @ 0.50,02/03/2022,0000476201,15.84,Revenue,Pattersons (Bristol) Ltd,0
South Ribble Borough Council,http://statistics.data.gov.uk/id/local-authority/30UE,Central Support Services,Consumable Clng Materials,2711,AA201 JANGRO MICRO MINI TOILET ROLL 100M X 90MM (24) 10 packs @ 10.59,02/03/2022,0000476201,122.50,Revenue,Pattersons (Bristol) Ltd,0
South Ribble Borough Council,http://statistics.data.gov.uk/id/local-authority/30UE,Central Support Services,Consumable Clng Materials,2711,BK101-50 JANGRO PINK PEARLISED HAND SOAP 500ML 2 @ 1.22,02/03/2022,0000476201,3.74,Revenue,Pattersons (Bristol) Ltd,0
South Ribble Borough Council,http://statistics.data.gov.uk/id/local-authority/30UE,Central Support Services,Consumable Clng Materials,2711,AE234 TORK S-FOLD HAND TOWEL 1PLY BLUE (4000SHT) 6 packs @ 13.25,02/03/2022,0000476201,109.44,Revenue,Pattersons (Bristol) Ltd,0
South Ribble Borough Council,http://statistics.data.gov.uk/id/local-authority/30UE,Central Support Services,Consumable Clng Materials,2711,BP012 JANGRO ENVIRO BIO LAUNDRY POWDER 100 WASH 1 @ 9.00,02/03/2022,0000476201,11.10,Revenue,Pattersons (Bristol) Ltd,0
South Ribble Borough Council,http://statistics.data.gov.uk/id/local-authority/30UE,Central Support Services,Consumable Clng Materials,2711,CM180 JANGRO REFUSE SACKS 18X29X39 180G HEAVY DUTY BLACK (200) 2 @ 11.75,02/03/2022,0000476201,27.66,Revenue,Pattersons (Bristol) Ltd,0
South Ribble Borough Council,http://statistics.data.gov.uk/id/local-authority/30UE,Central Support Services,Consumable Clng Materials,2711,BC045-1 JANGRO TOILET & WASHROOM CLEANER DESCALER 1 LTR 12 @ 0.94,02/03/2022,0000476201,14.40,Revenue,Pattersons (Bristol) Ltd,0
South Ribble Borough Council,http://statistics.data.gov.uk/id/local-authority/30UE,Central Support Services,Consumable Clng Materials,2711,BB034-5 JANGRO CONCENTRATED GREEN DETERGENT 20% 5LTR 6 @ 3.30,02/03/2022,0000476201,29.70,Revenue,Pattersons (Bristol) Ltd,0
South Ribble Borough Council,http://statistics.data.gov.uk/id/local-authority/30UE,Central Support Services,Consumable Clng Materials,2711,BC017-5 JANGRO FLORAL DISINFECTANT 5 LTR 2 @ 1.53,02/03/2022,0000476201,4.74,Revenue,Pattersons (Bristol) Ltd,0
South Ribble Borough Council,http://statistics.data.gov.uk/id/local-authority/30UE,Central Support Services,Consumable Clng Materials,2711,HA014-B EXEL PY SOCKET MOP HEAD 200G BLUE 10 @ 0.63,02/03/2022,0000476201,7.40,Revenue,Pattersons (Bristol) Ltd,0
South Ribble Borough Council,http://statistics.data.gov.uk/id/local-authority/30UE,Central Support Services,Consumable Clng Materials,2711,HA014-R EXEL PY SOCKET MOP HEAD 200G RED 10 @ 0.63,02/03/2022,0000476201,7.40,Revenue,Pattersons (Bristol) Ltd,0
South Ribble Borough Council,http://statistics.data.gov.uk/id/local-authority/30UE,Central Support Services,Consumable Clng Materials,2711,BD075-5 JANGRO SAFETY FLOOR CLEANER 5LTR 4 @ 8,02/03/2022,0000476201,35.48,Revenue,Pattersons (Bristol) Ltd,0
South Ribble Borough Council,http://statistics.data.gov.uk/id/local-authority/30UE,Central Support Services,Consumable Clng Materials,2711,HA025-G GREEN EXEL MOP HANDLE 54'' 3 @ 7,02/03/2022,0000476201,11.79,Revenue,Pattersons (Bristol) Ltd,0
South Ribble Borough Council,http://statistics.data.gov.uk/id/local-authority/30UE,Central Support Services,Consumable Clng Materials,2711,HA025-B BLUE EXEL MOP HANDLE 54'' 3 @ 7,02/03/2022,0000476201,11.79,Revenue,Pattersons (Bristol) Ltd,0
South Ribble Borough Council,http://statistics.data.gov.uk/id/local-authority/30UE,Central Support Services,Consumable Clng Materials,2711,HA025-R RED EXEL MOP HANDLE 54 ''3 @ 7,02/03/2022,0000476201,11.79,Revenue,Pattersons (Bristol) Ltd,0
South Ribble Borough Council,http://statistics.data.gov.uk/id/local-authority/30UE,Economic Development,Consumable Clng Materials,2711,AA201 JANGRO MICRO MINI TOILET ROLL 100M X 90MM (24) 8 @ 10.59,30/03/2022,0000476714,116.56,Revenue,Pattersons (Bristol) Ltd,0
South Ribble Borough Council,http://statistics.data.gov.uk/id/local-authority/30UE,Economic Development,Consumable Clng Materials,2711,AE233 JANGRO HAND TOWEL 1PLY S/V FOLD GREEN (12X300) 25X21CM 7 @ 8.1,30/03/2022,0000476714,63.21,Revenue,Pattersons (Bristol) Ltd,0
South Ribble Borough Council,http://statistics.data.gov.uk/id/local-authority/30UE,Economic Development,Consumable Clng Materials,2711,BC015-75 JANGRO THICKENED BLEACH 750ML 18 @ 0.50,30/03/2022,0000476714,15.12,Revenue,Pattersons (Bristol) Ltd,0
South Ribble Borough Council,http://statistics.data.gov.uk/id/local-authority/30UE,Economic Development,Consumable Clng Materials,2711,BC040-1 JANGRO PERFUMED TOILET CLEANER 1LTR 36 @  0.90,30/03/2022,0000476714,36.00,Revenue,Pattersons (Bristol) Ltd,0
South Ribble Borough Council,http://statistics.data.gov.uk/id/local-authority/30UE,Economic Development,Consumable Clng Materials,2711,BD041-5 JANGRO LEMON FLOOR GEL 5LTR S 5 @ 4.45,30/03/2022,0000476714,22.25,Revenue,Pattersons (Bristol) Ltd,0
South Ribble Borough Council,http://statistics.data.gov.uk/id/local-authority/30UE,Economic Development,Consumable Clng Materials,2711,BK140-5 Jangro Alcohol Gel Hand Rub 5 Litre (Case of 2) 4 @ 80.00,30/03/2022,0000476714,320.00,Revenue,Pattersons (Bristol) Ltd,0
South Ribble Borough Council,http://statistics.data.gov.uk/id/local-authority/30UE,Economic Development,Consumable Clng Materials,2711,CG121-B COLOUR CODED DISHCLOTHS 12 X 16 BLUE (10) 4 @ 1.16,30/03/2022,0000476714,4.64,Revenue,Pattersons (Bristol) Ltd,0
South Ribble Borough Council,http://statistics.data.gov.uk/id/local-authority/30UE,Economic Development,Consumable Clng Materials,2711,CG121-R COLOUR CODED DISHCLOTHS 12 X 16 RED (10) 4 @ 1.16,30/03/2022,0000476714,4.64,Revenue,Pattersons (Bristol) Ltd,0
South Ribble Borough Council,http://statistics.data.gov.uk/id/local-authority/30UE,Economic Development,Consumable Clng Materials,2711,CM180 JANGRO REFUSE SACKS 18X29X39 180G HEAVY DUTY BLACK (200) 3 @ 11.75,30/03/2022,0000476714,37.95,Revenue,Pattersons (Bristol) Ltd,0
South Ribble Borough Council,http://statistics.data.gov.uk/id/local-authority/30UE,Economic Development,Consumable Clng Materials,2711,HA015-B EXEL PY MOP HEAD 250 grm BLUE 18 @ 0.90,30/03/2022,0000476714,16.20,Revenue,Pattersons (Bristol) Ltd,0
South Ribble Borough Council,http://statistics.data.gov.uk/id/local-authority/30UE,Economic Development,Consumable Clng Materials,2711,HA015-R EXEL PY MOP HEAD 250 grm RED 18 @ 0.90,30/03/2022,0000476714,16.20,Revenue,Pattersons (Bristol) Ltd,0
South Ribble Borough Council,http://statistics.data.gov.uk/id/local-authority/30UE,Surplus or Deficit on Trading,Energy Performance Certificates,2308,Energy Performance Assessment at 53-55 Pope Lane Penwortham,28/03/2022,0000477426,250.00,Revenue,Paul Foster and Co Ltd,0
South Ribble Borough Council,http://statistics.data.gov.uk/id/local-authority/30UE,Capital,Capital Grant,C570,DFG WORK FOR ADAPTATION FOR  LEVEL ACCESS BATHROOM AT ADDRESS REDACTED AS PER SRBC PLANS AND QUOTE,23/03/2022,0000476783,"6,015.00",Revenue,Paul Rothwell and Sons,0
South Ribble Borough Council,http://statistics.data.gov.uk/id/local-authority/30UE,Recreation & Sport,Maintenance & Repair,4013,"Please supply and deliver 18x, 600x600 paving flags, to Penwortham Holme as agreed with facilities management.",02/03/2022,0000476299,300.00,Revenue,PDP PROPERTY SERVICES LTD,0
South Ribble Borough Council,http://statistics.data.gov.uk/id/local-authority/30UE,Surplus or Deficit on Trading,Reactive Repair & Maintenance,2020,Please undertake works to 78 Towngate as detailed in your quotation ref QU-0532,17/03/2022,0000476513,"2,050.40",Revenue,PDP PROPERTY SERVICES LTD,0
South Ribble Borough Council,http://statistics.data.gov.uk/id/local-authority/30UE,Capital,Cap Contract Payment,C230,For the refurbishment of the toilets at Moss Side Depot,17/03/2022,0000476558,"20,000.00",Revenue,PDP PROPERTY SERVICES LTD,0
South Ribble Borough Council,http://statistics.data.gov.uk/id/local-authority/30UE,Capital,Cap Contract Payment,C230,Building works to changing room to form DDA Bathroom and DDA entrance Quote Number QU-0416as per NAME REDACTED request,30/03/2022,0000477318,"23,895.00",Revenue,PDP PROPERTY SERVICES LTD,0
South Ribble Borough Council,http://statistics.data.gov.uk/id/local-authority/30UE,Capital,Cap Contract Payment,C230,"Supply and installation of railings and gates as per quote REF PF/Q/46641/GN at North Lodge, Worden Park , Leyland",09/03/2022,0000475632,"12,946.71",Revenue,PEERLESS FENCING LTD,0
South Ribble Borough Council,http://statistics.data.gov.uk/id/local-authority/30UE,Open Spaces,GM Refurbishment,4657,"Supply and installation of railing and gates as per quote REF PF/Q/46641/GN at : Haig Avenue Green, Leyland",09/03/2022,0000475632,"17,513.67",Revenue,PEERLESS FENCING LTD,0
South Ribble Borough Council,http://statistics.data.gov.uk/id/local-authority/30UE,Parking Services,Maintenance of Grounds,2040,repairs and maintenance of 3 no bollards,31/03/2022,0000477425,666.93,Revenue,PEERLESS FENCING LTD,0
South Ribble Borough Council,http://statistics.data.gov.uk/id/local-authority/30UE,Capital Grants & Contributions,Amount Paid,0030,Community Infrastructure Levy (CIL) Payment for Penwortham Town Council re: planning application,30/03/2022,0000477422,"1,785.54",Revenue,PENWORTHAM TOWN COUNCIL,0
South Ribble Borough Council,http://statistics.data.gov.uk/id/local-authority/30UE,Capital Grants & Contributions,Amount Paid,0030,Community Infrastructure Levy (CIL) Payment for Penwortham Town Council re: planning application,30/03/2022,0000477422,"1,803.65",Revenue,PENWORTHAM TOWN COUNCIL,0
South Ribble Borough Council,http://statistics.data.gov.uk/id/local-authority/30UE,Recycling,Contract Printing,4127,Provision and posting of Garden Waste permits 2022 and hosting of permit management website.,02/03/2022,0000476040,"9,864.36",Revenue,Permiserv Ltd,0
South Ribble Borough Council,http://statistics.data.gov.uk/id/local-authority/30UE,Recycling,Contract Printing,4127,Provision and posting of Garden Waste permits 2022 and hosting of permit management website.,28/03/2022,0000476872,"1,833.00",Revenue,Permiserv Ltd,0
South Ribble Borough Council,http://statistics.data.gov.uk/id/local-authority/30UE,Surplus or Deficit on Trading,Consultancy Fees,4541,Valuation of ADDRESS REDACTED,23/03/2022,0000476702,370.00,Revenue,PETER E GILKES & COMPANY,0
South Ribble Borough Council,http://statistics.data.gov.uk/id/local-authority/30UE,Central Support Services,Franked Post,4292,Outgoing mail monthly fees.,17/03/2022,0000476504,"4,778.90",Revenue,PITNEY BOWES LTD,0
South Ribble Borough Council,http://statistics.data.gov.uk/id/local-authority/30UE,Central Support Services,Agency Staff,1121,Planning enforcement consultancy,28/03/2022,0000477305,"1,102.00",Revenue,Planning Control & PACE Solutions,0
South Ribble Borough Council,http://statistics.data.gov.uk/id/local-authority/30UE,Central Support Services,Short Course,1402,LRF Magic Course - Jan 2022,02/03/2022,0000476361,"1,350.55",Revenue,POLICE & CRIME COMMISSIONER LANCS POLICE,0
South Ribble Borough Council,http://statistics.data.gov.uk/id/local-authority/30UE,Economic Development,Publicity & Promotion,4842,"6 Unit(s) Banner 3m x 1m, 1 Unit(s) Banner 3660 x 880, REF16496/1, Delivery, FOA NAME REDACTED, Civic Centre, West Paddock, PR25 1DH",17/03/2022,0000475721,361.81,Revenue,Poppy Signs Ltd,0
South Ribble Borough Council,http://statistics.data.gov.uk/id/local-authority/30UE,Capital,Cap Contract Payment,C230,Welcome sign for Hurst Grange Coach House,09/03/2022,0000476268,467.05,Revenue,Poppy Signs Ltd,0
South Ribble Borough Council,http://statistics.data.gov.uk/id/local-authority/30UE,Economic Development,Professional Fees,4510,5x 3m x 1m banners for Music In The Park as previously produced with revised artwork supplied.,28/03/2022,0000477380,255.75,Revenue,Poppy Signs Ltd,0
South Ribble Borough Council,http://statistics.data.gov.uk/id/local-authority/30UE,Central Support Services,Paper Bulk,4133,PO completed NAME REDACTED left,23/03/2022,0000476328,371.50,Revenue,PREMIER PAPER GROUP LTD,0
South Ribble Borough Council,http://statistics.data.gov.uk/id/local-authority/30UE,Culture & Heritage,Operational Equip & Tools,4010,"Museum Vac, disposable HEPA cartridge filter - Museum Vac & Disposable Cartridge, variable controller 561-3000, Quantity: 1",28/03/2022,0000477365,304.95,Revenue,Preservation Equipment Ltd,0
South Ribble Borough Council,http://statistics.data.gov.uk/id/local-authority/30UE,Recreation & Sport,Planned Annual Repair & Maintenance,2021,"2021 / 2022 annual contract for the pressure booster service to Leyland, Bamber Bridge, Penwortham Leisure Centres, South Ribble Tennis Centre",09/03/2022,0000476394,72.00,Revenue,PRESSURE & BOOSTER SERVICES LIMITED,0
South Ribble Borough Council,http://statistics.data.gov.uk/id/local-authority/30UE,Recreation & Sport,Planned Annual Repair & Maintenance,2021,"2021 / 2022 annual contract for the pressure booster service to Leyland, Bamber Bridge, Penwortham Leisure Centres, South Ribble Tennis Centre",09/03/2022,0000476394,72.00,Revenue,PRESSURE & BOOSTER SERVICES LIMITED,0
South Ribble Borough Council,http://statistics.data.gov.uk/id/local-authority/30UE,Recreation & Sport,Planned Annual Repair & Maintenance,2021,"2021 / 2022 annual contract for the pressure booster service to Leyland, Bamber Bridge, Penwortham Leisure Centres, South Ribble Tennis Centre",09/03/2022,0000476394,72.00,Revenue,PRESSURE & BOOSTER SERVICES LIMITED,0
South Ribble Borough Council,http://statistics.data.gov.uk/id/local-authority/30UE,Recreation & Sport,Planned Annual Repair & Maintenance,2021,"2021 / 2022 annual contract for the pressure booster service to Leyland, Bamber Bridge, Penwortham Leisure Centres, South Ribble Tennis Centre",09/03/2022,0000476394,72.00,Revenue,PRESSURE & BOOSTER SERVICES LIMITED,0
South Ribble Borough Council,http://statistics.data.gov.uk/id/local-authority/30UE,Corporate Management,Temporary Accommodation,5311,Preston City Council agreed recharges for SRBC purple roomz costs,23/03/2022,0000476344,"11,328.00",Revenue,PRESTON CITY COUNCIL,0
South Ribble Borough Council,http://statistics.data.gov.uk/id/local-authority/30UE,Homelessness,Temporary Accommodation,5311,Preston City Council agreed recharges for SRBC purple roomz costs,23/03/2022,0000476344,"7,440.00",Revenue,PRESTON CITY COUNCIL,0
South Ribble Borough Council,http://statistics.data.gov.uk/id/local-authority/30UE,Homelessness,Contributions to Other Bodies,4730,Preston City Council agreed recharges for SRBC purple roomz costs,23/03/2022,0000476344,"18,960.00",Revenue,PRESTON CITY COUNCIL,0
South Ribble Borough Council,http://statistics.data.gov.uk/id/local-authority/30UE,Corporate Management,Temporary Accommodation,5311,preston city council vat rate s,23/03/2022,0000476344,"7,354.23",Revenue,PRESTON CITY COUNCIL,0
South Ribble Borough Council,http://statistics.data.gov.uk/id/local-authority/30UE,Homelessness,Contributions to Other Bodies,4730,"Purple Roomz placements, 01/04/2021-01/08/2021, 1/08/2021-01/11/2021, NAME REDACTED 31/07/2021-06/08/2021 as agreed",28/03/2022,0000476859,"78,384.00",Revenue,PRESTON CITY COUNCIL,0
South Ribble Borough Council,http://statistics.data.gov.uk/id/local-authority/30UE,Homelessness,Contributions to Other Bodies,4730,"Whitburn placements 2021/2022, NAMES REDACTED, 225 nights, 1 night, 15 nights, 127 nights",30/03/2022,0000477420,"19,940.00",Revenue,PRESTON CITY COUNCIL,0
South Ribble Borough Council,http://statistics.data.gov.uk/id/local-authority/30UE,Economic Development,Contributions to Other Bodies,4730,Community transports services in South Ribble throughout the pandemic. Including trips for essential shopping and medical appointments.,31/03/2022,0000477419,"7,500.00",Revenue,Preston Community Transport,0
South Ribble Borough Council,http://statistics.data.gov.uk/id/local-authority/30UE,Central Support Services,Materials General,4040,Various Tyres - TR239,30/03/2022,0000476782,540.12,Revenue,PRESTON TYRE SPECIALISTS,0
South Ribble Borough Council,http://statistics.data.gov.uk/id/local-authority/30UE,Homelessness,Contributions to Other Bodies,4730,NAMES REDACTED outstanding recharges for activation.,28/03/2022,0000476858,784.16,Revenue,PROGRESS HOUSING GRP,0
South Ribble Borough Council,http://statistics.data.gov.uk/id/local-authority/30UE,Surplus or Deficit on Trading,Reactive Repair & Maintenance,2020,"REMMODELLING WORKS TO WORDEN PARK as per quote, 26TH JANAUARY 2022, Install new doorway and opening, per NAME REDACTED",30/03/2022,0000477418,"3,200.00",Revenue,PSR & Sons Joiners & Building Contractors,0
South Ribble Borough Council,http://statistics.data.gov.uk/id/local-authority/30UE,Surplus or Deficit on Trading,Reactive Repair & Maintenance,2020,LABOUR,30/03/2022,0000477418,210.00,Revenue,PSR & Sons Joiners & Building Contractors,0
South Ribble Borough Council,http://statistics.data.gov.uk/id/local-authority/30UE,Homelessness,Contributions to Other Bodies,4730,NAME REDACTED - 01/02 - 18/02 17 Nights,02/03/2022,0000476297,850.00,Revenue,Purpleroomz,0
South Ribble Borough Council,http://statistics.data.gov.uk/id/local-authority/30UE,Homelessness,Temporary Accommodation,5311,"NAME REDACTED - 01/02 - 01/03, 28 Nights, 24 nights, 4 Nights",02/03/2022,0000476297,"1,280.00",Revenue,Purpleroomz,0
South Ribble Borough Council,http://statistics.data.gov.uk/id/local-authority/30UE,Homelessness,Contributions to Other Bodies,4730,NAME REDACTED - 27 nights,02/03/2022,0000476297,"1,350.00",Revenue,Purpleroomz,0
South Ribble Borough Council,http://statistics.data.gov.uk/id/local-authority/30UE,Homelessness,Contributions to Other Bodies,4730,2x Block booked rooms for March 30 Nights,02/03/2022,0000476297,"3,000.00",Revenue,Purpleroomz,0
South Ribble Borough Council,http://statistics.data.gov.uk/id/local-authority/30UE,Central Support Services,Professional Fees,4510,HEALTH & SAFETY CONSULTANCY AND SUPPORT COVERING PERIOD - 1 JANUARY 2022 TO CONTRACT COMPLETION,02/03/2022,0000475938,"1,080.00",Revenue,QHS SOLUTIONS,0
South Ribble Borough Council,http://statistics.data.gov.uk/id/local-authority/30UE,Capital,Capital Grant,C570,DISREPAIR GRANT TO REPLACE EXISTING BOILER AT ADDRES REDACTED AS PER QUOTE SUPPLIED OF 3024.00 INC VAT,30/03/2022,0000477342,"2,520.00",Revenue,R Baron Ltd,0
South Ribble Borough Council,http://statistics.data.gov.uk/id/local-authority/30UE,Open Spaces,Hiring Expenses,3212,"Hire of 8T excavator to be delivered to Worden park, Tuesday 8th March until Friday 11th March",28/03/2022,0000476841,450.00,Revenue,Readyplant Limited,0
South Ribble Borough Council,http://statistics.data.gov.uk/id/local-authority/30UE,Surplus or Deficit on Trading,Reactive Repair & Maintenance,2020,Please attend 126 Brookfield to continue assisting with the clearing of the unit,09/03/2022,0000476480,"1,300.00",Revenue,RED ROSE BUILDING MAINTENANCE,0
South Ribble Borough Council,http://statistics.data.gov.uk/id/local-authority/30UE,Surplus or Deficit on Trading,Reactive Repair & Maintenance,2020,materials,09/03/2022,0000476480,200.00,Revenue,RED ROSE BUILDING MAINTENANCE,0
South Ribble Borough Council,http://statistics.data.gov.uk/id/local-authority/30UE,Recreation & Sport,Reactive Repair & Maintenance,2020,To undertake groundworks for the new storage container hardstanding at Penwortham Holme. Filling in pot holes and levelling the uneven ground.,28/03/2022,0000476781,900.00,Revenue,RED ROSE BUILDING MAINTENANCE,0
South Ribble Borough Council,http://statistics.data.gov.uk/id/local-authority/30UE,Recreation & Sport,Reactive Repair & Maintenance,2020,Materials,28/03/2022,0000476781,300.00,Revenue,RED ROSE BUILDING MAINTENANCE,0
South Ribble Borough Council,http://statistics.data.gov.uk/id/local-authority/30UE,Surplus or Deficit on Trading,Reactive Repair & Maintenance,2020,To apply anti vandal paint around the lower level roof at Penwortham Holme as per NAME REDACTED request.,28/03/2022,0000477274,250.00,Revenue,RED ROSE BUILDING MAINTENANCE,0
South Ribble Borough Council,http://statistics.data.gov.uk/id/local-authority/30UE,Economic Development,Reactive Repair & Maintenance,2020,Please undertake works to reinstate the paving following storm damage done by the gazebos at Leyland market,28/03/2022,0000477276,400.00,Revenue,RED ROSE BUILDING MAINTENANCE,0
South Ribble Borough Council,http://statistics.data.gov.uk/id/local-authority/30UE,Surplus or Deficit on Trading,Reactive Repair & Maintenance,2020,"To remove Services, shrubbery and fencing @ gregson Lane & Holme playing fields with new fence re-estatement. Per NAME REDACTED",30/03/2022,0000477413,"1,200.00",Revenue,RED ROSE BUILDING MAINTENANCE,0
South Ribble Borough Council,http://statistics.data.gov.uk/id/local-authority/30UE,Surplus or Deficit on Trading,Reactive Repair & Maintenance,2020,MATERIALS,30/03/2022,0000477413,300.00,Revenue,RED ROSE BUILDING MAINTENANCE,0
South Ribble Borough Council,http://statistics.data.gov.uk/id/local-authority/30UE,Open Spaces,External Contractors Charges,4570,"Up to 16 hours camera surveying over 2 days, Chapel Lane, New Longton.",31/03/2022,0000477417,550.00,Revenue,RED ROSE BUILDING MAINTENANCE,0
South Ribble Borough Council,http://statistics.data.gov.uk/id/local-authority/30UE,Economic Development,Economic Regeneration,485A,Storage unit - period from 29th December 2021 to 3rd May 2022,28/03/2022,0000476143,288.00,Revenue,Red Rose Self Storage Limited,0
South Ribble Borough Council,http://statistics.data.gov.uk/id/local-authority/30UE,Community Development,Room Hire and Events,4630,Storage for Holiday Hunger food,02/03/2022,0000476283,303.33,Revenue,Red Rose Self Storage Limited,0
South Ribble Borough Council,http://statistics.data.gov.uk/id/local-authority/30UE,Community Development,Room Hire and Events,4630,Storage for Holiday Hunger food,28/03/2022,0000477357,280.00,Revenue,Red Rose Self Storage Limited,0
South Ribble Borough Council,http://statistics.data.gov.uk/id/local-authority/30UE,Homelessness,Temporary Accommodation,5311,Q1 April - June 2022,30/03/2022,0000477411,"5,624.90",Revenue,REDDY & CO,0
South Ribble Borough Council,http://statistics.data.gov.uk/id/local-authority/30UE,Homelessness,Contributions to Other Bodies,4730,ADDRESS REDACTED 14/01/2022-18/01/2022,30/03/2022,0000477412,500.00,Revenue,REDDY & CO,0
South Ribble Borough Council,http://statistics.data.gov.uk/id/local-authority/30UE,Central Support Services,Materials General,4040,credit SI0100799 cancels out inv,09/03/2022,0000475552,700.00,Revenue,Refuse Vehicle Parts,0
South Ribble Borough Council,http://statistics.data.gov.uk/id/local-authority/30UE,Central Support Services,Materials General,4040,1 Ejector Ram YD19 ATY JFC17826,09/03/2022,0000475553,"2,694.78",Revenue,Refuse Vehicle Parts,0
South Ribble Borough Council,http://statistics.data.gov.uk/id/local-authority/30UE,Central Support Services,Materials General,4040,Carriage,09/03/2022,0000475553,150.00,Revenue,Refuse Vehicle Parts,0
South Ribble Borough Council,http://statistics.data.gov.uk/id/local-authority/30UE,Central Support Services,Materials General,4040,1 Yoke Ram YA19 NGN JFC17949,09/03/2022,0000475553,700.00,Revenue,Refuse Vehicle Parts,0
South Ribble Borough Council,http://statistics.data.gov.uk/id/local-authority/30UE,Central Support Services,Materials General,4040,1 x PTO Adaptor YD19 AUT JFC17959,30/03/2022,0000476780,340.19,Revenue,Refuse Vehicle Parts,0
South Ribble Borough Council,http://statistics.data.gov.uk/id/local-authority/30UE,Central Support Services,Materials General,4040,"1x valve block, YD19 ATY, JFC18113 (NAME REDACTED)",28/03/2022,0000477290,"3,315.00",Revenue,Refuse Vehicle Parts,0
South Ribble Borough Council,http://statistics.data.gov.uk/id/local-authority/30UE,Central Support Services,Materials General,4040,YD19ATY JFC18113 2 x yoke brackets 2 x yoke bearings 2 x man yoke pins 2  x bushes 1 x yoke ram  1 x packer cylinder 1 x packer pin,28/03/2022,0000477291,"3,586.35",Revenue,Refuse Vehicle Parts,0
South Ribble Borough Council,http://statistics.data.gov.uk/id/local-authority/30UE,Central Support Services,Materials General,4040,Spring 505531 Bin G001,30/03/2022,0000477292,33.26,Revenue,Refuse Vehicle Parts,0
South Ribble Borough Council,http://statistics.data.gov.uk/id/local-authority/30UE,Central Support Services,Materials General,4040,Pack Ram Hose Coupling 223765 Bin G002,30/03/2022,0000477292,55.22,Revenue,Refuse Vehicle Parts,0
South Ribble Borough Council,http://statistics.data.gov.uk/id/local-authority/30UE,Central Support Services,Materials General,4040,Split Lift Ram Bush 30mm 308004 - Bin G003,30/03/2022,0000477292,24.51,Revenue,Refuse Vehicle Parts,0
South Ribble Borough Council,http://statistics.data.gov.uk/id/local-authority/30UE,Central Support Services,Materials General,4040,Buffer 401543 Bin G006,30/03/2022,0000477292,46.58,Revenue,Refuse Vehicle Parts,0
South Ribble Borough Council,http://statistics.data.gov.uk/id/local-authority/30UE,Central Support Services,Materials General,4040,Proxy Switch (E-VIM) 979944A Bin G008,30/03/2022,0000477292,44.94,Revenue,Refuse Vehicle Parts,0
South Ribble Borough Council,http://statistics.data.gov.uk/id/local-authority/30UE,Central Support Services,Materials General,4040,Marker Light Red/White 5013400 Bin G018,30/03/2022,0000477292,34.76,Revenue,Refuse Vehicle Parts,0
South Ribble Borough Council,http://statistics.data.gov.uk/id/local-authority/30UE,Central Support Services,Materials General,4040,Underrun Sensor 5044512 Bin G024,30/03/2022,0000477292,270.00,Revenue,Refuse Vehicle Parts,0
South Ribble Borough Council,http://statistics.data.gov.uk/id/local-authority/30UE,Central Support Services,Materials General,4040,Bin On Lever 5055269 Bin G025,30/03/2022,0000477292,47.45,Revenue,Refuse Vehicle Parts,0
South Ribble Borough Council,http://statistics.data.gov.uk/id/local-authority/30UE,Central Support Services,Materials General,4040,Hydraulic Lift Ram - Chair 1000829 Bin G026,30/03/2022,0000477292,747.19,Revenue,Refuse Vehicle Parts,0
South Ribble Borough Council,http://statistics.data.gov.uk/id/local-authority/30UE,Central Support Services,Materials General,4040,Hydraulic filter kit 5025256-1 Bin G027,30/03/2022,0000477292,432.59,Revenue,Refuse Vehicle Parts,0
South Ribble Borough Council,http://statistics.data.gov.uk/id/local-authority/30UE,Central Support Services,Materials General,4040,Tailgate Seal 106219-0 Bin G032,30/03/2022,0000477292,165.67,Revenue,Refuse Vehicle Parts,0
South Ribble Borough Council,http://statistics.data.gov.uk/id/local-authority/30UE,Central Support Services,Materials General,4040,Rubber Bobbin 401490 Bin G034,30/03/2022,0000477292,17.89,Revenue,Refuse Vehicle Parts,0
South Ribble Borough Council,http://statistics.data.gov.uk/id/local-authority/30UE,Central Support Services,Materials General,4040,Step bolts 5044499 Bin G036,30/03/2022,0000477292,14.85,Revenue,Refuse Vehicle Parts,0
South Ribble Borough Council,http://statistics.data.gov.uk/id/local-authority/30UE,Central Support Services,Materials General,4040,Yoke ram bush 5012665 Bin G045,30/03/2022,0000477292,178.63,Revenue,Refuse Vehicle Parts,0
South Ribble Borough Council,http://statistics.data.gov.uk/id/local-authority/30UE,Central Support Services,Materials General,4040,Bin Lift Clamp Arm Pin 288851 Bin G047,30/03/2022,0000477292,115.43,Revenue,Refuse Vehicle Parts,0
South Ribble Borough Council,http://statistics.data.gov.uk/id/local-authority/30UE,Central Support Services,Materials General,4040,107323 lever,30/03/2022,0000477292,126.00,Revenue,Refuse Vehicle Parts,0
South Ribble Borough Council,http://statistics.data.gov.uk/id/local-authority/30UE,Central Support Services,Materials General,4040,106212 strip,30/03/2022,0000477292,71.10,Revenue,Refuse Vehicle Parts,0
South Ribble Borough Council,http://statistics.data.gov.uk/id/local-authority/30UE,Central Support Services,Materials General,4040,carriage,30/03/2022,0000477292,30.00,Revenue,Refuse Vehicle Parts,0
South Ribble Borough Council,http://statistics.data.gov.uk/id/local-authority/30UE,Regulatory Services,Corp Subs to Professional Bodies,4720,Annual RIAMS subscription for 2022 - per NAME REDACTED,28/03/2022,0000476779,"3,121.00",Revenue,RHE LIMITED,0
South Ribble Borough Council,http://statistics.data.gov.uk/id/local-authority/30UE,Economic Development,Professional Fees,4510,Lancashire Life magazine full page advert for 3 issues,28/03/2022,0000477410,288.00,Revenue,Ribble Publications Ltd,0
South Ribble Borough Council,http://statistics.data.gov.uk/id/local-authority/30UE,Recreation & Sport,Professional Fees,4510,"Health and Safety Strategy, South Ribble Leisure and Chorley Leisure",23/03/2022,0000476705,"1,980.00",Revenue,Right Directions (Management) Ltd,0
South Ribble Borough Council,http://statistics.data.gov.uk/id/local-authority/30UE,Recreation & Sport,Professional Fees,4510,"Policy and Procedure Review, South Ribble and Chorley Leisure: Health and Safety, Quality, Environmental, GDPR, Finance, Safeguarding",23/03/2022,0000476705,"3,470.00",Revenue,Right Directions (Management) Ltd,0
South Ribble Borough Council,http://statistics.data.gov.uk/id/local-authority/30UE,Corporate Management,Grants Voluntary Organisation,4711,Practical Support Payment - Re Socialisation Cafe,31/03/2022,0000477590,"5,500.00",Revenue,Royal British Legion Middleforth LTD,0
South Ribble Borough Council,http://statistics.data.gov.uk/id/local-authority/30UE,Central Support Services,Individual Subs Prof. Bodies,1741,MEMBERSHIP SUBSCRIPTION RENEWAL FOR 2022 - FOR NAME REDACTED,09/03/2022,0000476267,321.00,Revenue,RTPI,0
South Ribble Borough Council,http://statistics.data.gov.uk/id/local-authority/30UE,Central Support Services,Materials General,4040,1 Mother Board MX04 YNL JFC18164,30/03/2022,0000477408,"1,670.25",Revenue,RTS Muni,0
South Ribble Borough Council,http://statistics.data.gov.uk/id/local-authority/30UE,Open Spaces,External Contractors Charges,4570,Tree works for the woodland area next to 'The Wordens' as per Quotation 1253 dated 16.11.21,31/03/2022,0000476856,"1,730.00",Revenue,RUSS ASPINALL T/A BEARDWOOD TREE SERVICE,0
South Ribble Borough Council,http://statistics.data.gov.uk/id/local-authority/30UE,Central Support Services,Materials General,4040,1000 litres Premium Hi-Foaming TFR with Wax,31/03/2022,0000477553,"1,020.43",Revenue,Saanro International Ltd,0
South Ribble Borough Council,http://statistics.data.gov.uk/id/local-authority/30UE,Short Term Debtors,Amount Paid,0030,Professional fees for works in relation to Leyland test track,17/03/2022,0000476509,906.67,Revenue,Sanderson Weatherall LLP,0
South Ribble Borough Council,http://statistics.data.gov.uk/id/local-authority/30UE,Open Spaces,External Contractors Charges,4570,"2 Days hire of vator recycler at Chapel Lane, New Longton including disposal of silt",31/03/2022,0000477407,"1,000.00",Revenue,Sapphire Utility Solutions Limited,0
South Ribble Borough Council,http://statistics.data.gov.uk/id/local-authority/30UE,Open Spaces,GM Refurbishment,4657,"6 Security Visits, Haig Avenue, Leyland from 15.30 - 23.00 25/01/2022 to 28/01/2022.",23/03/2022,0000476704,440.00,Revenue,SECTOR SECURITY SERVICES LTD,0
South Ribble Borough Council,http://statistics.data.gov.uk/id/local-authority/30UE,Central Support Services,Agency Staff,1121,COST OF ENGAGING AGENCY LOCUM SOLICITOR FOR 4 DAYS PER WEEK FROM 7 SEPTEMBER 2021 UNTIL CHRISTMAS 2021,02/03/2022,0000476142,"1,847.37",Revenue,SELLICK PARTNERSHIP LTD,0
South Ribble Borough Council,http://statistics.data.gov.uk/id/local-authority/30UE,Central Support Services,Agency Staff,1121,COST OF ENGAGING AGENCY LOCUM SOLICITOR FOR 4 DAYS PER WEEK FROM 7 SEPTEMBER 2021 UNTIL CHRISTMAS 2021,09/03/2022,0000476296,"1,690.62",Revenue,SELLICK PARTNERSHIP LTD,0
South Ribble Borough Council,http://statistics.data.gov.uk/id/local-authority/30UE,Central Support Services,Agency Staff,1121,COST OF ENGAGING AGENCY LOCUM SOLICITOR FOR 4 DAYS PER WEEK FROM 7 SEPTEMBER 2021 UNTIL CHRISTMAS 2021,17/03/2022,0000476573,465.69,Revenue,SELLICK PARTNERSHIP LTD,0
South Ribble Borough Council,http://statistics.data.gov.uk/id/local-authority/30UE,Central Support Services,Agency Staff,1121,COST OF ENGAGING AGENCY LOCUM SOLICITOR FOR 4 DAYS PER WEEK FROM 7 SEPTEMBER 2021 UNTIL CHRISTMAS 2021,31/03/2022,0000476776,"1,824.00",Revenue,SELLICK PARTNERSHIP LTD,0
South Ribble Borough Council,http://statistics.data.gov.uk/id/local-authority/30UE,Central Support Services,Agency Staff,1121,COST OF ENGAGING AGENCY LOCUM SOLICITOR FOR 4 DAYS PER WEEK FROM 7 SEPTEMBER 2021 UNTIL CHRISTMAS 2021,31/03/2022,0000477404,"1,819.44",Revenue,SELLICK PARTNERSHIP LTD,0
South Ribble Borough Council,http://statistics.data.gov.uk/id/local-authority/30UE,Central Support Services,Agency Staff,1121,COST OF ENGAGING AGENCY LOCUM SOLICITOR FOR 4 DAYS PER WEEK FROM 7 SEPTEMBER 2021 UNTIL CHRISTMAS 2021,31/03/2022,0000477405,"1,824.00",Revenue,SELLICK PARTNERSHIP LTD,0
South Ribble Borough Council,http://statistics.data.gov.uk/id/local-authority/30UE,Economic Development,Partnership,485I,"Full partnership package for Apprentice Factory careers, recruitment and skills support 2022, minimum service level, regular meetings",17/03/2022,0000476519,"5,000.00",Revenue,SHOUT Network Ltd,0
South Ribble Borough Council,http://statistics.data.gov.uk/id/local-authority/30UE,Economic Development,Investment & Improvement,485K,"Stand package for Lancashire Business Expo 2022, Partnership package includes furniture, Wifi, power, promotional materials and guide listing",17/03/2022,0000476520,"1,000.00",Revenue,SHOUT Network Ltd,0
South Ribble Borough Council,http://statistics.data.gov.uk/id/local-authority/30UE,Capital,Cap Contract Payment,C230,"Scheme to refurbish existing internal/external cricket pavilion, changing facility at Vernon Carus Site as per NAMES REDACTED",02/03/2022,0000476141,"46,375.00",Revenue,SJJ Contracts Limited,0
South Ribble Borough Council,http://statistics.data.gov.uk/id/local-authority/30UE,Capital,Cap Contract Payment,C230,LABOUR,02/03/2022,0000476141,"19,875.00",Revenue,SJJ Contracts Limited,0
South Ribble Borough Council,http://statistics.data.gov.uk/id/local-authority/30UE,Capital,Cap Contract Payment,C230,"Scheme to refurbish existing internal/external cricket pavilion, changing facility at Vernon Carus Site as per NAMES REDACTED",17/03/2022,0000476637,"46,375.00",Revenue,SJJ Contracts Limited,0
South Ribble Borough Council,http://statistics.data.gov.uk/id/local-authority/30UE,Capital,Cap Contract Payment,C230,Labour,17/03/2022,0000476637,"19,875.00",Revenue,SJJ Contracts Limited,0
South Ribble Borough Council,http://statistics.data.gov.uk/id/local-authority/30UE,Regulatory Services,Clothing and Uniforms,4410,3 x Water proof jackets @ 87.50 per jacket,28/03/2022,0000476768,263.40,Revenue,SMART IMAGE WORKWEAR,0
South Ribble Borough Council,http://statistics.data.gov.uk/id/local-authority/30UE,Central Support Services,Clothing and Uniforms,4410,POLO SHIRT - SHORT SLEEVED NAVY - EXTRA LARGE c/w SRBC LOGO FRONT LEFT BREAST HS WHITE RIBB001-OWW-4004-NV-S2,02/03/2022,0000475566,36.00,Revenue,SMI Int Group Ltd,0
South Ribble Borough Council,http://statistics.data.gov.uk/id/local-authority/30UE,Central Support Services,Clothing and Uniforms,4410,POLO SHIRT LONG SLEEVED NAVY - EXTRA LARGE c/w SRBC LOGO FRONT LEFT BREAST HS WHITE RIBB001-OWW-4003-NV-S3,02/03/2022,0000475566,9.84,Revenue,SMI Int Group Ltd,0
South Ribble Borough Council,http://statistics.data.gov.uk/id/local-authority/30UE,Central Support Services,Clothing and Uniforms,4410,HI VIS TRAFFIC JACKET YELLOW EN471:2003 SMALL WITH SRBC Logo Front Left Breast & Rear HS in COLOUR,02/03/2022,0000475566,46.26,Revenue,SMI Int Group Ltd,0
South Ribble Borough Council,http://statistics.data.gov.uk/id/local-authority/30UE,Central Support Services,Clothing and Uniforms,4410,HI VIS TRAFFIC JACKET YELLOW EN471:2003 MEDIUM WITH SRBC Logo Front Left Breast & Rear HS in COLOUR,02/03/2022,0000475566,46.26,Revenue,SMI Int Group Ltd,0
South Ribble Borough Council,http://statistics.data.gov.uk/id/local-authority/30UE,Central Support Services,Clothing and Uniforms,4410,HI VIS TRAFFIC JACKET YELLOW EN471:2003 LARGE WITH SRBC Logo Front Left Breast & Rear HS in COLOUR,02/03/2022,0000475566,46.26,Revenue,SMI Int Group Ltd,0
South Ribble Borough Council,http://statistics.data.gov.uk/id/local-authority/30UE,Central Support Services,Clothing and Uniforms,4410,HI VIS TRAFFIC JACKET YELLOW EN471:2003 EXTRA LARGE WITH SRBC Logo Front Left Breast & Rear HS in COLOUR,02/03/2022,0000475566,46.26,Revenue,SMI Int Group Ltd,0
South Ribble Borough Council,http://statistics.data.gov.uk/id/local-authority/30UE,Central Support Services,Clothing and Uniforms,4410,HI VIS TRAFFIC JACKET YELLOW EN471:2003  XXL WITH SRBC Logo Front Left Breast & Rear HS in COLOUR,02/03/2022,0000475566,46.26,Revenue,SMI Int Group Ltd,0
South Ribble Borough Council,http://statistics.data.gov.uk/id/local-authority/30UE,Central Support Services,Clothing and Uniforms,4410,FLEECE -  XXXLARGE c/w SRBC LOGO Front Left Breast in White EMB RIBB001-OOD-7024-NV-S1,02/03/2022,0000475566,9.69,Revenue,SMI Int Group Ltd,0
South Ribble Borough Council,http://statistics.data.gov.uk/id/local-authority/30UE,Central Support Services,Clothing and Uniforms,4410,SWEATSHIRT NAVY - XXLARGE c/w SRBC LOGO FRONT LEFT BREAST HS WHITE RIBB001-OWW-4007-NV-S2,02/03/2022,0000475566,6.72,Revenue,SMI Int Group Ltd,0
South Ribble Borough Council,http://statistics.data.gov.uk/id/local-authority/30UE,Central Support Services,Clothing and Uniforms,4410,LADIES REGATTA BENSON II 3 IN 1 NAVY (HEAT SEAL LOGO ON LH BREAST/EMBROIDERY TO LH BREAST FLEECE) Size 10,02/03/2022,0000476135,76.30,Revenue,SMI Int Group Ltd,0
South Ribble Borough Council,http://statistics.data.gov.uk/id/local-authority/30UE,Central Support Services,Clothing and Uniforms,4410,LADIES REGATTA BENSON II 3 IN 1 NAVY (HEAT SEAL LOGO ON LH BREAST/EMBROIDERY TO LH BREAST FLEECE) Size 12,02/03/2022,0000476135,228.90,Revenue,SMI Int Group Ltd,0
South Ribble Borough Council,http://statistics.data.gov.uk/id/local-authority/30UE,Central Support Services,Clothing and Uniforms,4410,LADIES REGATTA BENSON II 3 IN 1 NAVY (HEAT SEAL LOGO ON LH BREAST/EMBROIDERY TO LH BREAST FLEECE) Size 14,02/03/2022,0000476135,152.60,Revenue,SMI Int Group Ltd,0
South Ribble Borough Council,http://statistics.data.gov.uk/id/local-authority/30UE,Central Support Services,Clothing and Uniforms,4410,BLUE JACKETS - NAVY REGATTA BENSON II 3 IN 1 (HEAT SEAL LOGO ON LH BREAST/EMBROIDERY TO LH BREAST FLEECE) medium,02/03/2022,0000476135,114.45,Revenue,SMI Int Group Ltd,0
South Ribble Borough Council,http://statistics.data.gov.uk/id/local-authority/30UE,Central Support Services,Clothing and Uniforms,4410,BLUE JACKETS - NAVY REGATTA BENSON II 3 IN 1 (HEAT SEAL LOGO ON LH BREAST/EMBROIDERY TO LH BREAST FLEECE) large,02/03/2022,0000476135,38.15,Revenue,SMI Int Group Ltd,0
South Ribble Borough Council,http://statistics.data.gov.uk/id/local-authority/30UE,Central Support Services,Clothing and Uniforms,4410,FLEECE NAVY - MEDIUM c/w SRBC LOGO Front Left Breast in White EMB-RIBB001-OOD-7024-NV-S1,02/03/2022,0000476135,19.38,Revenue,SMI Int Group Ltd,0
South Ribble Borough Council,http://statistics.data.gov.uk/id/local-authority/30UE,Central Support Services,Clothing and Uniforms,4410,POLO SHIRT - SHORT SLEEVED NAVY - MEDIUM c/w SRBC LOGO FRONT LEFT BREAST HS WHITE RIBB001-OWW-4004-NV-S2,02/03/2022,0000476135,18.00,Revenue,SMI Int Group Ltd,0
South Ribble Borough Council,http://statistics.data.gov.uk/id/local-authority/30UE,Central Support Services,Clothing and Uniforms,4410,"WOMENS KUSTOM KIT Blouse, Light Blue/Short Sleeved - SRBC Logo in Colour  LH Breast  HS- SIZE 12- RIBB001-OCW-5094-SK-S5",09/03/2022,0000476353,23.22,Revenue,SMI Int Group Ltd,0
South Ribble Borough Council,http://statistics.data.gov.uk/id/local-authority/30UE,Central Support Services,Clothing and Uniforms,4410,"MENS KUSTOM KIT Shirt, Light Blue/Short Sleeved - SRBC Logo In Colour on LH Breast HS- RIBB001-OCW-5017-SK-S5 - 15.5 collar",09/03/2022,0000476353,156.20,Revenue,SMI Int Group Ltd,0
South Ribble Borough Council,http://statistics.data.gov.uk/id/local-authority/30UE,Central Support Services,Clothing and Uniforms,4410,"MENS KUSTOM KIT Shirt, Light Blue/Short Sleeved - SRBC Logo In Colour on LH Breast HS- RIBB001-OCW-5017-SK-S5 - 17 collar",09/03/2022,0000476353,99.40,Revenue,SMI Int Group Ltd,0
South Ribble Borough Council,http://statistics.data.gov.uk/id/local-authority/30UE,Central Support Services,Clothing and Uniforms,4410,"MENS KUSTOM KIT Shirt, Light Blue/Short Sleeved - SRBC Logo In Colour on LH Breast HS- RIBB001-OCW-5017-SK-S5 - 15 collar",09/03/2022,0000476353,71.00,Revenue,SMI Int Group Ltd,0
South Ribble Borough Council,http://statistics.data.gov.uk/id/local-authority/30UE,Recreation & Sport,Miscellaneous Expenses,4851,Replacement Order for PUR0050700 Final Stock & Petty Cash,28/03/2022,0000476119,659.49,Revenue,SOUTH RIBBLE COMMUNITY LEISURE LTD,0
South Ribble Borough Council,http://statistics.data.gov.uk/id/local-authority/30UE,Recreation & Sport,Miscellaneous Expenses,4851,Replacement Order for PUR0050700 Final Stock & Petty Cash,28/03/2022,0000476119,"3,562.30",Revenue,SOUTH RIBBLE COMMUNITY LEISURE LTD,0
South Ribble Borough Council,http://statistics.data.gov.uk/id/local-authority/30UE,Recreation & Sport,Miscellaneous Expenses,4851,Replacement Order for PUR0050700 Final Stock & Petty Cash,28/03/2022,0000476119,"4,181.24",Revenue,SOUTH RIBBLE COMMUNITY LEISURE LTD,0
South Ribble Borough Council,http://statistics.data.gov.uk/id/local-authority/30UE,Recreation & Sport,Miscellaneous Expenses,4851,Replacement Order for PUR0050700 Final Stock & Petty Cash,28/03/2022,0000476119,"4,223.41",Revenue,SOUTH RIBBLE COMMUNITY LEISURE LTD,0
South Ribble Borough Council,http://statistics.data.gov.uk/id/local-authority/30UE,Recreation & Sport,Miscellaneous Expenses,4851,Replacement Order for PUR0050700 - Exempt Rated Element,28/03/2022,0000476119,897.26,Revenue,SOUTH RIBBLE COMMUNITY LEISURE LTD,0
South Ribble Borough Council,http://statistics.data.gov.uk/id/local-authority/30UE,Recreation & Sport,Professional Fees,4510,Replacement Order for PUR0051063 raised on the wrong creditor. Indemnity Claim as supplied by NAME REDACTED,28/03/2022,0000476140,211.69,Revenue,SOUTH RIBBLE COMMUNITY LEISURE LTD,0
South Ribble Borough Council,http://statistics.data.gov.uk/id/local-authority/30UE,Recreation & Sport,Professional Fees,4510,Replacement Order for PUR0051063 raised on the wrong creditor. Indemnity Claim as supplied by NAME REDACTED,28/03/2022,0000476140,255.71,Revenue,SOUTH RIBBLE COMMUNITY LEISURE LTD,0
South Ribble Borough Council,http://statistics.data.gov.uk/id/local-authority/30UE,Recreation & Sport,Professional Fees,4510,Replacement Order for PUR0051063 raised on the wrong creditor. Indemnity Claim as supplied by NAME REDACTED,28/03/2022,0000476140,23.99,Revenue,SOUTH RIBBLE COMMUNITY LEISURE LTD,0
South Ribble Borough Council,http://statistics.data.gov.uk/id/local-authority/30UE,Recreation & Sport,Professional Fees,4510,Replacement Order for PUR0051063 raised on the wrong creditor. Indemnity Claim as supplied by NAME REDACTED,28/03/2022,0000476140,136.54,Revenue,SOUTH RIBBLE COMMUNITY LEISURE LTD,0
South Ribble Borough Council,http://statistics.data.gov.uk/id/local-authority/30UE,Recreation & Sport,Leisure Services Fee - Core Fee,4532,Leisure Services Fee 2020/2021,28/03/2022,0000476831,"24,780.09",Revenue,SOUTH RIBBLE COMMUNITY LEISURE LTD,0
South Ribble Borough Council,http://statistics.data.gov.uk/id/local-authority/30UE,Short Term Creditors,Amount Paid,0030,Monthly Deds from Payroll,09/03/2022,0000475995,"1,379.32",Revenue,SOUTH RIBBLE LABOUR PARTY LOCAL GOVERNM,0
South Ribble Borough Council,http://statistics.data.gov.uk/id/local-authority/30UE,Short Term Creditors,Amount Paid,0030,Monthly Deductions from Salary,09/03/2022,0000476405,"1,379.32",Revenue,SOUTH RIBBLE LABOUR PARTY LOCAL GOVERNM,0
South Ribble Borough Council,http://statistics.data.gov.uk/id/local-authority/30UE,Short Term Creditors,Leisure - Card Payments,0020,card payments,09/03/2022,0000475780,"74,312.23",Revenue,South Ribble Leisure Ltd,0
South Ribble Borough Council,http://statistics.data.gov.uk/id/local-authority/30UE,Recreation & Sport,Casual Workers,1101,Casual Salaries paid in September relate to August and therefore chargeable to In-house Leisure.,28/03/2022,0000476830,"2,576.15",Revenue,South Ribble Leisure Ltd,0
South Ribble Borough Council,http://statistics.data.gov.uk/id/local-authority/30UE,Recreation & Sport,Casual Workers,1101,Casual Salaries paid in September relate to August and therefore chargeable to In-house Leisure.,28/03/2022,0000476830,"10,214.71",Revenue,South Ribble Leisure Ltd,0
South Ribble Borough Council,http://statistics.data.gov.uk/id/local-authority/30UE,Recreation & Sport,Casual Workers,1101,Casual Salaries paid in September relate to August and therefore chargeable to In-house Leisure.,28/03/2022,0000476830,"3,555.93",Revenue,South Ribble Leisure Ltd,0
South Ribble Borough Council,http://statistics.data.gov.uk/id/local-authority/30UE,Recreation & Sport,Casual Workers,1101,Casual Salaries paid in September relate to August and therefore chargeable to In-house Leisure.,28/03/2022,0000476830,"4,183.10",Revenue,South Ribble Leisure Ltd,0
South Ribble Borough Council,http://statistics.data.gov.uk/id/local-authority/30UE,Recreation & Sport,Other Fees,4520,Deferred income paid to South Ribble in house Leisure relating to September onwards and therefore belongs to SRLL,28/03/2022,0000476852,"2,406.93",Revenue,South Ribble Leisure Ltd,0
South Ribble Borough Council,http://statistics.data.gov.uk/id/local-authority/30UE,Recreation & Sport,Other Fees,4520,Deferred income paid to South Ribble in house Leisure relating to September onwards and therefore belongs to SRLL,28/03/2022,0000476852,"11,537.18",Revenue,South Ribble Leisure Ltd,0
South Ribble Borough Council,http://statistics.data.gov.uk/id/local-authority/30UE,Recreation & Sport,Other Fees,4520,Deferred income paid to South Ribble in house Leisure relating to September onwards and therefore belongs to SRLL,28/03/2022,0000476852,"3,844.39",Revenue,South Ribble Leisure Ltd,0
South Ribble Borough Council,http://statistics.data.gov.uk/id/local-authority/30UE,Recreation & Sport,Other Fees,4520,Deferred income paid to South Ribble in house Leisure relating to September onwards and therefore belongs to SRLL,28/03/2022,0000476852,"3,733.14",Revenue,South Ribble Leisure Ltd,0
South Ribble Borough Council,http://statistics.data.gov.uk/id/local-authority/30UE,Recreation & Sport,South Ribble Leisure Ltd Costs,5600,2022/2023 council op subs payment QTR 1,30/03/2022,0000477367,"145,807.00",Revenue,South Ribble Leisure Ltd,0
South Ribble Borough Council,http://statistics.data.gov.uk/id/local-authority/30UE,Corporate Management,South Ribble Leisure Ltd Costs,5600,Release of COMF funding to make premises Covid secure and facilitate take-up in Leisure activities,30/03/2022,0000477402,"100,000.00",Revenue,South Ribble Leisure Ltd,0
South Ribble Borough Council,http://statistics.data.gov.uk/id/local-authority/30UE,Corporate Management,Grants Voluntary Organisation,4711,Practical Support Payment - Re Socialisation Cafe,31/03/2022,0000477591,"5,500.00",Revenue,SOUTH RIBBLE PENSIONER ASSOCIATION,0
South Ribble Borough Council,http://statistics.data.gov.uk/id/local-authority/30UE,Central Support Services,Materials General,4040,1 x volvo dashboard JFC18025 VU58JXK,02/03/2022,0000476237,450.00,Revenue,Southfield RCV Services Limited,0
South Ribble Borough Council,http://statistics.data.gov.uk/id/local-authority/30UE,Central Support Services,Hiring Expenses,3212,Hire of RCV VN63 UBM 3.2.22 - 18.2.22,02/03/2022,0000476263,"1,650.00",Revenue,Southfield RCV Services Limited,0
South Ribble Borough Council,http://statistics.data.gov.uk/id/local-authority/30UE,Central Support Services,Hiring Expenses,3212,Hire of RCV VN12 LBY 25.1.22 - 18.2.22 Delivery charge of 150,02/03/2022,0000476264,"3,000.00",Revenue,Southfield RCV Services Limited,0
South Ribble Borough Council,http://statistics.data.gov.uk/id/local-authority/30UE,Central Support Services,Materials General,4040,1 x terberg bin lift VU60HLE JFC18007,23/03/2022,0000476603,"1,500.00",Revenue,Southfield RCV Services Limited,0
South Ribble Borough Council,http://statistics.data.gov.uk/id/local-authority/30UE,Central Support Services,Materials General,4040,carriage VU60HLE JFC18007,23/03/2022,0000476603,150.00,Revenue,Southfield RCV Services Limited,0
South Ribble Borough Council,http://statistics.data.gov.uk/id/local-authority/30UE,Central Support Services,Materials General,4040,1 x engine VU11HSZ JFC17773,23/03/2022,0000476604,"2,900.00",Revenue,Southfield RCV Services Limited,0
South Ribble Borough Council,http://statistics.data.gov.uk/id/local-authority/30UE,Central Support Services,Hiring Expenses,3212,Hire of RCV VX13 LSZ 18.2.22 - 4.3.22 (2 weeks hire),23/03/2022,0000476648,"1,500.00",Revenue,Southfield RCV Services Limited,0
South Ribble Borough Council,http://statistics.data.gov.uk/id/local-authority/30UE,Central Support Services,Hiring Expenses,3212,Hire of RCV VN63 UBM 18.2.22 - 4.3.22 (2 weeks hire),23/03/2022,0000476649,"1,500.00",Revenue,Southfield RCV Services Limited,0
South Ribble Borough Council,http://statistics.data.gov.uk/id/local-authority/30UE,Central Support Services,Hiring Expenses,3212,"Hire of RCV VN12 LBY 21.2.22 - 4.3.22, Off hired 22.2.22 - 25.2.22, On hire 28.2.22 - 4.3.22",23/03/2022,0000476650,900.00,Revenue,Southfield RCV Services Limited,0
South Ribble Borough Council,http://statistics.data.gov.uk/id/local-authority/30UE,Central Support Services,Hiring Expenses,3212,Hire of RCV VX13 LSZ 17.1.22 - 18.2 22. (5 week hire),23/03/2022,0000476651,"3,750.00",Revenue,Southfield RCV Services Limited,0
South Ribble Borough Council,http://statistics.data.gov.uk/id/local-authority/30UE,Central Support Services,Hiring Expenses,3212,Damage to rear of VN12 LBY  (new OSR lower cylinder cover & marker light) when on hire to Chorley FCC,28/03/2022,0000476828,262.50,Revenue,Southfield RCV Services Limited,0
South Ribble Borough Council,http://statistics.data.gov.uk/id/local-authority/30UE,Central Support Services,Hiring Expenses,3212,Damage to wiring on OS of VN12 LBY whilst on hire to Chorley FCC,28/03/2022,0000476828,157.50,Revenue,Southfield RCV Services Limited,0
South Ribble Borough Council,http://statistics.data.gov.uk/id/local-authority/30UE,Central Support Services,Short Course,1402,1 X DELEGATE TO ATTEND KIT RESCUE TRAINING ON 9 FEBRUARY 2022,17/03/2022,0000475932,210.00,Revenue,Spanset,0
South Ribble Borough Council,http://statistics.data.gov.uk/id/local-authority/30UE,Central Support Services,Short Course,1402,2 X DELEGATES TO ATTEND KIT TRAINING ON 22 FEBRUARY 2022,17/03/2022,0000475932,420.00,Revenue,Spanset,0
South Ribble Borough Council,http://statistics.data.gov.uk/id/local-authority/30UE,Open Spaces,Materials General,4040,20L of iron,23/03/2022,0000476703,64.72,Revenue,Spunhill Limited,0
South Ribble Borough Council,http://statistics.data.gov.uk/id/local-authority/30UE,Open Spaces,Materials General,4040,8 bags of summer feed,23/03/2022,0000476703,238.00,Revenue,Spunhill Limited,0
South Ribble Borough Council,http://statistics.data.gov.uk/id/local-authority/30UE,Community Development,Operational Equip & Tools,4010,To provide 2 defibrillators and 4 de fib cabinets as discussed and agreed,17/03/2022,0000476337,"3,750.00",Revenue,SR8 Group Ltd,0
South Ribble Borough Council,http://statistics.data.gov.uk/id/local-authority/30UE,Recreation & Sport,Gas,2304,25/11/2021 - 04/03/2022,28/03/2022,0000476789,671.35,Revenue,SSE,0
South Ribble Borough Council,http://statistics.data.gov.uk/id/local-authority/30UE,Recreation & Sport,Gas,2304,02/09/21 - 24/11/21,23/03/2022,0000476790,470.49,Revenue,SSE,0
South Ribble Borough Council,http://statistics.data.gov.uk/id/local-authority/30UE,Recreation & Sport,Electricity,2303,02/11/21 - 01/12/21,02/03/2022,0000476230,431.36,Revenue,SSE,0
South Ribble Borough Council,http://statistics.data.gov.uk/id/local-authority/30UE,Recreation & Sport,Electricity,2303,02/12/21 - 01/01/22,02/03/2022,0000476231,341.99,Revenue,SSE,0
South Ribble Borough Council,http://statistics.data.gov.uk/id/local-authority/30UE,Corporate Management,Grants Voluntary Organisation,4711,Practical Support Payment - Re Socialisation Cafe,31/03/2022,0000477587,"5,500.00",Revenue,ST AIDANS PCC,0
South Ribble Borough Council,http://statistics.data.gov.uk/id/local-authority/30UE,Short Term Creditors,Amount Paid,0030,Monthly Deds from Salary,09/03/2022,0000476404,390.60,Revenue,ST CATHERINES HOSPICE PROMOTIONS LTD,0
South Ribble Borough Council,http://statistics.data.gov.uk/id/local-authority/30UE,Short Term Creditors,Amount Paid,0030,Adjust.,09/03/2022,0000476404,0.04,Revenue,ST CATHERINES HOSPICE PROMOTIONS LTD,0
South Ribble Borough Council,http://statistics.data.gov.uk/id/local-authority/30UE,Corporate Management,Grants Voluntary Organisation,4711,Practical Support Payment - Re Socialisation Cafe,31/03/2022,0000477588,"5,500.00",Revenue,St Mary`s Community Centre,0
South Ribble Borough Council,http://statistics.data.gov.uk/id/local-authority/30UE,Service Management & Support,Diesel Fuel,3132,"16,000 litres diesel @ 118.59ppl into the feeder tank at Unit 81 Bison Place, Moss Side",02/03/2022,0000476136,"17,918.95",Revenue,Standard Fuel Oils LtdMain,0
South Ribble Borough Council,http://statistics.data.gov.uk/id/local-authority/30UE,Service Management & Support,Diesel Fuel,3132,"16,000 litres diesel @ 119.61ppl into the feeder tank at Unit 81 Bison Place, Moss Side",17/03/2022,0000476409,"17,978.58",Revenue,Standard Fuel Oils LtdMain,0
South Ribble Borough Council,http://statistics.data.gov.uk/id/local-authority/30UE,Service Management & Support,Diesel Fuel,3132,"16,000 litres diesel @ 122.13 pp into the feeder tank at Unit 81 Bison Place, Moss Side",30/03/2022,0000476713,"22,495.91",Revenue,Standard Fuel Oils LtdMain,0
South Ribble Borough Council,http://statistics.data.gov.uk/id/local-authority/30UE,Service Management & Support,Diesel Fuel,3132,"17,000 litres diesel @ 134.06ppl into the feeder tank at Unit 81 Bison Place, Moss Side",30/03/2022,0000477399,"27,421.82",Revenue,Standard Fuel Oils LtdMain,0
South Ribble Borough Council,http://statistics.data.gov.uk/id/local-authority/30UE,Capital,Capital Grant,C570,DFG WORK TO SUPPLY AND INSTALL A STARILIFT AT ADDRESS REDACTED PER SRBC SPECIFICATION AND QUOTE SUPPLIED,17/03/2022,0000476408,"3,336.00",Revenue,Stannah Lift Services Ltd,0
South Ribble Borough Council,http://statistics.data.gov.uk/id/local-authority/30UE,Capital,Capital Grant,C570,DFG WORK TO SUPPLY AND INSTALL A STAIRLIFT AT ADDRESS REDACTED AS PER QUOTE SUPPLIED OF 3007.00,30/03/2022,0000476712,"3,007.00",Revenue,Stannah Lift Services Ltd,0
South Ribble Borough Council,http://statistics.data.gov.uk/id/local-authority/30UE,Community Development,Core Fund,4861,"HP 290 G3, SFF, Core i5 10500 / 3.1 GHz, RAM 8 GB, SSD 256 GB, NVMe, DVD-Writer, UHD Graphics 630, GigE, Win 10 Pro 64-bit, keyboard",02/03/2022,0000476338,435.00,Revenue,Starcom Technologies,0
South Ribble Borough Council,http://statistics.data.gov.uk/id/local-authority/30UE,Capital,Cap Contract Payment,C230,Costs for Stage 2 of the Business Case Development scheme for Leyland Town Deal,09/03/2022,0000476453,"25,058.33",Revenue,Steer Davies & Gleave Ltd,0
South Ribble Borough Council,http://statistics.data.gov.uk/id/local-authority/30UE,Capital,Cap Contract Payment,C230,"Description- To undertake tree works to accommodate the new Penwortham green link as per NAME REDACTED request, Amount: 4100.00",02/03/2022,0000476130,"4,100.00",Revenue,Stephen Pye Tree Services,0
South Ribble Borough Council,http://statistics.data.gov.uk/id/local-authority/30UE,Central Support Services,External Contractors Charges,4570,"FLT Refresher Training 18.2.22, NAMES REDACTED",09/03/2022,0000476349,400.00,Revenue,STEPHEN WOOD TRAINING SERVICES LTD,0
South Ribble Borough Council,http://statistics.data.gov.uk/id/local-authority/30UE,Building Control,Refunded Income,485R,Refund of building control fees,28/03/2022,0000476748,361.70,Revenue,Steve Connolly,0
South Ribble Borough Council,http://statistics.data.gov.uk/id/local-authority/30UE,Capital,Cap Contract Payment,C230,"Project Management, construction of new Playing pitch, Bamber Bridge Leisure Centre, support in preparation for delivery of the Development plan",17/03/2022,0000476571,"4,000.00",Revenue,Steve Wells Associates Ltd,0
South Ribble Borough Council,http://statistics.data.gov.uk/id/local-authority/30UE,Capital,Cap Contract Payment,C230,"Provision of Mechanical, Electrical and Plumbing Services to RIBA Stage 3 for the Leyland Town Deal Development",09/03/2022,0000476281,"8,675.00",Revenue,STEVEN A HUNT & ASSOCIATES LTD,0
South Ribble Borough Council,http://statistics.data.gov.uk/id/local-authority/30UE,Economic Development,Investment & Improvement,485K,"3x Small pull up banners, 1 x large banner, 200 of each of the A5 flyers (full colour two sided), 200 of the A4 'Steps' leaflet (per 100 full colour)",02/03/2022,0000476129,451.00,Revenue,STONE CREATE LTD,0
South Ribble Borough Council,http://statistics.data.gov.uk/id/local-authority/30UE,Democratic Represent and  Mgnt,External Catering Charges,4575,55 X LUNCH BOXES FOR COUNCIL MEETING ON 26 JANUARY 2022,02/03/2022,0000476260,301.95,Revenue,Style Catering,0
South Ribble Borough Council,http://statistics.data.gov.uk/id/local-authority/30UE,Central Support Services,Software Licensing,4243,Survey Monkey - Advantage Annual Plan - 20th Mar 2022 - 19th Mar 2023 - 320,02/03/2022,0000476128,320.00,Revenue,SURVEY MONKEY,0
South Ribble Borough Council,http://statistics.data.gov.uk/id/local-authority/30UE,Capital,Cap Contract Payment,C230,TOPO Survey and Underground Utility Survey (Areas 1-7),17/03/2022,0000476221,"11,150.00",Revenue,SURVEY OPERATIONS LTD,0
South Ribble Borough Council,http://statistics.data.gov.uk/id/local-authority/30UE,Capital,Cap Contract Payment,C230,Leyland Town Deal - Measured Building Surveys,17/03/2022,0000476673,"2,400.00",Revenue,SURVEY OPERATIONS LTD,0
South Ribble Borough Council,http://statistics.data.gov.uk/id/local-authority/30UE,Recreation & Sport,Dev ftarget Sports-Coaching,4894,Ping in the Community Table Tennis Outdoor Rollaway Packages x 11. Table Tennis England Schools Outdoor Rollaway Packages x 6,28/03/2022,0000477312,"5,251.20",Revenue,Table Tennis England,0
South Ribble Borough Council,http://statistics.data.gov.uk/id/local-authority/30UE,Development Control,Professional Fees,4510,Ecology advice on planning applications  2021/22,30/03/2022,0000477279,"3,713.00",Revenue,TAMESIDE METROPOLITAN BOROUGH COUNCIL,0
South Ribble Borough Council,http://statistics.data.gov.uk/id/local-authority/30UE,Central Support Services,Materials General,4040,"1 side panel, 1 decal and safety arm VN13 LSZ - OW1237",09/03/2022,0000476443,283.70,Revenue,Taylor Enginering & Fabrications Ltd,0
South Ribble Borough Council,http://statistics.data.gov.uk/id/local-authority/30UE,Central Support Services,External Contractors Charges,4570,Calibrate the RBT,23/03/2022,0000475329,399.00,Revenue,Tecalemit Garage Equipment Company Limited,0
South Ribble Borough Council,http://statistics.data.gov.uk/id/local-authority/30UE,Central Support Services,Materials General,4040,1 x side panel VU60HLE JFC18007,30/03/2022,0000477397,397.35,Revenue,TERBERG MATEC UK LTD,0
South Ribble Borough Council,http://statistics.data.gov.uk/id/local-authority/30UE,Open Spaces,Professional Fees,4510,"Work, Tree hives upgrade and 1 year's annual maintenance as per NAME REDACTED, Cost 3500",17/03/2022,0000476612,450.00,Revenue,The Bee centre,0
South Ribble Borough Council,http://statistics.data.gov.uk/id/local-authority/30UE,Open Spaces,Professional Fees,4510,"Work, Tree hives upgrade and 1 year's annual maintenance as per NAME REDACTED, Cost 3500",17/03/2022,0000476628,450.00,Revenue,The Bee centre,0
South Ribble Borough Council,http://statistics.data.gov.uk/id/local-authority/30UE,Central Support Services,Technical Support,4246,"Annual support 24x7 SLA, 48 RMAcs, Additional South Ribble Monitoring Gateway Device Annual Rental 400.00, 01/04/2022 - 31/03/2023",17/03/2022,0000476605,"2,800.00",Revenue,The Networking People (TNP) Ltd,0
South Ribble Borough Council,http://statistics.data.gov.uk/id/local-authority/30UE,Central Support Services,Occupational Health,1408,Six Sessions please for NAME REDACTED,23/03/2022,0000476771,420.00,Revenue,THE THERAPY COMPANY,0
South Ribble Borough Council,http://statistics.data.gov.uk/id/local-authority/30UE,Central Support Services,Reference Books,4142,rowell prac food,17/03/2022,0000476606,"1,236.00",Revenue,THOMSON REUTERS,0
South Ribble Borough Council,http://statistics.data.gov.uk/id/local-authority/30UE,Central Support Services,Reference Books,4142,practical 76,17/03/2022,0000476607,628.00,Revenue,THOMSON REUTERS,0
South Ribble Borough Council,http://statistics.data.gov.uk/id/local-authority/30UE,Capital,Cap Contract Payment,C230,For the provision of Project management services to Vernon Carus Sports Club and changing rooms as per NAME REDACTED,02/03/2022,0000476294,"10,000.00",Revenue,Thornton Building and Maintenance Services Ltd,0
South Ribble Borough Council,http://statistics.data.gov.uk/id/local-authority/30UE,Capital,Cap Contract Payment,C230,For the provision of Project management services to Vernon Carus Sports Club and changing rooms as per NAME REDACTED,23/03/2022,0000476710,"3,500.00",Revenue,Thornton Building and Maintenance Services Ltd,0
South Ribble Borough Council,http://statistics.data.gov.uk/id/local-authority/30UE,Central Support Services,Electricity,2303,1/2 to 28/2,17/03/2022,0000476566,"3,263.63",Revenue,Total Gas & power Ltd,0
South Ribble Borough Council,http://statistics.data.gov.uk/id/local-authority/30UE,Tourism,Electricity,2303,1/2 to 28/2,17/03/2022,0000476568,"1,820.48",Revenue,Total Gas & power Ltd,0
South Ribble Borough Council,http://statistics.data.gov.uk/id/local-authority/30UE,Central Support Services,Electricity,2303,1/2 to 28/2,17/03/2022,0000476569,"2,648.98",Revenue,Total Gas & power Ltd,0
South Ribble Borough Council,http://statistics.data.gov.uk/id/local-authority/30UE,Open Spaces,Electricity,2303,1/2 to 28/2/22,17/03/2022,0000476615,692.50,Revenue,Total Gas & power Ltd,0
South Ribble Borough Council,http://statistics.data.gov.uk/id/local-authority/30UE,Economic Development,Professional Fees,4510,Cost for the preparation of a Master Plan for the Wider Vernon Carus Site,09/03/2022,0000476450,"5,000.00",Revenue,Trebbi Continuum Limited,0
South Ribble Borough Council,http://statistics.data.gov.uk/id/local-authority/30UE,Housing Strategy,Basic Pay,1100,Affordable housing grant assessment - Duddle Lane,30/03/2022,0000477381,"3,000.00",Revenue,Trebbi Continuum Limited,0
South Ribble Borough Council,http://statistics.data.gov.uk/id/local-authority/30UE,Open Spaces,External Contractors Charges,4570,"Tree and stump grinding works at Worden Park, Leyland and Bellis Way, Walton-Le-Dale",02/03/2022,0000476125,600.00,Revenue,Trunks Tree Care Ltd,0
South Ribble Borough Council,http://statistics.data.gov.uk/id/local-authority/30UE,Open Spaces,External Contractors Charges,4570,"Tree and stump grinding works at Worden Park, Leyland and Bellis Way, Walton-Le-Dale",02/03/2022,0000476126,850.00,Revenue,Trunks Tree Care Ltd,0
South Ribble Borough Council,http://statistics.data.gov.uk/id/local-authority/30UE,Central Support Services,Operational Equip & Tools,4010,Soft grip salmon litter pickers LITLP33,02/03/2022,0000475847,255.40,Revenue,Tudor (UK) Ltd t/a Tudor Environmental,0
South Ribble Borough Council,http://statistics.data.gov.uk/id/local-authority/30UE,Elections,Electoral Administration Act,4970,ANNUAL SERVICE OF ENVELOPENER AND FOLDING MACHINE (INVOICE 6210),28/03/2022,0000476875,"1,239.60",Revenue,Twofold Ltd,0
South Ribble Borough Council,http://statistics.data.gov.uk/id/local-authority/30UE,Central Support Services,UK Healthcare,1710,1st oct 21,09/03/2022,0000475572,"1,519.54",Revenue,UK healthcare (BDHSC),0
South Ribble Borough Council,http://statistics.data.gov.uk/id/local-authority/30UE,Central Support Services,UK Healthcare,1710,01 feb 2022,09/03/2022,0000475702,"1,499.61",Revenue,UK healthcare (BDHSC),0
South Ribble Borough Council,http://statistics.data.gov.uk/id/local-authority/30UE,Economic Development,Professional Fees,4510,DISCOVER SOUTH RIBBLE MARKETING CAMPAIGN DELIVERY,28/03/2022,0000476843,"24,000.00",Revenue,VIVA PR Limited,0
South Ribble Borough Council,http://statistics.data.gov.uk/id/local-authority/30UE,Surplus or Deficit on Trading,Agency Staff,1121,"Interim Estates Surveyor position to NAME REDACTED to provide professions surveying services for the duration of the contract, 6 months",17/03/2022,0000474228,775.50,Revenue,Vivid Resourcing,0
South Ribble Borough Council,http://statistics.data.gov.uk/id/local-authority/30UE,Surplus or Deficit on Trading,Agency Staff,1121,"Interim Estates Surveyor position to NAME REDACTED to provide professions surveying services for the duration of the contract, 6 months",17/03/2022,0000474630,"1,762.50",Revenue,Vivid Resourcing,0
South Ribble Borough Council,http://statistics.data.gov.uk/id/local-authority/30UE,Surplus or Deficit on Trading,Agency Staff,1121,"Interim Estates Surveyor position to NAME REDACTED to provide professions surveying services for the duration of the contract, 6 months",17/03/2022,0000474808,"1,551.00",Revenue,Vivid Resourcing,0
South Ribble Borough Council,http://statistics.data.gov.uk/id/local-authority/30UE,Surplus or Deficit on Trading,Agency Staff,1121,"Interim Estates Surveyor position to NAME REDACTED to provide professions surveying services for the duration of the contract, 6 months",17/03/2022,0000474872,"1,598.00",Revenue,Vivid Resourcing,0
South Ribble Borough Council,http://statistics.data.gov.uk/id/local-authority/30UE,Surplus or Deficit on Trading,Agency Staff,1121,"Interim Estates Surveyor position to NAME REDACTED to provide professions surveying services for the duration of the contract, 6 months",02/03/2022,0000476039,"1,809.50",Revenue,Vivid Resourcing,0
South Ribble Borough Council,http://statistics.data.gov.uk/id/local-authority/30UE,Surplus or Deficit on Trading,Agency Staff,1121,"Interim Estates Surveyor position to NAME REDACTED to provide professions surveying services for the duration of the contract, 6 months",02/03/2022,0000476286,"1,786.00",Revenue,Vivid Resourcing,0
South Ribble Borough Council,http://statistics.data.gov.uk/id/local-authority/30UE,Surplus or Deficit on Trading,Agency Staff,1121,"Interim Estates Surveyor position to NAME REDACTED to provide professions surveying services for the duration of the contract, 6 months",17/03/2022,0000476474,"1,786.00",Revenue,Vivid Resourcing,0
